Workbook

Sheet Dashboard
A1: =FinYear -> 2023 | B1: Financial Dashboard | C1: =D37 -> 0
B3: Transactions processed until | D3: =MAX(Transactions!E1:INDIRECT(ADDRESS(MaxTransactions,5,1,,"Transactions"))) -> 2023-02-28 | H3: ="© 2014 - " & FinYear & " by Geldnerd" -> © 2014 - 2023 by Geldnerd | O3: 2023-02-09 | P3: < Last Bank import
B4: Days processed in year | D4: =D3-DATE(FinYear,1,1)+1 -> 59 | E4: =D4/Ledger!C5 -> 0.1616438356 | O4: 2023-02-09 | P4: < Last Creditcard import
B6: Expenses | E6: Out | I6: In | M6: Income | O6: =CreditCardBalance("VISA") -> 246.8 | P6: < Creditcard Balance
D7: Δ% | E7: Budget | F7: Actual | H7: Δ% | I7: Budget | J7: Actual
A9: 1000 | B9: Huisvesting | D9: =IFERROR((F9/E9)-1, "-") -> - | E9: =Ledger!E13 -> 0 | F9: =Ledger!C13 -> 0 | H9: =IFERROR((J9/I9)-1, "-") -> 0.03089669088 | I9: =Ledger!E149 -> 9504.657534 | J9: =Ledger!C149 -> 9798.32 | L9: 100 | M9: Salaris | O9: Accounts Balance
A10: 1200 | B10: Financiën en Zorg | D10: =IFERROR((F10/E10)-1, "-") -> -0.4632417913 | E10: =Ledger!E23 -> 396.100137 | F10: =Ledger!C23 -> 212.61 | H10: - | I10: =Ledger!E150 -> 0 | J10: =Ledger!C150 -> 0 | L10: 110 | M10: Belastingdienst
A11: 1400 | B11: Auto / Mobiliteit | D11: -0.1751412429 | E11: =Ledger!E34 -> 121.2328767 | F11: =Ledger!C34 -> 100 | H11: - | I11: =Ledger!E151 -> 0 | J11: =Ledger!C151 -> 0 | L11: 120 | M11: Uitkeringen Verzekering | O11: =AccountBalance(P11,$D$3) -> 910.43 | P11: =Settings!B26 -> Lopende rekening Graai Bankiers
A12: 1600 | B12: Telecom en Internet | D12: 0.5390287471 | E12: =Ledger!E45 -> 26.38027397 | F12: =Ledger!C45 -> 40.6 | H12: -1 | I12: =Ledger!E152 -> 32.32876712 | J12: =Ledger!C152 -> 0 | L12: 130 | M12: Websites | O12: =AccountBalance(P12,$D$3) -> -225 | P12: =Settings!B28 -> Spaarrekening Graai Bankiers
A13: 1800 | B13: Huishoudelijk en Voeding | D13: -0.2774554542 | E13: =Ledger!E53 -> 315.2054795 | F13: =Ledger!C53 -> 227.75 | H13: - | I13: =Ledger!E153 -> 0 | J13: =Ledger!C153 -> 0 | L13: 140 | M13: Neveninkomsten | O13: =AccountBalance(P13,$D$3) -> 9964.56 | P13: =Settings!B29 -> Spaarrekening BufferBank
A14: 2000 | B14: Abonnementen & Lidmaatschappen | D14: 0.7898349688 | E14: =Ledger!E65 -> 30.71232877 | F14: =Ledger!C65 -> 54.97 | H14: - | I14: =Ledger!E154 -> 0 | J14: =Ledger!C154 -> 0 | L14: 150 | M14: Giften | O14: =AccountBalance(P14,$D$3) -> 0 | P14: =Settings!B27 -> Contant geld
A15: 2200 | B15: Inrichting en Electronica | D15: -1 | E15: =Ledger!E72 -> 64.65753425 | F15: =Ledger!C72 -> 0 | H15: - | I15: =Ledger!E155 -> 0 | J15: =Ledger!C155 -> 0 | L15: 160 | M15: Verrekening Relatie - In - Vriendin
A16: 5000 | B16: Luxegoederen en -Diensten | D16: 2.046664601 | E16: =Ledger!E83 -> 1127.465753 | F16: =Ledger!C83 -> 3435.01 | H16: - | I16: =Ledger!E156 -> 0 | J16: =Ledger!C156 -> 0 | L16: 170 | M16: Verrekening Relatie - In - Geldnerd
A17: 5500 | B17: Hobby's | D17: -1 | E17: =Ledger!E96 -> 80.82191781 | F17: =Ledger!C96 -> 0 | H17: =IFERROR((J17/I17)-1, "-") -> - | I17: =Ledger!E157 -> 0 | J17: =Ledger!C157 -> 20 | L17: 190 | M17: Overig | O17: Payment Methods
A18: 6000 | B18: Reizen, Vakanties en Recreatie | D18: -0.8190843324 | E18: =Ledger!E102 -> 331.369863 | F18: =Ledger!C102 -> 59.95
A19: 8000 | B19: Kasgeld en Overige | D19: 0.0770751847 | E19: =Ledger!E110 -> 2521.643836 | F19: =Ledger!C110 -> 2716 | J19: =(J26+J27)-(F26+F27) -> 0 | M19: Saldo Declaraties | O19: =Ledger!J184 -> 1 | P19: kas - Contant Geld
A20: 8500 | B20: Reserve | D20: - | E20: =Ledger!E116 -> 0 | F20: =Ledger!C116 -> 0 | O20: =Ledger!J185 -> 0 | P20: ba - Betaalautomaat met pin
O21: =Ledger!J186 -> 6 | P21: bc - Contactloos betalen
B22: Total | D22: 0.365121551 | E22: =SUM(E8:E21) -> 5015.59 | F22: =SUM(F8:F21) -> 6846.89 | H22: =IFERROR((J22/I22)-1, "-") -> 0.02949922436 | I22: =SUM(I8:I21) -> 9536.986301 | J22: =SUM(J8:J21) -> 9818.32 | L22: =Ledger!J191 -> 0.3026413888 | M22: Savings Percentage | O22: =Ledger!J187 -> 73 | P22: ap - Apple Pay
O23: =Ledger!J188 -> 10 | P23: cc - Creditcard transactie
A25: 9000 | B25: =Ledger!B121 -> Kruisrekeningen | F25: =Ledger!C121 -> 1057.12 | G25: << | H25: =F25-J25 -> 44.83 | I25: >> | J25: =Ledger!C159 -> 1012.29 | L25: 900 | M25: =Ledger!B159 -> Kruisrekeningen
A26: 9010 | B26: =Ledger!B122 -> Derdenrekening privé | F26: =Ledger!C122 -> 0 | G26: << | H26: 0 | I26: >> | J26: =Ledger!C160 -> 0 | L26: 901 | M26: =Ledger!B160 -> Derdenrekening privé | O26: Attention
A27: 9020 | B27: =Ledger!B123 -> Derdenrekening zakelijk (declaraties) | F27: =Ledger!C123 -> 0 | G27: << | H27: =J27-F27 -> 0 | I27: >> | J27: =Ledger!C161 -> 0 | L27: 902 | M27: =Ledger!B161 -> Derdenrekening zakelijk (declaraties)
A28: 9030 | B28: =Ledger!B124 -> Beleggingsrekening | F28: =Ledger!C124 -> 2200 | G28: << | H28: =F28-J28 -> 2200 | I28: >> | J28: =Ledger!C162 -> 0 | L28: 903 | M28: =Ledger!B162 -> Effectenrekening
A29: 9040 | B29: Naar Buffer (buiten potjes) | F29: =Ledger!C125 -> 0 | G29: << | H29: =F29-J29 -> 0 | I29: >> | J29: =Ledger!C163 -> 0 | L29: 904 | M29: =Ledger!B163 -> Uit Buffer
A30: 9050 | B30: =Ledger!B126 -> Aflossing | F30: =Ledger!C126 -> 1860 | J30: =Ledger!C164 -> 0.39 | L30: 905 | M30: =Ledger!B164 -> Ontvangen Rente
A31: 9060 | B31: =Ledger!B127 -> Naar Spaarrekening (reserve) | F31: =Ledger!C127 -> 0 | G31: << | H31: =F31-J31 -> 0 | I31: >> | J31: =Ledger!C165 -> 0 | L31: 906 | M31: =Ledger!B165 -> Van Spaarrekening (reserve)
A32: 9070 | B32: =Ledger!B128 -> Kas Uit | F32: =Ledger!C128 -> 0 | G32: << | H32: =F32-J32 -> 0 | I32: >> | J32: =Ledger!C166 -> 0 | L32: 907 | M32: =Ledger!B166 -> Kas In
A33: 9099 | B33: =Ledger!B129 -> Overige | F33: =Ledger!C129 -> 0 | J33: =Ledger!C167 -> 0 | L33: 909 | M33: =Ledger!B167 -> Overige
A37: Cross-Check Ledger and Transactions | D37: =(D42+D44)-(D40-D43) -> 0
A39: A | B39: Sum Transactions <0 | D39: =SUMIF(Transactions!$H$1:INDIRECT(ADDRESS(MaxTransactions,8,1,,"Transactions")), "<0") -> -16164.21
A40: B | B40: Sum Transactions >0 | D40: =SUMIF(Transactions!$H$1:INDIRECT(ADDRESS(MaxTransactions,8,1,,"Transactions")), ">0") -> 12966.44
A41: C | B41: Sum creditcard transactions | D41: =SUMIF(Transactions!$A$1:INDIRECT(ADDRESS(MaxTransactions,1,1,,"Transactions")),0,Transactions!$H$1:INDIRECT(ADDRESS(MaxTransactions,8,1,,"Transactions"))) -> -2100.2
A42: D | B42: A - C | D42: =D39-D41 -> -14064.01
A43: E | B43: Sum Ledger In | D43: =Ledger!C181+Ledger!C169+SUM(Ledger!C159:'Ledger'!C167) -> 12966.44
A44: F | B44: Sum Ledger Out | D44: =Ledger!C144+Ledger!C131+SUM(Ledger!C121:'Ledger'!C129) -> 14064.01

Sheet Charts
B2: Chart | C2: No-Expense Days
B4: Start | C4: 2023-01-01
B5: End | C5: 2023-02-28
B7: Account | C7: 905

Sheet Ledger
A1: =FinYear -> 2023 | B1: Financial Ledger
B3: Transactions processed until | C3: =Dashboard!D3 -> 2023-02-28 | H3: Cursief | I3: Budget afkomstig uit sheet Cashflow
B4: Days processed in year | C4: =C3-DATE(FinYear,1,1)+1 -> 59 | D4: =C4/C5 -> 0.1616438356 | F4: 75
B5: Number of days this year | C5: =DATE(FinYear,12,31)-DATE(FinYear,1,1)+1 -> 365
F7: Actual vs | G7: Actual vs
C8: Actual | D8: Budget | E8: Budget | F8: Budget | G8: Budget | J8: Monthly | K8: 1 | L8: =K8+1 -> 2 | M8: =L8+1 -> 3 | N8: 4 | O8: 5 | P8: 6 | Q8: 7 | R8: 8 | S8: 9 | T8: 10 | U8: 11 | V8: 12
A9: # | B9: Ledger Account | C9: YTD | D9: Year | E9: YTD | F9: Year | G9: YTD | H9: Number | I9: Remarks | J9: Average | K9: Januari | L9: Februari | M9: Maart | N9: April | O9: Mei | P9: Juni | Q9: Juli | R9: Augustus | S9: September | T9: Oktober | U9: November | V9: December | W9: Total | AA9: Q1 | AB9: Q2 | AC9: Q3 | AD9: Q4
B11: Uitgaven
A13: 1000 | B13: Huisvesting | C13: =SUM(C14:C21) -> 0 | D13: =SUM(D14:D21) -> 0 | E13: 0 | F13: 0 | G13: 0 | H13: 0 | J13: =MonthlyAverageV2($C$3,$C$4,$A13,TriggerField) -> 0 | K13: =SUM(K14:K21) -> 0 | L13: 0 | M13: 0 | N13: 0 | O13: 0 | P13: 0 | Q13: 0 | R13: 0 | S13: 0 | T13: 0 | U13: 0 | V13: 0 | W13: =SUM(K13:V13) -> 0 | Y13: =A13 -> 1000 | Z13: =B13 -> Huisvesting | AA13: =K13+L13+M13 -> 0 | AB13: =N13+O13+P13 -> 0 | AC13: =Q13+R13+S13 -> 0 | AD13: =T13+U13+V13 -> 0
A14: 1010 | B14: Hypotheekrente | C14: =-SUMIF(Transactions!$A$1:INDIRECT(ADDRESS(MaxTransactions,1,1,,"Transactions")),A14,Transactions!$H$1:INDIRECT(ADDRESS(MaxTransactions,8,1,,"Transactions"))) -> 0 | D14: 0 | E14: =($C$4/$C$5)*D14 -> 0 | F14: =D14-C14 -> 0 | G14: =E14-C14 -> 0 | H14: =COUNTIF(Transactions!$A$1:INDIRECT(ADDRESS(MaxTransactions,1,1,,"Transactions")),A14) -> 0 | J14: =MonthlyAverageV2($C$3,$C$4,$A14,TriggerField) -> 0 | K14: =MonthlyBalance(K$8,$A14,TriggerField) -> 0 | L14: 0 | M14: 0 | N14: 0 | O14: 0 | P14: 0 | Q14: 0 | R14: 0 | S14: 0 | T14: 0 | U14: 0 | V14: 0 | W14: =SUM(K14:V14) -> 0 | Y14: 1010 | Z14: Hypotheekrente | AA14: 0 | AB14: 0 | AC14: 0 | AD14: 0
A15: 1020 | B15: Servicekosten | C15: =-SUMIF(Transactions!$A$1:INDIRECT(ADDRESS(MaxTransactions,1,1,,"Transactions")),A15,Transactions!$H$1:INDIRECT(ADDRESS(MaxTransactions,8,1,,"Transactions"))) -> 0 | D15: 0 | E15: 0 | F15: 0 | G15: 0 | H15: =COUNTIF(Transactions!$A$1:INDIRECT(ADDRESS(MaxTransactions,1,1,,"Transactions")),A15) -> 0 | J15: =MonthlyAverageV2($C$3,$C$4,$A15,TriggerField) -> 0 | K15: 0 | L15: 0 | M15: 0 | N15: 0 | O15: 0 | P15: 0 | Q15: 0 | R15: 0 | S15: 0 | T15: 0 | U15: 0 | V15: 0 | W15: 0 | Y15: 1020 | Z15: Servicekosten | AA15: 0 | AB15: 0 | AC15: 0 | AD15: 0
A16: 1030 | B16: Energie | C16: =-SUMIF(Transactions!$A$1:INDIRECT(ADDRESS(MaxTransactions,1,1,,"Transactions")),A16,Transactions!$H$1:INDIRECT(ADDRESS(MaxTransactions,8,1,,"Transactions"))) -> 0 | D16: 0 | E16: 0 | F16: 0 | G16: 0 | H16: =COUNTIF(Transactions!$A$1:INDIRECT(ADDRESS(MaxTransactions,1,1,,"Transactions")),A16) -> 0 | J16: =MonthlyAverageV2($C$3,$C$4,$A16,TriggerField) -> 0 | K16: 0 | L16: 0 | M16: 0 | N16: 0 | O16: 0 | P16: 0 | Q16: 0 | R16: 0 | S16: 0 | T16: 0 | U16: 0 | V16: 0 | W16: 0 | Y16: 1030 | Z16: Energie | AA16: 0 | AB16: 0 | AC16: 0 | AD16: 0
A17: 1040 | B17: Water en Waterschap | C17: =-SUMIF(Transactions!$A$1:INDIRECT(ADDRESS(MaxTransactions,1,1,,"Transactions")),A17,Transactions!$H$1:INDIRECT(ADDRESS(MaxTransactions,8,1,,"Transactions"))) -> 0 | D17: 0 | E17: 0 | F17: 0 | G17: 0 | H17: =COUNTIF(Transactions!$A$1:INDIRECT(ADDRESS(MaxTransactions,1,1,,"Transactions")),A17) -> 0 | J17: =MonthlyAverageV2($C$3,$C$4,$A17,TriggerField) -> 0 | K17: 0 | L17: 0 | M17: 0 | N17: 0 | O17: 0 | P17: 0 | Q17: 0 | R17: 0 | S17: 0 | T17: 0 | U17: 0 | V17: 0 | W17: 0 | Y17: 1040 | Z17: Water en Waterschap | AA17: 0 | AB17: 0 | AC17: 0 | AD17: 0
A18: 1050 | B18: Gemeente | C18: =-SUMIF(Transactions!$A$1:INDIRECT(ADDRESS(MaxTransactions,1,1,,"Transactions")),A18,Transactions!$H$1:INDIRECT(ADDRESS(MaxTransactions,8,1,,"Transactions"))) -> 0 | D18: 0 | E18: 0 | F18: 0 | G18: 0 | H18: =COUNTIF(Transactions!$A$1:INDIRECT(ADDRESS(MaxTransactions,1,1,,"Transactions")),A18) -> 0 | J18: =MonthlyAverageV2($C$3,$C$4,$A18,TriggerField) -> 0 | K18: 0 | L18: 0 | M18: 0 | N18: 0 | O18: 0 | P18: 0 | Q18: 0 | R18: 0 | S18: 0 | T18: 0 | U18: 0 | V18: 0 | W18: 0 | Y18: 1050 | Z18: Gemeente | AA18: 0 | AB18: 0 | AC18: 0 | AD18: 0
A19: 1060 | B19: Huur Woonruimte | C19: =-SUMIF(Transactions!$A$1:INDIRECT(ADDRESS(MaxTransactions,1,1,,"Transactions")),A19,Transactions!$H$1:INDIRECT(ADDRESS(MaxTransactions,8,1,,"Transactions"))) -> 0 | D19: 0 | E19: 0 | F19: 0 | G19: 0 | H19: =COUNTIF(Transactions!$A$1:INDIRECT(ADDRESS(MaxTransactions,1,1,,"Transactions")),A19) -> 0 | J19: =MonthlyAverageV2($C$3,$C$4,$A19,TriggerField) -> 0 | K19: 0 | L19: 0 | M19: 0 | N19: 0 | O19: 0 | P19: 0 | Q19: 0 | R19: 0 | S19: 0 | T19: 0 | U19: 0 | V19: 0 | W19: 0 | Y19: 1060 | Z19: Huur Woonruimte | AA19: 0 | AB19: 0 | AC19: 0 | AD19: 0
A20: 1065 | B20: Huur Opslagruimte | C20: =-SUMIF(Transactions!$A$1:INDIRECT(ADDRESS(MaxTransactions,1,1,,"Transactions")),A20,Transactions!$H$1:INDIRECT(ADDRESS(MaxTransactions,8,1,,"Transactions"))) -> 0 | D20: 0 | E20: 0 | F20: 0 | G20: 0 | H20: =COUNTIF(Transactions!$A$1:INDIRECT(ADDRESS(MaxTransactions,1,1,,"Transactions")),A20) -> 0 | J20: =MonthlyAverageV2($C$3,$C$4,$A20,TriggerField) -> 0 | K20: 0 | L20: 0 | M20: 0 | N20: 0 | O20: 0 | P20: 0 | Q20: 0 | R20: 0 | S20: 0 | T20: 0 | U20: 0 | V20: 0 | W20: 0 | Y20: 1065 | Z20: Huur Opslagruimte | AA20: 0 | AB20: 0 | AC20: 0 | AD20: 0
A21: 1099 | B21: Overig | C21: =-SUMIF(Transactions!$A$1:INDIRECT(ADDRESS(MaxTransactions,1,1,,"Transactions")),A21,Transactions!$H$1:INDIRECT(ADDRESS(MaxTransactions,8,1,,"Transactions"))) -> 0 | D21: 0 | E21: 0 | F21: 0 | G21: 0 | H21: =COUNTIF(Transactions!$A$1:INDIRECT(ADDRESS(MaxTransactions,1,1,,"Transactions")),A21) -> 0 | J21: =MonthlyAverageV2($C$3,$C$4,$A21,TriggerField) -> 0 | K21: 0 | L21: 0 | M21: 0 | N21: 0 | O21: 0 | P21: 0 | Q21: 0 | R21: 0 | S21: 0 | T21: 0 | U21: 0 | V21: 0 | W21: 0 | Y21: 1099 | Z21: Overig | AA21: 0 | AB21: 0 | AC21: 0 | AD21: 0
A23: 1200 | B23: Financiën en Zorg | C23: =SUM(C24:C32) -> 212.61 | D23: =SUM(D24:D32) -> 2450.45 | E23: 396.100137 | F23: 2237.84 | G23: 183.490137 | H23: 6 | J23: =MonthlyAverageV2($C$3,$C$4,$A23,TriggerField) -> 181.04 | K23: =SUM(K24:K32) -> 181.04 | L23: 31.57 | M23: 0 | N23: 0 | O23: 0 | P23: 0 | Q23: 0 | R23: 0 | S23: 0 | T23: 0 | U23: 0 | V23: 0 | W23: 212.61 | Y23: =A23 -> 1200 | Z23: =B23 -> Financiën en Zorg | AA23: =K23+L23+M23 -> 212.61 | AB23: =N23+O23+P23 -> 0 | AC23: =Q23+R23+S23 -> 0 | AD23: =T23+U23+V23 -> 0
A24: 1210 | B24: Kosten Banken / Creditcards | C24: =-SUMIF(Transactions!$A$1:INDIRECT(ADDRESS(MaxTransactions,1,1,,"Transactions")),A24,Transactions!$H$1:INDIRECT(ADDRESS(MaxTransactions,8,1,,"Transactions"))) -> 9.6 | D24: =Cashflow!Q27 -> 75.45 | E24: =($C$4/$C$5)*D24 -> 12.1960274 | F24: =D24-C24 -> 65.85 | G24: =E24-C24 -> 2.596027397 | H24: =COUNTIF(Transactions!$A$1:INDIRECT(ADDRESS(MaxTransactions,1,1,,"Transactions")),A24) -> 2 | J24: =MonthlyAverageV2($C$3,$C$4,$A24,TriggerField) -> 4.8 | K24: =MonthlyBalance(K$8,$A24,TriggerField) -> 4.8 | L24: 4.8 | M24: 0 | N24: 0 | O24: 0 | P24: 0 | Q24: 0 | R24: 0 | S24: 0 | T24: 0 | U24: 0 | V24: 0 | W24: 9.6 | Y24: 1210 | Z24: Kosten Banken / Creditcards | AA24: 9.6 | AB24: 0 | AC24: 0 | AD24: 0
A25: 1220 | B25: Niet-Leven Verzekeringen | C25: =-SUMIF(Transactions!$A$1:INDIRECT(ADDRESS(MaxTransactions,1,1,,"Transactions")),A25,Transactions!$H$1:INDIRECT(ADDRESS(MaxTransactions,8,1,,"Transactions"))) -> 53.54 | D25: 0 | E25: 0 | F25: -53.54 | G25: -53.54 | H25: =COUNTIF(Transactions!$A$1:INDIRECT(ADDRESS(MaxTransactions,1,1,,"Transactions")),A25) -> 2 | J25: =MonthlyAverageV2($C$3,$C$4,$A25,TriggerField) -> 26.77 | K25: 26.77 | L25: 26.77 | M25: 0 | N25: 0 | O25: 0 | P25: 0 | Q25: 0 | R25: 0 | S25: 0 | T25: 0 | U25: 0 | V25: 0 | W25: 53.54 | Y25: 1220 | Z25: Niet-Leven Verzekeringen | AA25: =K25+L25+M25 -> 53.54 | AB25: 0 | AC25: 0 | AD25: 0
A26: 1230 | B26: Zorgverzekering | C26: =-SUMIF(Transactions!$A$1:INDIRECT(ADDRESS(MaxTransactions,1,1,,"Transactions")),A26,Transactions!$H$1:INDIRECT(ADDRESS(MaxTransactions,8,1,,"Transactions"))) -> 0 | D26: 1440 | E26: 232.7671233 | F26: 1440 | G26: 232.7671233 | H26: =COUNTIF(Transactions!$A$1:INDIRECT(ADDRESS(MaxTransactions,1,1,,"Transactions")),A26) -> 0 | J26: =MonthlyAverageV2($C$3,$C$4,$A26,TriggerField) -> 0 | K26: 0 | L26: 0 | M26: 0 | N26: 0 | O26: 0 | P26: 0 | Q26: 0 | R26: 0 | S26: 0 | T26: 0 | U26: 0 | V26: 0 | W26: 0 | Y26: 1230 | Z26: Zorgverzekering | AA26: 0 | AB26: 0 | AC26: 0 | AD26: 0
A27: 1235 | B27: Zorgverzekering - Eigen bijdragen | C27: =-SUMIF(Transactions!$A$1:INDIRECT(ADDRESS(MaxTransactions,1,1,,"Transactions")),A27,Transactions!$H$1:INDIRECT(ADDRESS(MaxTransactions,8,1,,"Transactions"))) -> 0 | D27: 250 | E27: 40.4109589 | F27: 250 | G27: 40.4109589 | H27: =COUNTIF(Transactions!$A$1:INDIRECT(ADDRESS(MaxTransactions,1,1,,"Transactions")),A27) -> 0 | J27: =MonthlyAverageV2($C$3,$C$4,$A27,TriggerField) -> 0 | K27: 0 | L27: 0 | M27: 0 | N27: 0 | O27: 0 | P27: 0 | Q27: 0 | R27: 0 | S27: 0 | T27: 0 | U27: 0 | V27: 0 | W27: 0 | Y27: 1235 | Z27: Zorgverzekering - Eigen bijdragen | AA27: 0 | AB27: 0 | AC27: 0 | AD27: 0
A28: 1240 | B28: Huisarts | C28: =-SUMIF(Transactions!$A$1:INDIRECT(ADDRESS(MaxTransactions,1,1,,"Transactions")),A28,Transactions!$H$1:INDIRECT(ADDRESS(MaxTransactions,8,1,,"Transactions"))) -> 0 | D28: 0 | E28: 0 | F28: 0 | G28: 0 | H28: =COUNTIF(Transactions!$A$1:INDIRECT(ADDRESS(MaxTransactions,1,1,,"Transactions")),A28) -> 0 | J28: =MonthlyAverageV2($C$3,$C$4,$A28,TriggerField) -> 0 | K28: 0 | L28: 0 | M28: 0 | N28: 0 | O28: 0 | P28: 0 | Q28: 0 | R28: 0 | S28: 0 | T28: 0 | U28: 0 | V28: 0 | W28: 0 | Y28: 1240 | Z28: Huisarts | AA28: 0 | AB28: 0 | AC28: 0 | AD28: 0
A29: 1250 | B29: Tandarts & Mondhygiënist | C29: =-SUMIF(Transactions!$A$1:INDIRECT(ADDRESS(MaxTransactions,1,1,,"Transactions")),A29,Transactions!$H$1:INDIRECT(ADDRESS(MaxTransactions,8,1,,"Transactions"))) -> 149.47 | D29: =(6*85)+(2*75) -> 660 | E29: 106.6849315 | F29: 510.53 | G29: -42.78506849 | H29: =COUNTIF(Transactions!$A$1:INDIRECT(ADDRESS(MaxTransactions,1,1,,"Transactions")),A29) -> 2 | J29: =MonthlyAverageV2($C$3,$C$4,$A29,TriggerField) -> 149.47 | K29: 149.47 | L29: 0 | M29: 0 | N29: 0 | O29: 0 | P29: 0 | Q29: 0 | R29: 0 | S29: 0 | T29: 0 | U29: 0 | V29: 0 | W29: 149.47 | Y29: 1250 | Z29: Tandarts & Mondhygiënist | AA29: 149.47 | AB29: 0 | AC29: 0 | AD29: 0
A30: 1260 | B30: Apotheek | C30: =-SUMIF(Transactions!$A$1:INDIRECT(ADDRESS(MaxTransactions,1,1,,"Transactions")),A30,Transactions!$H$1:INDIRECT(ADDRESS(MaxTransactions,8,1,,"Transactions"))) -> 0 | D30: 25 | E30: 4.04109589 | F30: 25 | G30: 4.04109589 | H30: =COUNTIF(Transactions!$A$1:INDIRECT(ADDRESS(MaxTransactions,1,1,,"Transactions")),A30) -> 0 | J30: =MonthlyAverageV2($C$3,$C$4,$A30,TriggerField) -> 0 | K30: 0 | L30: 0 | M30: 0 | N30: 0 | O30: 0 | P30: 0 | Q30: 0 | R30: 0 | S30: 0 | T30: 0 | U30: 0 | V30: 0 | W30: 0 | Y30: 1260 | Z30: Apotheek | AA30: 0 | AB30: 0 | AC30: 0 | AD30: 0
A31: 1270 | B31: Opticien | C31: =-SUMIF(Transactions!$A$1:INDIRECT(ADDRESS(MaxTransactions,1,1,,"Transactions")),A31,Transactions!$H$1:INDIRECT(ADDRESS(MaxTransactions,8,1,,"Transactions"))) -> 0 | D31: 0 | E31: 0 | F31: 0 | G31: 0 | H31: =COUNTIF(Transactions!$A$1:INDIRECT(ADDRESS(MaxTransactions,1,1,,"Transactions")),A31) -> 0 | J31: =MonthlyAverageV2($C$3,$C$4,$A31,TriggerField) -> 0 | K31: 0 | L31: 0 | M31: 0 | N31: 0 | O31: 0 | P31: 0 | Q31: 0 | R31: 0 | S31: 0 | T31: 0 | U31: 0 | V31: 0 | W31: 0 | Y31: 1270 | Z31: Opticien | AA31: 0 | AB31: 0 | AC31: 0 | AD31: 0
A32: 1299 | B32: Overig | C32: =-SUMIF(Transactions!$A$1:INDIRECT(ADDRESS(MaxTransactions,1,1,,"Transactions")),A32,Transactions!$H$1:INDIRECT(ADDRESS(MaxTransactions,8,1,,"Transactions"))) -> 0 | D32: 0 | E32: 0 | F32: 0 | G32: 0 | H32: =COUNTIF(Transactions!$A$1:INDIRECT(ADDRESS(MaxTransactions,1,1,,"Transactions")),A32) -> 0 | J32: =MonthlyAverageV2($C$3,$C$4,$A32,TriggerField) -> 0 | K32: 0 | L32: 0 | M32: 0 | N32: 0 | O32: 0 | P32: 0 | Q32: 0 | R32: 0 | S32: 0 | T32: 0 | U32: 0 | V32: 0 | W32: 0 | Y32: 1299 | Z32: Overig | AA32: 0 | AB32: 0 | AC32: 0 | AD32: 0
A34: 1400 | B34: Auto / Mobiliteit | C34: =SUM(C35:C43) -> 100 | D34: 750 | E34: 121.2328767 | F34: 650 | G34: 21.23287671 | H34: 2 | J34: =MonthlyAverageV2($C$3,$C$4,$A34,TriggerField) -> 50 | K34: =SUM(K35:K43) -> 50 | L34: 50 | M34: 0 | N34: 0 | O34: 0 | P34: 0 | Q34: 0 | R34: 0 | S34: 0 | T34: 0 | U34: 0 | V34: 0 | W34: 100 | Y34: =A34 -> 1400 | Z34: =B34 -> Auto / Mobiliteit | AA34: =K34+L34+M34 -> 100 | AB34: =N34+O34+P34 -> 0 | AC34: =Q34+R34+S34 -> 0 | AD34: =T34+U34+V34 -> 0
A35: 1410 | B35: Wegenbelasting | C35: =-SUMIF(Transactions!$A$1:INDIRECT(ADDRESS(MaxTransactions,1,1,,"Transactions")),A35,Transactions!$H$1:INDIRECT(ADDRESS(MaxTransactions,8,1,,"Transactions"))) -> 0 | D35: 0 | E35: =($C$4/$C$5)*D35 -> 0 | F35: =D35-C35 -> 0 | G35: =E35-C35 -> 0 | H35: =COUNTIF(Transactions!$A$1:INDIRECT(ADDRESS(MaxTransactions,1,1,,"Transactions")),A35) -> 0 | J35: =MonthlyAverageV2($C$3,$C$4,$A35,TriggerField) -> 0 | K35: =MonthlyBalance(K$8,$A35,TriggerField) -> 0 | L35: 0 | M35: 0 | N35: 0 | O35: 0 | P35: 0 | Q35: 0 | R35: 0 | S35: 0 | T35: 0 | U35: 0 | V35: 0 | W35: 0 | Y35: 1410 | Z35: Wegenbelasting | AA35: 0 | AB35: 0 | AC35: 0 | AD35: 0
A36: 1420 | B36: Brandstof | C36: =-SUMIF(Transactions!$A$1:INDIRECT(ADDRESS(MaxTransactions,1,1,,"Transactions")),A36,Transactions!$H$1:INDIRECT(ADDRESS(MaxTransactions,8,1,,"Transactions"))) -> 0 | D36: 0 | E36: 0 | F36: 0 | G36: 0 | H36: =COUNTIF(Transactions!$A$1:INDIRECT(ADDRESS(MaxTransactions,1,1,,"Transactions")),A36) -> 0 | J36: =MonthlyAverageV2($C$3,$C$4,$A36,TriggerField) -> 0 | K36: 0 | L36: 0 | M36: 0 | N36: 0 | O36: 0 | P36: 0 | Q36: 0 | R36: 0 | S36: 0 | T36: 0 | U36: 0 | V36: 0 | W36: 0 | Y36: 1420 | Z36: Brandstof | AA36: 0 | AB36: 0 | AC36: 0 | AD36: 0
A37: 1430 | B37: Garage | C37: =-SUMIF(Transactions!$A$1:INDIRECT(ADDRESS(MaxTransactions,1,1,,"Transactions")),A37,Transactions!$H$1:INDIRECT(ADDRESS(MaxTransactions,8,1,,"Transactions"))) -> 0 | D37: 0 | E37: 0 | F37: 0 | G37: 0 | H37: =COUNTIF(Transactions!$A$1:INDIRECT(ADDRESS(MaxTransactions,1,1,,"Transactions")),A37) -> 0 | J37: =MonthlyAverageV2($C$3,$C$4,$A37,TriggerField) -> 0 | K37: 0 | L37: 0 | M37: 0 | N37: 0 | O37: 0 | P37: 0 | Q37: 0 | R37: 0 | S37: 0 | T37: 0 | U37: 0 | V37: 0 | W37: 0 | Y37: 1430 | Z37: Garage | AA37: 0 | AB37: 0 | AC37: 0 | AD37: 0
A38: 1440 | B38: Bekeuringen | C38: =-SUMIF(Transactions!$A$1:INDIRECT(ADDRESS(MaxTransactions,1,1,,"Transactions")),A38,Transactions!$H$1:INDIRECT(ADDRESS(MaxTransactions,8,1,,"Transactions"))) -> 0 | D38: 0 | E38: 0 | F38: 0 | G38: 0 | H38: =COUNTIF(Transactions!$A$1:INDIRECT(ADDRESS(MaxTransactions,1,1,,"Transactions")),A38) -> 0 | J38: =MonthlyAverageV2($C$3,$C$4,$A38,TriggerField) -> 0 | K38: 0 | L38: 0 | M38: 0 | N38: 0 | O38: 0 | P38: 0 | Q38: 0 | R38: 0 | S38: 0 | T38: 0 | U38: 0 | V38: 0 | W38: 0 | Y38: 1440 | Z38: Bekeuringen | AA38: 0 | AB38: 0 | AC38: 0 | AD38: 0
A39: 1450 | B39: OV-kosten | C39: =-SUMIF(Transactions!$A$1:INDIRECT(ADDRESS(MaxTransactions,1,1,,"Transactions")),A39,Transactions!$H$1:INDIRECT(ADDRESS(MaxTransactions,8,1,,"Transactions"))) -> 100 | D39: 500 | E39: 80.82191781 | F39: 400 | G39: -19.17808219 | H39: =COUNTIF(Transactions!$A$1:INDIRECT(ADDRESS(MaxTransactions,1,1,,"Transactions")),A39) -> 2 | J39: =MonthlyAverageV2($C$3,$C$4,$A39,TriggerField) -> 50 | K39: 50 | L39: 50 | M39: 0 | N39: 0 | O39: 0 | P39: 0 | Q39: 0 | R39: 0 | S39: 0 | T39: 0 | U39: 0 | V39: 0 | W39: 100 | Y39: 1450 | Z39: OV-kosten | AA39: 100 | AB39: 0 | AC39: 0 | AD39: 0
A40: 1460 | B40: Fietskosten | C40: =-SUMIF(Transactions!$A$1:INDIRECT(ADDRESS(MaxTransactions,1,1,,"Transactions")),A40,Transactions!$H$1:INDIRECT(ADDRESS(MaxTransactions,8,1,,"Transactions"))) -> 0 | D40: 100 | E40: 16.16438356 | F40: 100 | G40: 16.16438356 | H40: =COUNTIF(Transactions!$A$1:INDIRECT(ADDRESS(MaxTransactions,1,1,,"Transactions")),A40) -> 0 | J40: =MonthlyAverageV2($C$3,$C$4,$A40,TriggerField) -> 0 | K40: 0 | L40: 0 | M40: 0 | N40: 0 | O40: 0 | P40: 0 | Q40: 0 | R40: 0 | S40: 0 | T40: 0 | U40: 0 | V40: 0 | W40: 0 | Y40: 1460 | Z40: Fietskosten | AA40: 0 | AB40: 0 | AC40: 0 | AD40: 0
A41: 1470 | B41: Autohuur | C41: =-SUMIF(Transactions!$A$1:INDIRECT(ADDRESS(MaxTransactions,1,1,,"Transactions")),A41,Transactions!$H$1:INDIRECT(ADDRESS(MaxTransactions,8,1,,"Transactions"))) -> 0 | D41: 100 | E41: 16.16438356 | F41: 100 | G41: 16.16438356 | H41: =COUNTIF(Transactions!$A$1:INDIRECT(ADDRESS(MaxTransactions,1,1,,"Transactions")),A41) -> 0 | J41: =MonthlyAverageV2($C$3,$C$4,$A41,TriggerField) -> 0 | K41: 0 | L41: 0 | M41: 0 | N41: 0 | O41: 0 | P41: 0 | Q41: 0 | R41: 0 | S41: 0 | T41: 0 | U41: 0 | V41: 0 | W41: 0 | Y41: 1470 | Z41: Autohuur | AA41: 0 | AB41: 0 | AC41: 0 | AD41: 0
A42: 1480 | B42: Taxikosten | C42: =-SUMIF(Transactions!$A$1:INDIRECT(ADDRESS(MaxTransactions,1,1,,"Transactions")),A42,Transactions!$H$1:INDIRECT(ADDRESS(MaxTransactions,8,1,,"Transactions"))) -> 0 | D42: 50 | E42: 8.082191781 | F42: 50 | G42: 8.082191781 | H42: =COUNTIF(Transactions!$A$1:INDIRECT(ADDRESS(MaxTransactions,1,1,,"Transactions")),A42) -> 0 | J42: =MonthlyAverageV2($C$3,$C$4,$A42,TriggerField) -> 0 | K42: 0 | L42: 0 | M42: 0 | N42: 0 | O42: 0 | P42: 0 | Q42: 0 | R42: 0 | S42: 0 | T42: 0 | U42: 0 | V42: 0 | W42: 0 | Y42: 1480 | Z42: Taxikosten | AA42: 0 | AB42: 0 | AC42: 0 | AD42: 0
A43: 1499 | B43: Overig (o.a. Parkeerkosten) | C43: =-SUMIF(Transactions!$A$1:INDIRECT(ADDRESS(MaxTransactions,1,1,,"Transactions")),A43,Transactions!$H$1:INDIRECT(ADDRESS(MaxTransactions,8,1,,"Transactions"))) -> 0 | D43: 0 | E43: 0 | F43: 0 | G43: 0 | H43: =COUNTIF(Transactions!$A$1:INDIRECT(ADDRESS(MaxTransactions,1,1,,"Transactions")),A43) -> 0 | J43: =MonthlyAverageV2($C$3,$C$4,$A43,TriggerField) -> 0 | K43: 0 | L43: 0 | M43: 0 | N43: 0 | O43: 0 | P43: 0 | Q43: 0 | R43: 0 | S43: 0 | T43: 0 | U43: 0 | V43: 0 | W43: 0 | Y43: 1499 | Z43: Overig (o.a. Parkeerkosten) | AA43: 0 | AB43: 0 | AC43: 0 | AD43: 0
A45: 1600 | B45: Telecom en Internet | C45: =SUM(C46:C51) -> 40.6 | D45: =SUM(D46:D51) -> 163.2 | E45: 26.38027397 | F45: 122.6 | G45: -14.21972603 | H45: 2 | J45: =MonthlyAverageV2($C$3,$C$4,$A45,TriggerField) -> 20.3 | K45: =SUM(K46:K51) -> 20.3 | L45: 20.3 | M45: 0 | N45: 0 | O45: 0 | P45: 0 | Q45: 0 | R45: 0 | S45: 0 | T45: 0 | U45: 0 | V45: 0 | W45: 40.6 | Y45: =A45 -> 1600 | Z45: Telecom en Internet | AA45: =K45+L45+M45 -> 40.6 | AB45: =N45+O45+P45 -> 0 | AC45: =Q45+R45+S45 -> 0 | AD45: =T45+U45+V45 -> 0
A46: 1610 | B46: Telefonie / Internet / Triple Play | C46: =-SUMIF(Transactions!$A$1:INDIRECT(ADDRESS(MaxTransactions,1,1,,"Transactions")),A46,Transactions!$H$1:INDIRECT(ADDRESS(MaxTransactions,8,1,,"Transactions"))) -> 0 | D46: 0 | E46: =($C$4/$C$5)*D46 -> 0 | F46: =D46-C46 -> 0 | G46: =E46-C46 -> 0 | H46: =COUNTIF(Transactions!$A$1:INDIRECT(ADDRESS(MaxTransactions,1,1,,"Transactions")),A46) -> 0 | J46: =MonthlyAverageV2($C$3,$C$4,$A46,TriggerField) -> 0 | K46: =MonthlyBalance(K$8,$A46,TriggerField) -> 0 | L46: 0 | M46: 0 | N46: 0 | O46: 0 | P46: 0 | Q46: 0 | R46: 0 | S46: 0 | T46: 0 | U46: 0 | V46: 0 | W46: 0 | Y46: 1610 | Z46: Telefonie / Internet / Triple Play | AA46: 0 | AB46: 0 | AC46: 0 | AD46: 0
A47: 1620 | B47: Internettoegang | C47: =-SUMIF(Transactions!$A$1:INDIRECT(ADDRESS(MaxTransactions,1,1,,"Transactions")),A47,Transactions!$H$1:INDIRECT(ADDRESS(MaxTransactions,8,1,,"Transactions"))) -> 0 | D47: 0 | E47: 0 | F47: 0 | G47: 0 | H47: =COUNTIF(Transactions!$A$1:INDIRECT(ADDRESS(MaxTransactions,1,1,,"Transactions")),A47) -> 0 | J47: =MonthlyAverageV2($C$3,$C$4,$A47,TriggerField) -> 0 | K47: 0 | L47: 0 | M47: 0 | N47: 0 | O47: 0 | P47: 0 | Q47: 0 | R47: 0 | S47: 0 | T47: 0 | U47: 0 | V47: 0 | W47: 0 | Y47: 1620 | Z47: Internettoegang | AA47: 0 | AB47: 0 | AC47: 0 | AD47: 0
A48: 1630 | B48: Mobiele Telefonie | C48: =-SUMIF(Transactions!$A$1:INDIRECT(ADDRESS(MaxTransactions,1,1,,"Transactions")),A48,Transactions!$H$1:INDIRECT(ADDRESS(MaxTransactions,8,1,,"Transactions"))) -> 40.6 | D48: =Cashflow!Q29 -> 163.2 | E48: 26.38027397 | F48: 122.6 | G48: -14.21972603 | H48: =COUNTIF(Transactions!$A$1:INDIRECT(ADDRESS(MaxTransactions,1,1,,"Transactions")),A48) -> 2 | J48: =MonthlyAverageV2($C$3,$C$4,$A48,TriggerField) -> 20.3 | K48: 20.3 | L48: 20.3 | M48: 0 | N48: 0 | O48: 0 | P48: 0 | Q48: 0 | R48: 0 | S48: 0 | T48: 0 | U48: 0 | V48: 0 | W48: 40.6 | Y48: 1630 | Z48: Mobiele Telefonie | AA48: 40.6 | AB48: 0 | AC48: 0 | AD48: 0
A49: 1640 | B49: Televisie | C49: =-SUMIF(Transactions!$A$1:INDIRECT(ADDRESS(MaxTransactions,1,1,,"Transactions")),A49,Transactions!$H$1:INDIRECT(ADDRESS(MaxTransactions,8,1,,"Transactions"))) -> 0 | D49: 0 | E49: 0 | F49: 0 | G49: 0 | H49: =COUNTIF(Transactions!$A$1:INDIRECT(ADDRESS(MaxTransactions,1,1,,"Transactions")),A49) -> 0 | J49: =MonthlyAverageV2($C$3,$C$4,$A49,TriggerField) -> 0 | K49: 0 | L49: 0 | M49: 0 | N49: 0 | O49: 0 | P49: 0 | Q49: 0 | R49: 0 | S49: 0 | T49: 0 | U49: 0 | V49: 0 | W49: 0 | Y49: 1640 | Z49: Televisie | AA49: 0 | AB49: 0 | AC49: 0 | AD49: 0
A50: 1650 | B50: Hosting Websites | C50: =-SUMIF(Transactions!$A$1:INDIRECT(ADDRESS(MaxTransactions,1,1,,"Transactions")),A50,Transactions!$H$1:INDIRECT(ADDRESS(MaxTransactions,8,1,,"Transactions"))) -> 0 | D50: 0 | E50: 0 | F50: 0 | G50: 0 | H50: =COUNTIF(Transactions!$A$1:INDIRECT(ADDRESS(MaxTransactions,1,1,,"Transactions")),A50) -> 0 | J50: =MonthlyAverageV2($C$3,$C$4,$A50,TriggerField) -> 0 | K50: 0 | L50: 0 | M50: 0 | N50: 0 | O50: 0 | P50: 0 | Q50: 0 | R50: 0 | S50: 0 | T50: 0 | U50: 0 | V50: 0 | W50: 0 | Y50: 1650 | Z50: Hosting Websites | AA50: 0 | AB50: 0 | AC50: 0 | AD50: 0
A51: 1699 | B51: Overig | C51: =-SUMIF(Transactions!$A$1:INDIRECT(ADDRESS(MaxTransactions,1,1,,"Transactions")),A51,Transactions!$H$1:INDIRECT(ADDRESS(MaxTransactions,8,1,,"Transactions"))) -> 0 | D51: 0 | E51: 0 | F51: 0 | G51: 0 | H51: =COUNTIF(Transactions!$A$1:INDIRECT(ADDRESS(MaxTransactions,1,1,,"Transactions")),A51) -> 0 | J51: =MonthlyAverageV2($C$3,$C$4,$A51,TriggerField) -> 0 | K51: 0 | L51: 0 | M51: 0 | N51: 0 | O51: 0 | P51: 0 | Q51: 0 | R51: 0 | S51: 0 | T51: 0 | U51: 0 | V51: 0 | W51: 0 | Y51: 1699 | Z51: Overig | AA51: 0 | AB51: 0 | AC51: 0 | AD51: 0
A53: 1800 | B53: Huishoudelijk en Voeding | C53: =SUM(C54:C63) -> 227.75 | D53: 1950 | E53: 315.2054795 | F53: 1722.25 | G53: 87.45547945 | H53: 55 | J53: =MonthlyAverageV2($C$3,$C$4,$A53,TriggerField) -> 114.22 | K53: =SUM(K54:K63) -> 114.22 | L53: 113.53 | M53: 0 | N53: 0 | O53: 0 | P53: 0 | Q53: 0 | R53: 0 | S53: 0 | T53: 0 | U53: 0 | V53: 0 | W53: 227.75 | Y53: =A53 -> 1800 | Z53: =B53 -> Huishoudelijk en Voeding | AA53: =K53+L53+M53 -> 227.75 | AB53: =N53+O53+P53 -> 0 | AC53: =Q53+R53+S53 -> 0 | AD53: =T53+U53+V53 -> 0
A54: 1810 | B54: Supermarkt | C54: =-SUMIF(Transactions!$A$1:INDIRECT(ADDRESS(MaxTransactions,1,1,,"Transactions")),A54,Transactions!$H$1:INDIRECT(ADDRESS(MaxTransactions,8,1,,"Transactions"))) -> 12.38 | D54: 200 | E54: =($C$4/$C$5)*D54 -> 32.32876712 | F54: =D54-C54 -> 187.62 | G54: =E54-C54 -> 19.94876712 | H54: =COUNTIF(Transactions!$A$1:INDIRECT(ADDRESS(MaxTransactions,1,1,,"Transactions")),A54) -> 4 | J54: =MonthlyAverageV2($C$3,$C$4,$A54,TriggerField) -> 9.83 | K54: =MonthlyBalance(K$8,$A54,TriggerField) -> 9.83 | L54: 2.55 | M54: 0 | N54: 0 | O54: 0 | P54: 0 | Q54: 0 | R54: 0 | S54: 0 | T54: 0 | U54: 0 | V54: 0 | W54: 12.38 | Y54: 1810 | Z54: Supermarkt | AA54: 12.38 | AB54: 0 | AC54: 0 | AD54: 0
A55: 1820 | B55: Groothandel | C55: =-SUMIF(Transactions!$A$1:INDIRECT(ADDRESS(MaxTransactions,1,1,,"Transactions")),A55,Transactions!$H$1:INDIRECT(ADDRESS(MaxTransactions,8,1,,"Transactions"))) -> 0 | D55: 0 | E55: 0 | F55: 0 | G55: 0 | H55: =COUNTIF(Transactions!$A$1:INDIRECT(ADDRESS(MaxTransactions,1,1,,"Transactions")),A55) -> 0 | J55: =MonthlyAverageV2($C$3,$C$4,$A55,TriggerField) -> 0 | K55: 0 | L55: 0 | M55: 0 | N55: 0 | O55: 0 | P55: 0 | Q55: 0 | R55: 0 | S55: 0 | T55: 0 | U55: 0 | V55: 0 | W55: 0 | Y55: 1820 | Z55: Groothandel | AA55: 0 | AB55: 0 | AC55: 0 | AD55: 0
A56: 1830 | B56: Biologische winkels | C56: =-SUMIF(Transactions!$A$1:INDIRECT(ADDRESS(MaxTransactions,1,1,,"Transactions")),A56,Transactions!$H$1:INDIRECT(ADDRESS(MaxTransactions,8,1,,"Transactions"))) -> 0 | D56: 0 | E56: 0 | F56: 0 | G56: 0 | H56: =COUNTIF(Transactions!$A$1:INDIRECT(ADDRESS(MaxTransactions,1,1,,"Transactions")),A56) -> 0 | J56: =MonthlyAverageV2($C$3,$C$4,$A56,TriggerField) -> 0 | K56: 0 | L56: 0 | M56: 0 | N56: 0 | O56: 0 | P56: 0 | Q56: 0 | R56: 0 | S56: 0 | T56: 0 | U56: 0 | V56: 0 | W56: 0 | Y56: 1830 | Z56: Biologische winkels | AA56: 0 | AB56: 0 | AC56: 0 | AD56: 0
A57: 1840 | B57: Speciaalzaken - Food | C57: =-SUMIF(Transactions!$A$1:INDIRECT(ADDRESS(MaxTransactions,1,1,,"Transactions")),A57,Transactions!$H$1:INDIRECT(ADDRESS(MaxTransactions,8,1,,"Transactions"))) -> 50.76 | D57: 250 | E57: 40.4109589 | F57: 199.24 | G57: -10.3490411 | H57: =COUNTIF(Transactions!$A$1:INDIRECT(ADDRESS(MaxTransactions,1,1,,"Transactions")),A57) -> 7 | J57: =MonthlyAverageV2($C$3,$C$4,$A57,TriggerField) -> 23.23 | K57: 23.23 | L57: 27.53 | M57: 0 | N57: 0 | O57: 0 | P57: 0 | Q57: 0 | R57: 0 | S57: 0 | T57: 0 | U57: 0 | V57: 0 | W57: 50.76 | Y57: 1840 | Z57: Speciaalzaken - Food | AA57: 50.76 | AB57: 0 | AC57: 0 | AD57: 0
A58: 1841 | B58: Speciaalzaken - Bier Wijn Whiskey | C58: =-SUMIF(Transactions!$A$1:INDIRECT(ADDRESS(MaxTransactions,1,1,,"Transactions")),A58,Transactions!$H$1:INDIRECT(ADDRESS(MaxTransactions,8,1,,"Transactions"))) -> 0 | D58: 1250 | E58: =($C$4/$C$5)*D58 -> 202.0547945 | F58: =D58-C58 -> 1250 | G58: =E58-C58 -> 202.0547945 | H58: =COUNTIF(Transactions!$A$1:INDIRECT(ADDRESS(MaxTransactions,1,1,,"Transactions")),A58) -> 0 | J58: =MonthlyAverageV2($C$3,$C$4,$A58,TriggerField) -> 0 | K58: 0 | L58: 0 | M58: 0 | N58: 0 | O58: 0 | P58: 0 | Q58: 0 | R58: 0 | S58: 0 | T58: 0 | U58: 0 | V58: 0 | W58: =SUM(K58:V58) -> 0 | Y58: =A58 -> 1841 | Z58: =B58 -> Speciaalzaken - Bier Wijn Whiskey | AA58: =K58+L58+M58 -> 0 | AB58: =N58+O58+P58 -> 0 | AC58: =Q58+R58+S58 -> 0 | AD58: =T58+U58+V58 -> 0
A59: 1850 | B59: Speciaalzaken - Non-Food | C59: =-SUMIF(Transactions!$A$1:INDIRECT(ADDRESS(MaxTransactions,1,1,,"Transactions")),A59,Transactions!$H$1:INDIRECT(ADDRESS(MaxTransactions,8,1,,"Transactions"))) -> 9 | D59: 0 | E59: 0 | F59: -9 | G59: -9 | H59: =COUNTIF(Transactions!$A$1:INDIRECT(ADDRESS(MaxTransactions,1,1,,"Transactions")),A59) -> 1 | J59: =MonthlyAverageV2($C$3,$C$4,$A59,TriggerField) -> 9 | K59: 9 | L59: 0 | M59: 0 | N59: 0 | O59: 0 | P59: 0 | Q59: 0 | R59: 0 | S59: 0 | T59: 0 | U59: 0 | V59: 0 | W59: 9 | Y59: 1850 | Z59: Speciaalzaken - Non-Food | AA59: 9 | AB59: 0 | AC59: 0 | AD59: 0
A60: 1860 | B60: Huisdieren | C60: =-SUMIF(Transactions!$A$1:INDIRECT(ADDRESS(MaxTransactions,1,1,,"Transactions")),A60,Transactions!$H$1:INDIRECT(ADDRESS(MaxTransactions,8,1,,"Transactions"))) -> 0 | D60: 0 | E60: 0 | F60: 0 | G60: 0 | H60: =COUNTIF(Transactions!$A$1:INDIRECT(ADDRESS(MaxTransactions,1,1,,"Transactions")),A60) -> 0 | J60: =MonthlyAverageV2($C$3,$C$4,$A60,TriggerField) -> 0 | K60: 0 | L60: 0 | M60: 0 | N60: 0 | O60: 0 | P60: 0 | Q60: 0 | R60: 0 | S60: 0 | T60: 0 | U60: 0 | V60: 0 | W60: 0 | Y60: 1860 | Z60: Huisdieren | AA60: 0 | AB60: 0 | AC60: 0 | AD60: 0
A61: 1870 | B61: Lunchkosten Kantoor | C61: =-SUMIF(Transactions!$A$1:INDIRECT(ADDRESS(MaxTransactions,1,1,,"Transactions")),A61,Transactions!$H$1:INDIRECT(ADDRESS(MaxTransactions,8,1,,"Transactions"))) -> 155.61 | D61: 250 | E61: 40.4109589 | F61: 94.39 | G61: -115.1990411 | H61: =COUNTIF(Transactions!$A$1:INDIRECT(ADDRESS(MaxTransactions,1,1,,"Transactions")),A61) -> 43 | J61: =MonthlyAverageV2($C$3,$C$4,$A61,TriggerField) -> 72.16 | K61: 72.16 | L61: 83.45 | M61: 0 | N61: 0 | O61: 0 | P61: 0 | Q61: 0 | R61: 0 | S61: 0 | T61: 0 | U61: 0 | V61: 0 | W61: 155.61 | Y61: 1870 | Z61: Lunchkosten Kantoor | AA61: 155.61 | AB61: 0 | AC61: 0 | AD61: 0
A62: 1880 | B62: Schoonmaak & Glazenwassers | C62: =-SUMIF(Transactions!$A$1:INDIRECT(ADDRESS(MaxTransactions,1,1,,"Transactions")),A62,Transactions!$H$1:INDIRECT(ADDRESS(MaxTransactions,8,1,,"Transactions"))) -> 0 | D62: 0 | E62: 0 | F62: 0 | G62: 0 | H62: =COUNTIF(Transactions!$A$1:INDIRECT(ADDRESS(MaxTransactions,1,1,,"Transactions")),A62) -> 0 | J62: =MonthlyAverageV2($C$3,$C$4,$A62,TriggerField) -> 0 | K62: 0 | L62: 0 | M62: 0 | N62: 0 | O62: 0 | P62: 0 | Q62: 0 | R62: 0 | S62: 0 | T62: 0 | U62: 0 | V62: 0 | W62: 0 | Y62: 1880 | Z62: Schoonmaak & Glazenwassers | AA62: 0 | AB62: 0 | AC62: 0 | AD62: 0
A63: 1899 | B63: Overig | C63: =-SUMIF(Transactions!$A$1:INDIRECT(ADDRESS(MaxTransactions,1,1,,"Transactions")),A63,Transactions!$H$1:INDIRECT(ADDRESS(MaxTransactions,8,1,,"Transactions"))) -> 0 | D63: 0 | E63: 0 | F63: 0 | G63: 0 | H63: =COUNTIF(Transactions!$A$1:INDIRECT(ADDRESS(MaxTransactions,1,1,,"Transactions")),A63) -> 0 | J63: =MonthlyAverageV2($C$3,$C$4,$A63,TriggerField) -> 0 | K63: 0 | L63: 0 | M63: 0 | N63: 0 | O63: 0 | P63: 0 | Q63: 0 | R63: 0 | S63: 0 | T63: 0 | U63: 0 | V63: 0 | W63: 0 | Y63: 1899 | Z63: Overig | AA63: 0 | AB63: 0 | AC63: 0 | AD63: 0
A65: 2000 | B65: Abonnementen & Lidmaatschappen | C65: =SUM(C66:C70) -> 54.97 | D65: =SUM(D66:D70) -> 190 | E65: =SUM(E66:E70) -> 30.71232877 | F65: 135.03 | G65: -24.25767123 | H65: 4 | J65: =MonthlyAverageV2($C$3,$C$4,$A65,TriggerField) -> 29.98 | K65: =SUM(K66:K70) -> 29.98 | L65: 24.99 | M65: 0 | N65: 0 | O65: 0 | P65: 0 | Q65: 0 | R65: 0 | S65: 0 | T65: 0 | U65: 0 | V65: 0 | W65: 54.97 | Y65: =A65 -> 2000 | Z65: Abonnementen & Lidmaatschappen | AA65: =K65+L65+M65 -> 54.97 | AB65: =N65+O65+P65 -> 0 | AC65: =Q65+R65+S65 -> 0 | AD65: =T65+U65+V65 -> 0
A66: 2010 | B66: Abonnementen | C66: =-SUMIF(Transactions!$A$1:INDIRECT(ADDRESS(MaxTransactions,1,1,,"Transactions")),A66,Transactions!$H$1:INDIRECT(ADDRESS(MaxTransactions,8,1,,"Transactions"))) -> 0 | D66: 90 | E66: =($C$4/$C$5)*D66 -> 14.54794521 | F66: =D66-C66 -> 90 | G66: =E66-C66 -> 14.54794521 | H66: =COUNTIF(Transactions!$A$1:INDIRECT(ADDRESS(MaxTransactions,1,1,,"Transactions")),A66) -> 0 | J66: =MonthlyAverageV2($C$3,$C$4,$A66,TriggerField) -> 0 | K66: =MonthlyBalance(K$8,$A66,TriggerField) -> 0 | L66: 0 | M66: 0 | N66: 0 | O66: 0 | P66: 0 | Q66: 0 | R66: 0 | S66: 0 | T66: 0 | U66: 0 | V66: 0 | W66: 0 | Y66: 2010 | Z66: Abonnementen | AA66: =K66+L66+M66 -> 0 | AB66: 0 | AC66: 0 | AD66: 0
A67: 2020 | B67: Lidmaatschappen | C67: =-SUMIF(Transactions!$A$1:INDIRECT(ADDRESS(MaxTransactions,1,1,,"Transactions")),A67,Transactions!$H$1:INDIRECT(ADDRESS(MaxTransactions,8,1,,"Transactions"))) -> 44.97 | D67: 100 | E67: 16.16438356 | F67: 55.03 | G67: -28.80561644 | H67: =COUNTIF(Transactions!$A$1:INDIRECT(ADDRESS(MaxTransactions,1,1,,"Transactions")),A67) -> 3 | J67: =MonthlyAverageV2($C$3,$C$4,$A67,TriggerField) -> 29.98 | K67: 29.98 | L67: 14.99 | M67: 0 | N67: 0 | O67: 0 | P67: 0 | Q67: 0 | R67: 0 | S67: 0 | T67: 0 | U67: 0 | V67: 0 | W67: 44.97 | Y67: 2020 | Z67: Lidmaatschappen | AA67: 44.97 | AB67: 0 | AC67: 0 | AD67: 0
A68: 2030 | B68: Goede Doelen | C68: =-SUMIF(Transactions!$A$1:INDIRECT(ADDRESS(MaxTransactions,1,1,,"Transactions")),A68,Transactions!$H$1:INDIRECT(ADDRESS(MaxTransactions,8,1,,"Transactions"))) -> 0 | D68: 0 | E68: =($C$4/$C$5)*D68 -> 0 | F68: =D68-C68 -> 0 | G68: =E68-C68 -> 0 | H68: =COUNTIF(Transactions!$A$1:INDIRECT(ADDRESS(MaxTransactions,1,1,,"Transactions")),A68) -> 0 | J68: =MonthlyAverageV2($C$3,$C$4,$A68,TriggerField) -> 0 | K68: 0 | L68: 0 | M68: 0 | N68: 0 | O68: 0 | P68: 0 | Q68: 0 | R68: 0 | S68: 0 | T68: 0 | U68: 0 | V68: 0 | W68: 0 | Y68: 2030 | Z68: Goede Doelen | AA68: 0 | AB68: 0 | AC68: 0 | AD68: 0
A69: 2040 | B69: Loterijen en Kansspelen | C69: =-SUMIF(Transactions!$A$1:INDIRECT(ADDRESS(MaxTransactions,1,1,,"Transactions")),A69,Transactions!$H$1:INDIRECT(ADDRESS(MaxTransactions,8,1,,"Transactions"))) -> 10 | D69: 0 | E69: =($C$4/$C$5)*D69 -> 0 | F69: =D69-C69 -> -10 | G69: =E69-C69 -> -10 | H69: =COUNTIF(Transactions!$A$1:INDIRECT(ADDRESS(MaxTransactions,1,1,,"Transactions")),A69) -> 1 | J69: =MonthlyAverageV2($C$3,$C$4,$A69,TriggerField) -> 0 | K69: 0 | L69: 10 | M69: 0 | N69: 0 | O69: 0 | P69: 0 | Q69: 0 | R69: 0 | S69: 0 | T69: 0 | U69: 0 | V69: 0 | W69: 10 | Y69: 2040 | Z69: Loterijen en Kansspelen | AA69: 10 | AB69: 0 | AC69: 0 | AD69: 0
A70: 2099 | B70: Overig | C70: =-SUMIF(Transactions!$A$1:INDIRECT(ADDRESS(MaxTransactions,1,1,,"Transactions")),A70,Transactions!$H$1:INDIRECT(ADDRESS(MaxTransactions,8,1,,"Transactions"))) -> 0 | D70: 0 | E70: =($C$4/$C$5)*D70 -> 0 | F70: =D70-C70 -> 0 | G70: =E70-C70 -> 0 | H70: =COUNTIF(Transactions!$A$1:INDIRECT(ADDRESS(MaxTransactions,1,1,,"Transactions")),A70) -> 0 | J70: =MonthlyAverageV2($C$3,$C$4,$A70,TriggerField) -> 0 | K70: 0 | L70: 0 | M70: 0 | N70: 0 | O70: 0 | P70: 0 | Q70: 0 | R70: 0 | S70: 0 | T70: 0 | U70: 0 | V70: 0 | W70: 0 | Y70: 2099 | Z70: Overig | AA70: 0 | AB70: 0 | AC70: 0 | AD70: 0
A72: 2200 | B72: Inrichting en Elektronica | C72: =SUM(C73:C81) -> 0 | D72: 400 | E72: 64.65753425 | F72: 400 | G72: 64.65753425 | H72: 0 | J72: =MonthlyAverageV2($C$3,$C$4,$A72,TriggerField) -> 0 | K72: =SUM(K73:K81) -> 0 | L72: 0 | M72: 0 | N72: 0 | O72: 0 | P72: 0 | Q72: 0 | R72: 0 | S72: 0 | T72: 0 | U72: 0 | V72: 0 | W72: 0 | Y72: =A72 -> 2200 | Z72: =B72 -> Inrichting en Elektronica | AA72: =K72+L72+M72 -> 0 | AB72: =N72+O72+P72 -> 0 | AC72: =Q72+R72+S72 -> 0 | AD72: =T72+U72+V72 -> 0
A73: 2210 | B73: Interieur | C73: =-SUMIF(Transactions!$A$1:INDIRECT(ADDRESS(MaxTransactions,1,1,,"Transactions")),A73,Transactions!$H$1:INDIRECT(ADDRESS(MaxTransactions,8,1,,"Transactions"))) -> 0 | D73: 0 | E73: =($C$4/$C$5)*D73 -> 0 | F73: =D73-C73 -> 0 | G73: =E73-C73 -> 0 | H73: =COUNTIF(Transactions!$A$1:INDIRECT(ADDRESS(MaxTransactions,1,1,,"Transactions")),A73) -> 0 | J73: =MonthlyAverageV2($C$3,$C$4,$A73,TriggerField) -> 0 | K73: =MonthlyBalance(K$8,$A73,TriggerField) -> 0 | L73: 0 | M73: 0 | N73: 0 | O73: 0 | P73: 0 | Q73: 0 | R73: 0 | S73: 0 | T73: 0 | U73: 0 | V73: 0 | W73: 0 | Y73: 2210 | Z73: Interieur | AA73: 0 | AB73: 0 | AC73: 0 | AD73: 0
A74: 2215 | B74: Klussen in Huis | C74: =-SUMIF(Transactions!$A$1:INDIRECT(ADDRESS(MaxTransactions,1,1,,"Transactions")),A74,Transactions!$H$1:INDIRECT(ADDRESS(MaxTransactions,8,1,,"Transactions"))) -> 0 | D74: 0 | E74: 0 | F74: 0 | G74: 0 | H74: =COUNTIF(Transactions!$A$1:INDIRECT(ADDRESS(MaxTransactions,1,1,,"Transactions")),A74) -> 0 | J74: =MonthlyAverageV2($C$3,$C$4,$A74,TriggerField) -> 0 | K74: 0 | L74: 0 | M74: 0 | N74: 0 | O74: 0 | P74: 0 | Q74: 0 | R74: 0 | S74: =MonthlyBalance(S$8,$A74,TriggerField) -> 0 | T74: 0 | U74: 0 | V74: 0 | W74: 0 | Y74: 2215 | Z74: Klussen in Huis | AA74: 0 | AB74: 0 | AC74: 0 | AD74: 0
A75: 2220 | B75: Balkon / Tuin | C75: =-SUMIF(Transactions!$A$1:INDIRECT(ADDRESS(MaxTransactions,1,1,,"Transactions")),A75,Transactions!$H$1:INDIRECT(ADDRESS(MaxTransactions,8,1,,"Transactions"))) -> 0 | D75: 0 | E75: 0 | F75: 0 | G75: 0 | H75: =COUNTIF(Transactions!$A$1:INDIRECT(ADDRESS(MaxTransactions,1,1,,"Transactions")),A75) -> 0 | J75: =MonthlyAverageV2($C$3,$C$4,$A75,TriggerField) -> 0 | K75: 0 | L75: 0 | M75: 0 | N75: 0 | O75: 0 | P75: 0 | Q75: 0 | R75: 0 | S75: 0 | T75: 0 | U75: 0 | V75: 0 | W75: 0 | Y75: 2220 | Z75: Balkon / Tuin | AA75: 0 | AB75: 0 | AC75: 0 | AD75: 0
A76: 2225 | B76: Inventaris - Niet Huishoudelijk | C76: =-SUMIF(Transactions!$A$1:INDIRECT(ADDRESS(MaxTransactions,1,1,,"Transactions")),A76,Transactions!$H$1:INDIRECT(ADDRESS(MaxTransactions,8,1,,"Transactions"))) -> 0 | D76: 0 | E76: 0 | F76: 0 | G76: 0 | H76: =COUNTIF(Transactions!$A$1:INDIRECT(ADDRESS(MaxTransactions,1,1,,"Transactions")),A76) -> 0 | J76: =MonthlyAverageV2($C$3,$C$4,$A76,TriggerField) -> 0 | K76: 0 | L76: 0 | M76: 0 | N76: 0 | O76: 0 | P76: 0 | Q76: 0 | R76: 0 | S76: 0 | T76: 0 | U76: 0 | V76: 0 | W76: 0 | Y76: 2225 | Z76: Inventaris - Niet Huishoudelijk | AA76: 0 | AB76: 0 | AC76: 0 | AD76: 0
A77: 2230 | B77: Kunst | C77: =-SUMIF(Transactions!$A$1:INDIRECT(ADDRESS(MaxTransactions,1,1,,"Transactions")),A77,Transactions!$H$1:INDIRECT(ADDRESS(MaxTransactions,8,1,,"Transactions"))) -> 0 | D77: 0 | E77: 0 | F77: 0 | G77: 0 | H77: =COUNTIF(Transactions!$A$1:INDIRECT(ADDRESS(MaxTransactions,1,1,,"Transactions")),A77) -> 0 | J77: =MonthlyAverageV2($C$3,$C$4,$A77,TriggerField) -> 0 | K77: 0 | L77: 0 | M77: 0 | N77: 0 | O77: 0 | P77: 0 | Q77: 0 | R77: 0 | S77: 0 | T77: 0 | U77: 0 | V77: 0 | W77: 0 | Y77: 2230 | Z77: Kunst | AA77: 0 | AB77: 0 | AC77: 0 | AD77: 0
A78: 2240 | B78: Home Entertainment / Apps | C78: =-SUMIF(Transactions!$A$1:INDIRECT(ADDRESS(MaxTransactions,1,1,,"Transactions")),A78,Transactions!$H$1:INDIRECT(ADDRESS(MaxTransactions,8,1,,"Transactions"))) -> 0 | D78: 50 | E78: 8.082191781 | F78: 50 | G78: 8.082191781 | H78: =COUNTIF(Transactions!$A$1:INDIRECT(ADDRESS(MaxTransactions,1,1,,"Transactions")),A78) -> 0 | J78: =MonthlyAverageV2($C$3,$C$4,$A78,TriggerField) -> 0 | K78: 0 | L78: 0 | M78: 0 | N78: 0 | O78: 0 | P78: 0 | Q78: 0 | R78: 0 | S78: 0 | T78: 0 | U78: 0 | V78: 0 | W78: 0 | Y78: 2240 | Z78: Home Entertainment / Apps | AA78: 0 | AB78: 0 | AC78: 0 | AD78: 0
A79: 2250 | B79: Computer en Netwerk | C79: =-SUMIF(Transactions!$A$1:INDIRECT(ADDRESS(MaxTransactions,1,1,,"Transactions")),A79,Transactions!$H$1:INDIRECT(ADDRESS(MaxTransactions,8,1,,"Transactions"))) -> 0 | D79: 250 | E79: 40.4109589 | F79: 250 | G79: 40.4109589 | H79: =COUNTIF(Transactions!$A$1:INDIRECT(ADDRESS(MaxTransactions,1,1,,"Transactions")),A79) -> 0 | J79: =MonthlyAverageV2($C$3,$C$4,$A79,TriggerField) -> 0 | K79: 0 | L79: 0 | M79: 0 | N79: 0 | O79: 0 | P79: 0 | Q79: 0 | R79: 0 | S79: 0 | T79: 0 | U79: 0 | V79: 0 | W79: =SUM(K79:V79) -> 0 | Y79: 2250 | Z79: Computer en Netwerk | AA79: 0 | AB79: 0 | AC79: 0 | AD79: 0
A80: 2260 | B80: Software (exclusief Games) | C80: =-SUMIF(Transactions!$A$1:INDIRECT(ADDRESS(MaxTransactions,1,1,,"Transactions")),A80,Transactions!$H$1:INDIRECT(ADDRESS(MaxTransactions,8,1,,"Transactions"))) -> 0 | D80: 100 | E80: 16.16438356 | F80: 100 | G80: 16.16438356 | H80: =COUNTIF(Transactions!$A$1:INDIRECT(ADDRESS(MaxTransactions,1,1,,"Transactions")),A80) -> 0 | J80: =MonthlyAverageV2($C$3,$C$4,$A80,TriggerField) -> 0 | K80: 0 | L80: 0 | M80: 0 | N80: 0 | O80: 0 | P80: 0 | Q80: 0 | R80: 0 | S80: 0 | T80: 0 | U80: 0 | V80: 0 | W80: 0 | Y80: 2260 | Z80: Software (exclusief Games) | AA80: 0 | AB80: 0 | AC80: 0 | AD80: 0
A81: 2299 | B81: Overig | C81: =-SUMIF(Transactions!$A$1:INDIRECT(ADDRESS(MaxTransactions,1,1,,"Transactions")),A81,Transactions!$H$1:INDIRECT(ADDRESS(MaxTransactions,8,1,,"Transactions"))) -> 0 | D81: 0 | E81: 0 | F81: 0 | G81: 0 | H81: =COUNTIF(Transactions!$A$1:INDIRECT(ADDRESS(MaxTransactions,1,1,,"Transactions")),A81) -> 0 | J81: =MonthlyAverageV2($C$3,$C$4,$A81,TriggerField) -> 0 | K81: 0 | L81: 0 | M81: 0 | N81: 0 | O81: 0 | P81: 0 | Q81: 0 | R81: 0 | S81: 0 | T81: 0 | U81: 0 | V81: 0 | W81: 0 | Y81: 2299 | Z81: Overig | AA81: 0 | AB81: 0 | AC81: 0 | AD81: 0
A83: 5000 | B83: Luxegoederen en diensten | C83: =SUM(C84:C94) -> 3435.01 | D83: 6975 | E83: 1127.465753 | F83: 3539.99 | G83: -2307.544247 | H83: 41 | J83: =MonthlyAverageV2($C$3,$C$4,$A83,TriggerField) -> 1058.36 | K83: =SUM(K84:K94) -> 1058.36 | L83: 2376.65 | M83: 0 | N83: 0 | O83: 0 | P83: 0 | Q83: 0 | R83: 0 | S83: 0 | T83: 0 | U83: 0 | V83: 0 | W83: 3435.01 | Y83: =A83 -> 5000 | Z83: =B83 -> Luxegoederen en diensten | AA83: =K83+L83+M83 -> 3435.01 | AB83: =N83+O83+P83 -> 0 | AC83: =Q83+R83+S83 -> 0 | AD83: =T83+U83+V83 -> 0
A84: 5010 | B84: Kleding - Aanschaf | C84: =-SUMIF(Transactions!$A$1:INDIRECT(ADDRESS(MaxTransactions,1,1,,"Transactions")),A84,Transactions!$H$1:INDIRECT(ADDRESS(MaxTransactions,8,1,,"Transactions"))) -> 2710.54 | D84: 4250 | E84: =($C$4/$C$5)*D84 -> 686.9863014 | F84: =D84-C84 -> 1539.46 | G84: =E84-C84 -> -2023.553699 | H84: =COUNTIF(Transactions!$A$1:INDIRECT(ADDRESS(MaxTransactions,1,1,,"Transactions")),A84) -> 8 | J84: =MonthlyAverageV2($C$3,$C$4,$A84,TriggerField) -> 639.24 | K84: =MonthlyBalance(K$8,$A84,TriggerField) -> 639.24 | L84: 2071.3 | M84: 0 | N84: 0 | O84: 0 | P84: 0 | Q84: 0 | R84: 0 | S84: 0 | T84: 0 | U84: 0 | V84: 0 | W84: 2710.54 | Y84: 5010 | Z84: Kleding - Aanschaf | AA84: 2710.54 | AB84: 0 | AC84: 0 | AD84: 0
A85: 5015 | B85: Kleding - Onderhoud | C85: =-SUMIF(Transactions!$A$1:INDIRECT(ADDRESS(MaxTransactions,1,1,,"Transactions")),A85,Transactions!$H$1:INDIRECT(ADDRESS(MaxTransactions,8,1,,"Transactions"))) -> 0 | D85: 150 | E85: =($C$4/$C$5)*D85 -> 24.24657534 | F85: =D85-C85 -> 150 | G85: =E85-C85 -> 24.24657534 | H85: =COUNTIF(Transactions!$A$1:INDIRECT(ADDRESS(MaxTransactions,1,1,,"Transactions")),A85) -> 0 | J85: =MonthlyAverageV2($C$3,$C$4,$A85,TriggerField) -> 0 | K85: 0 | L85: 0 | M85: 0 | N85: 0 | O85: 0 | P85: 0 | Q85: 0 | R85: 0 | S85: 0 | T85: 0 | U85: 0 | V85: 0 | W85: 0 | Y85: =A85 -> 5015 | Z85: =B85 -> Kleding - Onderhoud | AA85: =K85+L85+M85 -> 0 | AB85: =N85+O85+P85 -> 0 | AC85: =Q85+R85+S85 -> 0 | AD85: =T85+U85+V85 -> 0
A86: 5020 | B86: Horeca | C86: =-SUMIF(Transactions!$A$1:INDIRECT(ADDRESS(MaxTransactions,1,1,,"Transactions")),A86,Transactions!$H$1:INDIRECT(ADDRESS(MaxTransactions,8,1,,"Transactions"))) -> 219.76 | D86: 1000 | E86: 161.6438356 | F86: 780.24 | G86: -58.11616438 | H86: =COUNTIF(Transactions!$A$1:INDIRECT(ADDRESS(MaxTransactions,1,1,,"Transactions")),A86) -> 22 | J86: =MonthlyAverageV2($C$3,$C$4,$A86,TriggerField) -> 166.06 | K86: 166.06 | L86: 53.7 | M86: 0 | N86: 0 | O86: 0 | P86: 0 | Q86: 0 | R86: 0 | S86: 0 | T86: 0 | U86: 0 | V86: 0 | W86: 219.76 | Y86: 5020 | Z86: Horeca | AA86: 219.76 | AB86: 0 | AC86: 0 | AD86: 0
A87: 5025 | B87: Horeca - Afhalen / Bezorgen | C87: =-SUMIF(Transactions!$A$1:INDIRECT(ADDRESS(MaxTransactions,1,1,,"Transactions")),A87,Transactions!$H$1:INDIRECT(ADDRESS(MaxTransactions,8,1,,"Transactions"))) -> 0 | D87: 200 | E87: =($C$4/$C$5)*D87 -> 32.32876712 | F87: =D87-C87 -> 200 | G87: =E87-C87 -> 32.32876712 | H87: =COUNTIF(Transactions!$A$1:INDIRECT(ADDRESS(MaxTransactions,1,1,,"Transactions")),A87) -> 0 | J87: =MonthlyAverageV2($C$3,$C$4,$A87,TriggerField) -> 0 | K87: 0 | L87: 0 | M87: 0 | N87: 0 | O87: 0 | P87: 0 | Q87: 0 | R87: 0 | S87: 0 | T87: 0 | U87: 0 | V87: 0 | W87: =SUM(K87:V87) -> 0 | Y87: =A87 -> 5025 | Z87: =B87 -> Horeca - Afhalen / Bezorgen | AA87: =K87+L87+M87 -> 0 | AB87: =N87+O87+P87 -> 0 | AC87: =Q87+R87+S87 -> 0 | AD87: =T87+U87+V87 -> 0
A88: 5030 | B88: Persoonlijke Verzorging - Produkten | C88: =-SUMIF(Transactions!$A$1:INDIRECT(ADDRESS(MaxTransactions,1,1,,"Transactions")),A88,Transactions!$H$1:INDIRECT(ADDRESS(MaxTransactions,8,1,,"Transactions"))) -> 40.97 | D88: 205 | E88: 33.1369863 | F88: 164.03 | G88: -7.833013699 | H88: =COUNTIF(Transactions!$A$1:INDIRECT(ADDRESS(MaxTransactions,1,1,,"Transactions")),A88) -> 1 | J88: =MonthlyAverageV2($C$3,$C$4,$A88,TriggerField) -> 0 | K88: 0 | L88: 40.97 | M88: 0 | N88: 0 | O88: 0 | P88: 0 | Q88: 0 | R88: 0 | S88: 0 | T88: 0 | U88: 0 | V88: 0 | W88: 40.97 | Y88: 5030 | Z88: Persoonlijke Verzorging - Produkten | AA88: 40.97 | AB88: 0 | AC88: 0 | AD88: 0
A89: 5040 | B89: Persoonlijke Verzorging - Diensten | C89: =-SUMIF(Transactions!$A$1:INDIRECT(ADDRESS(MaxTransactions,1,1,,"Transactions")),A89,Transactions!$H$1:INDIRECT(ADDRESS(MaxTransactions,8,1,,"Transactions"))) -> 0 | D89: 670 | E89: 108.3013699 | F89: 670 | G89: 108.3013699 | H89: =COUNTIF(Transactions!$A$1:INDIRECT(ADDRESS(MaxTransactions,1,1,,"Transactions")),A89) -> 0 | J89: =MonthlyAverageV2($C$3,$C$4,$A89,TriggerField) -> 0 | K89: 0 | L89: 0 | M89: 0 | N89: 0 | O89: 0 | P89: 0 | Q89: 0 | R89: 0 | S89: 0 | T89: 0 | U89: 0 | V89: 0 | W89: 0 | Y89: 5040 | Z89: Persoonlijke Verzorging - Diensten | AA89: 0 | AB89: 0 | AC89: 0 | AD89: 0
A90: 5050 | B90: Boeken, Media (CD/DVD) en Games | C90: =-SUMIF(Transactions!$A$1:INDIRECT(ADDRESS(MaxTransactions,1,1,,"Transactions")),A90,Transactions!$H$1:INDIRECT(ADDRESS(MaxTransactions,8,1,,"Transactions"))) -> 0 | D90: 0 | E90: 0 | F90: 0 | G90: 0 | H90: =COUNTIF(Transactions!$A$1:INDIRECT(ADDRESS(MaxTransactions,1,1,,"Transactions")),A90) -> 0 | J90: =MonthlyAverageV2($C$3,$C$4,$A90,TriggerField) -> 0 | K90: 0 | L90: 0 | M90: 0 | N90: 0 | O90: 0 | P90: 0 | Q90: 0 | R90: 0 | S90: 0 | T90: 0 | U90: 0 | V90: 0 | W90: 0 | Y90: 5050 | Z90: Boeken, Media (CD/DVD) en Games | AA90: 0 | AB90: 0 | AC90: 0 | AD90: 0
A91: 5060 | B91: Sauna / Massage / Yoga | C91: =-SUMIF(Transactions!$A$1:INDIRECT(ADDRESS(MaxTransactions,1,1,,"Transactions")),A91,Transactions!$H$1:INDIRECT(ADDRESS(MaxTransactions,8,1,,"Transactions"))) -> 0 | D91: 0 | E91: 0 | F91: 0 | G91: 0 | H91: =COUNTIF(Transactions!$A$1:INDIRECT(ADDRESS(MaxTransactions,1,1,,"Transactions")),A91) -> 0 | J91: =MonthlyAverageV2($C$3,$C$4,$A91,TriggerField) -> 0 | K91: 0 | L91: 0 | M91: 0 | N91: 0 | O91: 0 | P91: 0 | Q91: 0 | R91: 0 | S91: 0 | T91: 0 | U91: 0 | V91: 0 | W91: 0 | Y91: 5060 | Z91: Sauna / Massage / Yoga | AA91: 0 | AB91: 0 | AC91: 0 | AD91: 0
A92: 5070 | B92: Coaching en Opleiding | C92: =-SUMIF(Transactions!$A$1:INDIRECT(ADDRESS(MaxTransactions,1,1,,"Transactions")),A92,Transactions!$H$1:INDIRECT(ADDRESS(MaxTransactions,8,1,,"Transactions"))) -> 408 | D92: 0 | E92: 0 | F92: -408 | G92: -408 | H92: =COUNTIF(Transactions!$A$1:INDIRECT(ADDRESS(MaxTransactions,1,1,,"Transactions")),A92) -> 4 | J92: =MonthlyAverageV2($C$3,$C$4,$A92,TriggerField) -> 204 | K92: 204 | L92: 204 | M92: 0 | N92: 0 | O92: 0 | P92: 0 | Q92: 0 | R92: 0 | S92: 0 | T92: 0 | U92: 0 | V92: 0 | W92: 408 | Y92: 5070 | Z92: Coaching en Opleiding | AA92: 408 | AB92: 0 | AC92: 0 | AD92: 0
A93: 5080 | B93: Cadeau's | C93: =-SUMIF(Transactions!$A$1:INDIRECT(ADDRESS(MaxTransactions,1,1,,"Transactions")),A93,Transactions!$H$1:INDIRECT(ADDRESS(MaxTransactions,8,1,,"Transactions"))) -> 55.74 | D93: 500 | E93: 80.82191781 | F93: 444.26 | G93: 25.08191781 | H93: =COUNTIF(Transactions!$A$1:INDIRECT(ADDRESS(MaxTransactions,1,1,,"Transactions")),A93) -> 6 | J93: =MonthlyAverageV2($C$3,$C$4,$A93,TriggerField) -> 49.06 | K93: 49.06 | L93: 6.68 | M93: 0 | N93: 0 | O93: 0 | P93: 0 | Q93: 0 | R93: 0 | S93: 0 | T93: 0 | U93: 0 | V93: 0 | W93: 55.74 | Y93: 5080 | Z93: Cadeau's | AA93: 55.74 | AB93: 0 | AC93: 0 | AD93: 0
A94: 5499 | B94: Overig | C94: =-SUMIF(Transactions!$A$1:INDIRECT(ADDRESS(MaxTransactions,1,1,,"Transactions")),A94,Transactions!$H$1:INDIRECT(ADDRESS(MaxTransactions,8,1,,"Transactions"))) -> 0 | D94: 0 | E94: 0 | F94: 0 | G94: 0 | H94: =COUNTIF(Transactions!$A$1:INDIRECT(ADDRESS(MaxTransactions,1,1,,"Transactions")),A94) -> 0 | J94: =MonthlyAverageV2($C$3,$C$4,$A94,TriggerField) -> 0 | K94: 0 | L94: 0 | M94: 0 | N94: 0 | O94: 0 | P94: 0 | Q94: 0 | R94: 0 | S94: 0 | T94: 0 | U94: 0 | V94: 0 | W94: 0 | Y94: 5499 | Z94: Overig | AA94: 0 | AB94: 0 | AC94: 0 | AD94: 0
A96: 5500 | B96: Hobby's | C96: =SUM(C97:C100) -> 0 | D96: =SUM(D97:D100) -> 500 | E96: =SUM(E97:E100) -> 80.82191781 | F96: =SUM(F97:F100) -> 500 | G96: =SUM(G97:G100) -> 80.82191781 | H96: =SUM(H97:H100) -> 0 | J96: =MonthlyAverageV2($C$3,$C$4,$A96,TriggerField) -> 0 | K96: =SUM(K97:K100) -> 0 | L96: 0 | M96: 0 | N96: =SUM(N97:N100) -> 0 | O96: =SUM(O97:O100) -> 0 | P96: 0 | Q96: 0 | R96: 0 | S96: 0 | T96: 0 | U96: 0 | V96: 0 | W96: 0 | Y96: =A96 -> 5500 | Z96: Hobby's | AA96: =K96+L96+M96 -> 0 | AB96: =N96+O96+P96 -> 0 | AC96: =Q96+R96+S96 -> 0 | AD96: =T96+U96+V96 -> 0
A97: 5510 | B97: Wandelen / wandeluitrusting | C97: =-SUMIF(Transactions!$A$1:INDIRECT(ADDRESS(MaxTransactions,1,1,,"Transactions")),A97,Transactions!$H$1:INDIRECT(ADDRESS(MaxTransactions,8,1,,"Transactions"))) -> 0 | D97: 0 | E97: =($C$4/$C$5)*D97 -> 0 | F97: =D97-C97 -> 0 | G97: =E97-C97 -> 0 | H97: =COUNTIF(Transactions!$A$1:INDIRECT(ADDRESS(MaxTransactions,1,1,,"Transactions")),A97) -> 0 | J97: =MonthlyAverageV2($C$3,$C$4,$A97,TriggerField) -> 0 | K97: =MonthlyBalance(K$8,$A97,TriggerField) -> 0 | L97: 0 | M97: 0 | N97: 0 | O97: 0 | P97: 0 | Q97: 0 | R97: 0 | S97: 0 | T97: 0 | U97: 0 | V97: 0 | W97: 0 | Y97: 5510 | Z97: Wandelen / wandeluitrusting | AA97: =K97+L97+M97 -> 0 | AB97: =N97+O97+P97 -> 0 | AC97: =Q97+R97+S97 -> 0 | AD97: =T97+U97+V97 -> 0
A98: 5520 | B98: Zeilen / zeiluitrusting | C98: =-SUMIF(Transactions!$A$1:INDIRECT(ADDRESS(MaxTransactions,1,1,,"Transactions")),A98,Transactions!$H$1:INDIRECT(ADDRESS(MaxTransactions,8,1,,"Transactions"))) -> 0 | D98: 0 | E98: =($C$4/$C$5)*D98 -> 0 | F98: =D98-C98 -> 0 | G98: =E98-C98 -> 0 | H98: =COUNTIF(Transactions!$A$1:INDIRECT(ADDRESS(MaxTransactions,1,1,,"Transactions")),A98) -> 0 | J98: =MonthlyAverageV2($C$3,$C$4,$A98,TriggerField) -> 0 | K98: 0 | L98: 0 | M98: 0 | N98: 0 | O98: 0 | P98: 0 | Q98: 0 | R98: 0 | S98: 0 | T98: 0 | U98: 0 | V98: 0 | W98: 0 | Y98: 5520 | Z98: Zeilen / zeiluitrusting | AA98: =K98+L98+M98 -> 0 | AB98: =N98+O98+P98 -> 0 | AC98: =Q98+R98+S98 -> 0 | AD98: =T98+U98+V98 -> 0
A99: 5530 | B99: Duiken / duikuitrusting | C99: =-SUMIF(Transactions!$A$1:INDIRECT(ADDRESS(MaxTransactions,1,1,,"Transactions")),A99,Transactions!$H$1:INDIRECT(ADDRESS(MaxTransactions,8,1,,"Transactions"))) -> 0 | D99: 0 | E99: =($C$4/$C$5)*D99 -> 0 | F99: =D99-C99 -> 0 | G99: =E99-C99 -> 0 | H99: =COUNTIF(Transactions!$A$1:INDIRECT(ADDRESS(MaxTransactions,1,1,,"Transactions")),A99) -> 0 | J99: =MonthlyAverageV2($C$3,$C$4,$A99,TriggerField) -> 0 | K99: 0 | L99: 0 | M99: 0 | N99: 0 | O99: 0 | P99: 0 | Q99: 0 | R99: 0 | S99: 0 | T99: 0 | U99: 0 | V99: 0 | W99: 0 | Y99: 5530 | Z99: Duiken / duikuitrusting | AA99: =K99+L99+M99 -> 0 | AB99: =N99+O99+P99 -> 0 | AC99: =Q99+R99+S99 -> 0 | AD99: =T99+U99+V99 -> 0
A100: 5540 | B100: Sporten / Gezond Leven | C100: =-SUMIF(Transactions!$A$1:INDIRECT(ADDRESS(MaxTransactions,1,1,,"Transactions")),A100,Transactions!$H$1:INDIRECT(ADDRESS(MaxTransactions,8,1,,"Transactions"))) -> 0 | D100: 500 | E100: =($C$4/$C$5)*D100 -> 80.82191781 | F100: =D100-C100 -> 500 | G100: =E100-C100 -> 80.82191781 | H100: =COUNTIF(Transactions!$A$1:INDIRECT(ADDRESS(MaxTransactions,1,1,,"Transactions")),A100) -> 0 | J100: =MonthlyAverageV2($C$3,$C$4,$A100,TriggerField) -> 0 | K100: 0 | L100: 0 | M100: 0 | N100: 0 | O100: 0 | P100: 0 | Q100: 0 | R100: 0 | S100: 0 | T100: 0 | U100: 0 | V100: 0 | W100: 0 | Y100: =A100 -> 5540 | Z100: =B100 -> Sporten / Gezond Leven | AA100: =K100+L100+M100 -> 0 | AB100: =N100+O100+P100 -> 0 | AC100: =Q100+R100+S100 -> 0 | AD100: =T100+U100+V100 -> 0
A102: 6000 | B102: Reizen, vakanties en recreatie | C102: =SUM(C103:C108) -> 59.95 | D102: 2050 | E102: 331.369863 | F102: 1990.05 | G102: 271.419863 | H102: 1 | J102: =MonthlyAverageV2($C$3,$C$4,$A102,TriggerField) -> 0 | K102: =SUM(K103:K108) -> 0 | L102: 59.95 | M102: 0 | N102: 0 | O102: 0 | P102: 0 | Q102: 0 | R102: 0 | S102: 0 | T102: 0 | U102: 0 | V102: 0 | W102: 59.95 | Y102: =A102 -> 6000 | Z102: Reizen, vakanties en recreatie | AA102: =K102+L102+M102 -> 59.95 | AB102: =N102+O102+P102 -> 0 | AC102: =Q102+R102+S102 -> 0 | AD102: =T102+U102+V102 -> 0
A103: 6010 | B103: Grote vakanties | C103: =-SUMIF(Transactions!$A$1:INDIRECT(ADDRESS(MaxTransactions,1,1,,"Transactions")),A103,Transactions!$H$1:INDIRECT(ADDRESS(MaxTransactions,8,1,,"Transactions"))) -> 0 | D103: 1200 | E103: =($C$4/$C$5)*D103 -> 193.9726027 | F103: =D103-C103 -> 1200 | G103: =E103-C103 -> 193.9726027 | H103: =COUNTIF(Transactions!$A$1:INDIRECT(ADDRESS(MaxTransactions,1,1,,"Transactions")),A103) -> 0 | J103: =MonthlyAverageV2($C$3,$C$4,$A103,TriggerField) -> 0 | K103: =MonthlyBalance(K$8,$A103,TriggerField) -> 0 | L103: 0 | M103: 0 | N103: 0 | O103: 0 | P103: 0 | Q103: 0 | R103: 0 | S103: 0 | T103: 0 | U103: 0 | V103: 0 | W103: 0 | Y103: 6010 | Z103: Grote vakanties | AA103: 0 | AB103: 0 | AC103: 0 | AD103: 0
A104: 6020 | B104: Zeilvakanties | C104: =-SUMIF(Transactions!$A$1:INDIRECT(ADDRESS(MaxTransactions,1,1,,"Transactions")),A104,Transactions!$H$1:INDIRECT(ADDRESS(MaxTransactions,8,1,,"Transactions"))) -> 0 | D104: 0 | E104: 0 | F104: 0 | G104: 0 | H104: =COUNTIF(Transactions!$A$1:INDIRECT(ADDRESS(MaxTransactions,1,1,,"Transactions")),A104) -> 0 | J104: =MonthlyAverageV2($C$3,$C$4,$A104,TriggerField) -> 0 | K104: 0 | L104: 0 | M104: 0 | N104: 0 | O104: 0 | P104: 0 | Q104: 0 | R104: 0 | S104: 0 | T104: 0 | U104: 0 | V104: 0 | W104: 0 | Y104: 6020 | Z104: Zeilvakanties | AA104: 0 | AB104: 0 | AC104: 0 | AD104: 0
A105: 6030 | B105: Korte vakanties / weekendtrips | C105: =-SUMIF(Transactions!$A$1:INDIRECT(ADDRESS(MaxTransactions,1,1,,"Transactions")),A105,Transactions!$H$1:INDIRECT(ADDRESS(MaxTransactions,8,1,,"Transactions"))) -> 0 | D105: 500 | E105: 80.82191781 | F105: 500 | G105: 80.82191781 | H105: =COUNTIF(Transactions!$A$1:INDIRECT(ADDRESS(MaxTransactions,1,1,,"Transactions")),A105) -> 0 | J105: =MonthlyAverageV2($C$3,$C$4,$A105,TriggerField) -> 0 | K105: 0 | L105: 0 | M105: 0 | N105: 0 | O105: 0 | P105: 0 | Q105: 0 | R105: 0 | S105: 0 | T105: 0 | U105: 0 | V105: 0 | W105: 0 | Y105: 6030 | Z105: Korte vakanties / weekendtrips | AA105: 0 | AB105: 0 | AC105: 0 | AD105: 0
A106: 6040 | B106: Familiebezoek | C106: =-SUMIF(Transactions!$A$1:INDIRECT(ADDRESS(MaxTransactions,1,1,,"Transactions")),A106,Transactions!$H$1:INDIRECT(ADDRESS(MaxTransactions,8,1,,"Transactions"))) -> 0 | D106: 250 | E106: 40.4109589 | F106: 250 | G106: 40.4109589 | H106: =COUNTIF(Transactions!$A$1:INDIRECT(ADDRESS(MaxTransactions,1,1,,"Transactions")),A106) -> 0 | J106: =MonthlyAverageV2($C$3,$C$4,$A106,TriggerField) -> 0 | K106: 0 | L106: 0 | M106: 0 | N106: 0 | O106: 0 | P106: 0 | Q106: 0 | R106: 0 | S106: 0 | T106: 0 | U106: 0 | V106: 0 | W106: 0 | Y106: 6040 | Z106: Familiebezoek | AA106: 0 | AB106: 0 | AC106: 0 | AD106: 0
A107: 6050 | B107: Musea, parken, bioscoop, et cetera | C107: =-SUMIF(Transactions!$A$1:INDIRECT(ADDRESS(MaxTransactions,1,1,,"Transactions")),A107,Transactions!$H$1:INDIRECT(ADDRESS(MaxTransactions,8,1,,"Transactions"))) -> 59.95 | D107: 100 | E107: 16.16438356 | F107: 40.05 | G107: -43.78561644 | H107: =COUNTIF(Transactions!$A$1:INDIRECT(ADDRESS(MaxTransactions,1,1,,"Transactions")),A107) -> 1 | J107: =MonthlyAverageV2($C$3,$C$4,$A107,TriggerField) -> 0 | K107: 0 | L107: 59.95 | M107: 0 | N107: 0 | O107: 0 | P107: 0 | Q107: 0 | R107: 0 | S107: 0 | T107: 0 | U107: 0 | V107: 0 | W107: 59.95 | Y107: 6050 | Z107: Musea, parken, bioscoop, et cetera | AA107: 59.95 | AB107: 0 | AC107: 0 | AD107: 0
A108: 6099 | B108: Vakanties overig | C108: =-SUMIF(Transactions!$A$1:INDIRECT(ADDRESS(MaxTransactions,1,1,,"Transactions")),A108,Transactions!$H$1:INDIRECT(ADDRESS(MaxTransactions,8,1,,"Transactions"))) -> 0 | D108: 0 | E108: 0 | F108: 0 | G108: 0 | H108: =COUNTIF(Transactions!$A$1:INDIRECT(ADDRESS(MaxTransactions,1,1,,"Transactions")),A108) -> 0 | J108: =MonthlyAverageV2($C$3,$C$4,$A108,TriggerField) -> 0 | K108: 0 | L108: 0 | M108: 0 | N108: 0 | O108: 0 | P108: 0 | Q108: 0 | R108: 0 | S108: 0 | T108: 0 | U108: 0 | V108: 0 | W108: 0 | Y108: 6099 | Z108: Vakanties overig | AA108: 0 | AB108: 0 | AC108: 0 | AD108: 0
A110: 8000 | B110: Kasgeld en Overige | C110: =SUM(C111:C114) -> 2716 | D110: 15600 | E110: 2521.643836 | F110: 12884 | G110: -194.3561644 | H110: 2 | J110: =MonthlyAverageV2($C$3,$C$4,$A110,TriggerField) -> 1358 | K110: =SUM(K111:K114) -> 1358 | L110: 1358 | M110: 0 | N110: 0 | O110: 0 | P110: 0 | Q110: 0 | R110: 0 | S110: 0 | T110: 0 | U110: 0 | V110: 0 | W110: 2716 | Y110: =A110 -> 8000 | Z110: Kasgeld en Overige | AA110: =K110+L110+M110 -> 2716 | AB110: =N110+O110+P110 -> 0 | AC110: =Q110+R110+S110 -> 0 | AD110: =T110+U110+V110 -> 0
A111: 8010 | B111: Kasgeld | C111: =-SUMIF(Transactions!$A$1:INDIRECT(ADDRESS(MaxTransactions,1,1,,"Transactions")),A111,Transactions!$H$1:INDIRECT(ADDRESS(MaxTransactions,8,1,,"Transactions"))) -> 0 | D111: 0 | E111: =($C$4/$C$5)*D111 -> 0 | F111: =D111-C111 -> 0 | G111: =E111-C111 -> 0 | H111: =COUNTIF(Transactions!$A$1:INDIRECT(ADDRESS(MaxTransactions,1,1,,"Transactions")),A111) -> 0 | J111: =MonthlyAverageV2($C$3,$C$4,$A111,TriggerField) -> 0 | K111: =MonthlyBalance(K$8,$A111,TriggerField) -> 0 | L111: 0 | M111: 0 | N111: 0 | O111: 0 | P111: 0 | Q111: 0 | R111: 0 | S111: 0 | T111: 0 | U111: 0 | V111: 0 | W111: 0 | Y111: 8010 | Z111: Kasgeld | AA111: 0 | AB111: 0 | AC111: 0 | AD111: 0
A112: 8020 | B112: Belastingdienst | C112: =-SUMIF(Transactions!$A$1:INDIRECT(ADDRESS(MaxTransactions,1,1,,"Transactions")),A112,Transactions!$H$1:INDIRECT(ADDRESS(MaxTransactions,8,1,,"Transactions"))) -> 0 | D112: 0 | E112: =($C$4/$C$5)*D112 -> 0 | F112: =D112-C112 -> 0 | G112: =E112-C112 -> 0 | H112: =COUNTIF(Transactions!$A$1:INDIRECT(ADDRESS(MaxTransactions,1,1,,"Transactions")),A112) -> 0 | J112: =MonthlyAverageV2($C$3,$C$4,$A112,TriggerField) -> 0 | K112: 0 | L112: 0 | M112: 0 | N112: 0 | O112: 0 | P112: 0 | Q112: 0 | R112: 0 | S112: 0 | T112: 0 | U112: 0 | V112: 0 | W112: 0 | Y112: 8020 | Z112: Belastingdienst | AA112: 0 | AB112: 0 | AC112: 0 | AD112: 0
A113: 8090 | B113: Verrekening Relatie - Uit | C113: =-SUMIF(Transactions!$A$1:INDIRECT(ADDRESS(MaxTransactions,1,1,,"Transactions")),A113,Transactions!$H$1:INDIRECT(ADDRESS(MaxTransactions,8,1,,"Transactions"))) -> 2716 | D113: =Cashflow!Q13 -> 15600 | E113: =($C$4/$C$5)*D113 -> 2521.643836 | F113: =D113-C113 -> 12884 | G113: =E113-C113 -> -194.3561644 | H113: =COUNTIF(Transactions!$A$1:INDIRECT(ADDRESS(MaxTransactions,1,1,,"Transactions")),A113) -> 2 | J113: =MonthlyAverageV2($C$3,$C$4,$A113,TriggerField) -> 1358 | K113: 1358 | L113: 1358 | M113: 0 | N113: 0 | O113: 0 | P113: 0 | Q113: 0 | R113: 0 | S113: 0 | T113: 0 | U113: 0 | V113: 0 | W113: 2716 | Y113: 8090 | Z113: Verrekening Relatie - Uit | AA113: 2716 | AB113: 0 | AC113: 0 | AD113: 0
A114: 8099 | B114: Overig | C114: =-SUMIF(Transactions!$A$1:INDIRECT(ADDRESS(MaxTransactions,1,1,,"Transactions")),A114,Transactions!$H$1:INDIRECT(ADDRESS(MaxTransactions,8,1,,"Transactions"))) -> 0 | D114: 0 | E114: =($C$4/$C$5)*D114 -> 0 | F114: =D114-C114 -> 0 | G114: =E114-C114 -> 0 | H114: =COUNTIF(Transactions!$A$1:INDIRECT(ADDRESS(MaxTransactions,1,1,,"Transactions")),A114) -> 0 | J114: =MonthlyAverageV2($C$3,$C$4,$A114,TriggerField) -> 0 | K114: 0 | L114: 0 | M114: 0 | N114: 0 | O114: 0 | P114: 0 | Q114: 0 | R114: 0 | S114: 0 | T114: 0 | U114: 0 | V114: 0 | W114: 0 | Y114: 8099 | Z114: Overig | AA114: 0 | AB114: 0 | AC114: 0 | AD114: 0
A116: 8500 | B116: Reserve | C116: =SUM(C117:C119) -> 0 | D116: 0 | E116: 0 | F116: 0 | G116: 0 | H116: 0 | J116: =MonthlyAverageV2($C$3,$C$4,$A116,TriggerField) -> 0 | K116: =SUM(K117:K119) -> 0 | L116: 0 | M116: 0 | N116: 0 | O116: 0 | P116: 0 | Q116: 0 | R116: 0 | S116: 0 | T116: 0 | U116: 0 | V116: 0 | W116: 0 | Y116: =A116 -> 8500 | Z116: Reserve | AA116: =K116+L116+M116 -> 0 | AB116: =N116+O116+P116 -> 0 | AC116: =Q116+R116+S116 -> 0 | AD116: =T116+U116+V116 -> 0
A117: 8510 | B117: Reserve 1 | C117: =-SUMIF(Transactions!$A$1:INDIRECT(ADDRESS(MaxTransactions,1,1,,"Transactions")),A117,Transactions!$H$1:INDIRECT(ADDRESS(MaxTransactions,8,1,,"Transactions"))) -> 0 | D117: 0 | E117: =($C$4/$C$5)*D117 -> 0 | F117: =D117-C117 -> 0 | G117: =E117-C117 -> 0 | H117: =COUNTIF(Transactions!$A$1:INDIRECT(ADDRESS(MaxTransactions,1,1,,"Transactions")),A117) -> 0 | J117: =MonthlyAverageV2($C$3,$C$4,$A117,TriggerField) -> 0 | K117: =MonthlyBalance(K$8,$A117,TriggerField) -> 0 | L117: 0 | M117: 0 | N117: 0 | O117: 0 | P117: 0 | Q117: 0 | R117: 0 | S117: 0 | T117: 0 | U117: 0 | V117: 0 | W117: 0 | Y117: 8510 | Z117: Reserve 1 | AA117: 0 | AB117: 0 | AC117: 0 | AD117: 0
A118: 8520 | B118: Reserve 2 | C118: =-SUMIF(Transactions!$A$1:INDIRECT(ADDRESS(MaxTransactions,1,1,,"Transactions")),A118,Transactions!$H$1:INDIRECT(ADDRESS(MaxTransactions,8,1,,"Transactions"))) -> 0 | D118: 0 | E118: =($C$4/$C$5)*D118 -> 0 | F118: =D118-C118 -> 0 | G118: =E118-C118 -> 0 | H118: =COUNTIF(Transactions!$A$1:INDIRECT(ADDRESS(MaxTransactions,1,1,,"Transactions")),A118) -> 0 | J118: =MonthlyAverageV2($C$3,$C$4,$A118,TriggerField) -> 0 | K118: 0 | L118: 0 | M118: 0 | N118: 0 | O118: 0 | P118: 0 | Q118: 0 | R118: 0 | S118: 0 | T118: 0 | U118: 0 | V118: 0 | W118: 0 | Y118: 8520 | Z118: Reserve 2 | AA118: 0 | AB118: 0 | AC118: 0 | AD118: 0
A119: 8530 | B119: Reserve 3 | C119: =-SUMIF(Transactions!$A$1:INDIRECT(ADDRESS(MaxTransactions,1,1,,"Transactions")),A119,Transactions!$H$1:INDIRECT(ADDRESS(MaxTransactions,8,1,,"Transactions"))) -> 0 | D119: 0 | E119: =($C$4/$C$5)*D119 -> 0 | F119: =D119-C119 -> 0 | G119: =E119-C119 -> 0 | H119: =COUNTIF(Transactions!$A$1:INDIRECT(ADDRESS(MaxTransactions,1,1,,"Transactions")),A119) -> 0 | J119: =MonthlyAverageV2($C$3,$C$4,$A119,TriggerField) -> 0 | K119: 0 | L119: 0 | M119: 0 | N119: 0 | O119: 0 | P119: 0 | Q119: 0 | R119: 0 | S119: 0 | T119: 0 | U119: 0 | V119: 0 | W119: 0 | Y119: 8530 | Z119: Reserve 3 | AA119: 0 | AB119: 0 | AC119: 0 | AD119: 0
A121: 9000 | B121: Kruisrekeningen | C121: =-SUMIF(Transactions!$A$1:INDIRECT(ADDRESS(MaxTransactions,1,1,,"Transactions")),A121,Transactions!$H$1:INDIRECT(ADDRESS(MaxTransactions,8,1,,"Transactions"))) -> 1057.12 | H121: =COUNTIF(Transactions!$A$1:INDIRECT(ADDRESS(MaxTransactions,1,1,,"Transactions")),A121) -> 8 | J121: =MonthlyAverageV2($C$3,$C$4,$A121,TriggerField) -> 657.12 | K121: =MonthlyBalance(K$8,$A121,TriggerField) -> 657.12 | L121: 400 | M121: 0 | N121: 0 | O121: 0 | P121: 0 | Q121: 0 | R121: 0 | S121: 0 | T121: 0 | U121: 0 | V121: 0 | W121: 1057.12 | Y121: =A121 -> 9000 | Z121: =B121 -> Kruisrekeningen | AA121: =K121+L121+M121 -> 1057.12 | AB121: =N121+O121+P121 -> 0 | AC121: =Q121+R121+S121 -> 0 | AD121: =T121+U121+V121 -> 0
A122: 9010 | B122: Derdenrekening privé | C122: =-SUMIF(Transactions!$A$1:INDIRECT(ADDRESS(MaxTransactions,1,1,,"Transactions")),A122,Transactions!$H$1:INDIRECT(ADDRESS(MaxTransactions,8,1,,"Transactions"))) -> 0 | H122: =COUNTIF(Transactions!$A$1:INDIRECT(ADDRESS(MaxTransactions,1,1,,"Transactions")),A122) -> 0 | J122: =MonthlyAverageV2($C$3,$C$4,$A122,TriggerField) -> 0 | K122: 0 | L122: 0 | M122: 0 | N122: 0 | O122: 0 | P122: 0 | Q122: 0 | R122: 0 | S122: 0 | T122: 0 | U122: 0 | V122: 0 | W122: 0 | Y122: 9010 | Z122: Derdenrekening privé | AA122: 0 | AB122: 0 | AC122: 0 | AD122: 0
A123: 9020 | B123: Derdenrekening zakelijk (declaraties) | C123: =-SUMIF(Transactions!$A$1:INDIRECT(ADDRESS(MaxTransactions,1,1,,"Transactions")),A123,Transactions!$H$1:INDIRECT(ADDRESS(MaxTransactions,8,1,,"Transactions"))) -> 0 | H123: =COUNTIF(Transactions!$A$1:INDIRECT(ADDRESS(MaxTransactions,1,1,,"Transactions")),A123) -> 0 | J123: =MonthlyAverageV2($C$3,$C$4,$A123,TriggerField) -> 0 | K123: 0 | L123: 0 | M123: 0 | N123: 0 | O123: 0 | P123: 0 | Q123: 0 | R123: 0 | S123: 0 | T123: 0 | U123: 0 | V123: 0 | W123: 0 | Y123: 9020 | Z123: Derdenrekening zakelijk (declaraties) | AA123: 0 | AB123: 0 | AC123: 0 | AD123: 0
A124: 9030 | B124: Beleggingsrekening | C124: =-SUMIF(Transactions!$A$1:INDIRECT(ADDRESS(MaxTransactions,1,1,,"Transactions")),A124,Transactions!$H$1:INDIRECT(ADDRESS(MaxTransactions,8,1,,"Transactions"))) -> 2200 | D124: =Cashflow!Q10 -> 12000 | E124: =($C$4/$C$5)*D124 -> 1939.726027 | F124: =D124-C124 -> 9800 | G124: =E124-C124 -> -260.2739726 | H124: =COUNTIF(Transactions!$A$1:INDIRECT(ADDRESS(MaxTransactions,1,1,,"Transactions")),A124) -> 3 | J124: =MonthlyAverageV2($C$3,$C$4,$A124,TriggerField) -> 1000 | K124: 1000 | L124: 1200 | M124: 0 | N124: 0 | O124: 0 | P124: 0 | Q124: 0 | R124: 0 | S124: 0 | T124: 0 | U124: 0 | V124: 0 | W124: 2200 | Y124: 9030 | Z124: Beleggingsrekening | AA124: 2200 | AB124: 0 | AC124: 0 | AD124: 0
A125: 9040 | B125: Bufferspaarrekening | C125: =-SUMIF(Transactions!$A$1:INDIRECT(ADDRESS(MaxTransactions,1,1,,"Transactions")),A125,Transactions!$H$1:INDIRECT(ADDRESS(MaxTransactions,8,1,,"Transactions"))) -> 0 | H125: =COUNTIF(Transactions!$A$1:INDIRECT(ADDRESS(MaxTransactions,1,1,,"Transactions")),A125) -> 0 | J125: =MonthlyAverageV2($C$3,$C$4,$A125,TriggerField) -> 0 | K125: 0 | L125: 0 | M125: 0 | N125: 0 | O125: 0 | P125: 0 | Q125: 0 | R125: 0 | S125: 0 | T125: 0 | U125: 0 | V125: 0 | W125: 0 | Y125: 9040 | Z125: Bufferspaarrekening | AA125: 0 | AB125: 0 | AC125: 0 | AD125: 0
A126: 9050 | B126: Aflossing | C126: =-SUMIF(Transactions!$A$1:INDIRECT(ADDRESS(MaxTransactions,1,1,,"Transactions")),A126,Transactions!$H$1:INDIRECT(ADDRESS(MaxTransactions,8,1,,"Transactions"))) -> 1860 | D126: =Cashflow!Q11+Cashflow!Q12 -> 10800 | E126: =($C$4/$C$5)*D126 -> 1745.753425 | F126: =D126-C126 -> 8940 | G126: =E126-C126 -> -114.2465753 | H126: =COUNTIF(Transactions!$A$1:INDIRECT(ADDRESS(MaxTransactions,1,1,,"Transactions")),A126) -> 4 | J126: =MonthlyAverageV2($C$3,$C$4,$A126,TriggerField) -> 930 | K126: 930 | L126: 930 | M126: 0 | N126: 0 | O126: 0 | P126: 0 | Q126: 0 | R126: 0 | S126: 0 | T126: 0 | U126: 0 | V126: 0 | W126: 1860 | Y126: 9050 | Z126: Aflossing | AA126: 1860 | AB126: 0 | AC126: 0 | AD126: 0
A127: 9060 | B127: Naar Spaarrekening (reserve) | C127: =-SUMIF(Transactions!$A$1:INDIRECT(ADDRESS(MaxTransactions,1,1,,"Transactions")),A127,Transactions!$H$1:INDIRECT(ADDRESS(MaxTransactions,8,1,,"Transactions"))) -> 0 | D127: 0 | E127: =($C$4/$C$5)*D127 -> 0 | F127: =D127-C127 -> 0 | G127: =E127-C127 -> 0 | H127: =COUNTIF(Transactions!$A$1:INDIRECT(ADDRESS(MaxTransactions,1,1,,"Transactions")),A127) -> 0 | J127: =MonthlyAverageV2($C$3,$C$4,$A127,TriggerField) -> 0 | K127: 0 | L127: 0 | M127: 0 | N127: 0 | O127: 0 | P127: 0 | Q127: 0 | R127: 0 | S127: 0 | T127: 0 | U127: 0 | V127: 0 | W127: 0 | Y127: 9060 | Z127: Naar Spaarrekening (reserve) | AA127: 0 | AB127: 0 | AC127: 0 | AD127: 0
A128: 9070 | B128: Kas Uit | C128: =-SUMIF(Transactions!$A$1:INDIRECT(ADDRESS(MaxTransactions,1,1,,"Transactions")),A128,Transactions!$H$1:INDIRECT(ADDRESS(MaxTransactions,8,1,,"Transactions"))) -> 0 | H128: =COUNTIF(Transactions!$A$1:INDIRECT(ADDRESS(MaxTransactions,1,1,,"Transactions")),A128) -> 0 | J128: =MonthlyAverageV2($C$3,$C$4,$A128,TriggerField) -> 0 | K128: 0 | L128: 0 | M128: 0 | N128: 0 | O128: 0 | P128: 0 | Q128: 0 | R128: 0 | S128: 0 | T128: 0 | U128: 0 | V128: 0 | W128: 0 | Y128: 9070 | Z128: Kas Uit | AA128: 0 | AB128: 0 | AC128: 0 | AD128: 0
A129: 9099 | B129: Overige | C129: =-SUMIF(Transactions!$A$1:INDIRECT(ADDRESS(MaxTransactions,1,1,,"Transactions")),A129,Transactions!$H$1:INDIRECT(ADDRESS(MaxTransactions,8,1,,"Transactions"))) -> 0 | H129: =COUNTIF(Transactions!$A$1:INDIRECT(ADDRESS(MaxTransactions,1,1,,"Transactions")),A129) -> 0 | J129: =MonthlyAverageV2($C$3,$C$4,$A129,TriggerField) -> 0 | K129: 0 | L129: 0 | M129: 0 | N129: 0 | O129: 0 | P129: 0 | Q129: 0 | R129: 0 | S129: 0 | T129: 0 | U129: 0 | V129: 0 | W129: 0 | Y129: =A129 -> 9099 | Z129: =B129 -> Overige | AA129: =K129+L129+M129 -> 0 | AB129: =N129+O129+P129 -> 0 | AC129: =Q129+R129+S129 -> 0 | AD129: =T129+U129+V129 -> 0
A131: 9800 | B131: Totaal Voorzieningen | C131: =SUM(C132:C142) -> 2100 | D131: =SUM(D132:D142) -> 11340 | E131: =SUM(E132:E142) -> 1833.041096 | F131: -9240 | G131: 266.9589041 | H131: 11 | J131: =MonthlyAverageV2($C$3,$C$4,$A131,TriggerField) -> 1100 | K131: =SUM(K132:K142) -> 1100 | L131: =SUM(L132:L142) -> 1000 | M131: 0 | N131: 0 | O131: 0 | P131: 0 | Q131: 0 | R131: 0 | S131: 0 | T131: 0 | U131: 0 | V131: 0 | W131: 2100 | Y131: =A131 -> 9800 | Z131: =B131 -> Totaal Voorzieningen | AA131: =SUM(AA132:AA142) -> 2100 | AB131: =SUM(AB132:AB142) -> 0 | AC131: =SUM(AC132:AC142) -> 0 | AD131: =SUM(AD132:AD142) -> 0
A132: 9810 | B132: Voorziening Zorgverzekering | C132: =-SUMIF(Transactions!$A$1:INDIRECT(ADDRESS(MaxTransactions,1,1,,"Transactions")),A132,Transactions!$H$1:INDIRECT(ADDRESS(MaxTransactions,8,1,,"Transactions"))) -> 200 | D132: =Cashflow!Q14 -> 1200 | E132: =($C$4/$C$5)*D132 -> 193.9726027 | F132: =-(D132-C132) -> -1000 | G132: =-(E132-C132) -> 6.02739726 | H132: =COUNTIF(Transactions!$A$1:INDIRECT(ADDRESS(MaxTransactions,1,1,,"Transactions")),A132) -> 2 | J132: =MonthlyAverageV2($C$3,$C$4,$A132,TriggerField) -> 100 | K132: =MonthlyBalance(K$8,$A132,TriggerField) -> 100 | L132: 100 | M132: 0 | N132: 0 | O132: 0 | P132: 0 | Q132: 0 | R132: 0 | S132: 0 | T132: 0 | U132: 0 | V132: 0 | W132: 200 | Y132: 9810 | Z132: Voorziening Zorgverzekering | AA132: =K132+L132+M132 -> 200 | AB132: =N132+O132+P132 -> 0 | AC132: =Q132+R132+S132 -> 0 | AD132: =T132+U132+V132 -> 0
A133: 9820 | B133: Voorziening Vakanties | C133: =-SUMIF(Transactions!$A$1:INDIRECT(ADDRESS(MaxTransactions,1,1,,"Transactions")),A133,Transactions!$H$1:INDIRECT(ADDRESS(MaxTransactions,8,1,,"Transactions"))) -> 400 | D133: =Cashflow!Q15 -> 2400 | E133: 387.9452055 | F133: =-(D133-C133) -> -2000 | G133: =-(E133-C133) -> 12.05479452 | H133: =COUNTIF(Transactions!$A$1:INDIRECT(ADDRESS(MaxTransactions,1,1,,"Transactions")),A133) -> 2 | J133: =MonthlyAverageV2($C$3,$C$4,$A133,TriggerField) -> 200 | K133: 200 | L133: 200 | M133: 0 | N133: 0 | O133: 0 | P133: 0 | Q133: 0 | R133: 0 | S133: 0 | T133: 0 | U133: 0 | V133: 0 | W133: 400 | Y133: =A133 -> 9820 | Z133: =B133 -> Voorziening Vakanties | AA133: =K133+L133+M133 -> 400 | AB133: =N133+O133+P133 -> 0 | AC133: =Q133+R133+S133 -> 0 | AD133: =T133+U133+V133 -> 0
A134: 9830 | B134: Voorziening Gezond Leven | C134: =-SUMIF(Transactions!$A$1:INDIRECT(ADDRESS(MaxTransactions,1,1,,"Transactions")),A134,Transactions!$H$1:INDIRECT(ADDRESS(MaxTransactions,8,1,,"Transactions"))) -> 600 | D134: =Cashflow!Q16 -> 1200 | E134: 193.9726027 | F134: -600 | G134: 406.0273973 | H134: =COUNTIF(Transactions!$A$1:INDIRECT(ADDRESS(MaxTransactions,1,1,,"Transactions")),A134) -> 2 | J134: =MonthlyAverageV2($C$3,$C$4,$A134,TriggerField) -> 300 | K134: 300 | L134: 300 | M134: 0 | N134: 0 | O134: 0 | P134: 0 | Q134: 0 | R134: 0 | S134: 0 | T134: 0 | U134: 0 | V134: 0 | W134: 600 | Y134: 9830 | Z134: Voorziening Gezond Leven | AA134: 600 | AB134: 0 | AC134: 0 | AD134: 0
A135: 9840 | B135: Voorziening Kleding | C135: =-SUMIF(Transactions!$A$1:INDIRECT(ADDRESS(MaxTransactions,1,1,,"Transactions")),A135,Transactions!$H$1:INDIRECT(ADDRESS(MaxTransactions,8,1,,"Transactions"))) -> 600 | D135: =Cashflow!Q17 -> 2400 | E135: 387.9452055 | F135: -1800 | G135: 212.0547945 | H135: =COUNTIF(Transactions!$A$1:INDIRECT(ADDRESS(MaxTransactions,1,1,,"Transactions")),A135) -> 2 | J135: =MonthlyAverageV2($C$3,$C$4,$A135,TriggerField) -> 300 | K135: 300 | L135: 300 | M135: 0 | N135: 0 | O135: 0 | P135: 0 | Q135: 0 | R135: 0 | S135: 0 | T135: 0 | U135: 0 | V135: 0 | W135: 600 | Y135: 9840 | Z135: Voorziening Kleding | AA135: 600 | AB135: 0 | AC135: 0 | AD135: 0
A136: 9850 | B136: Voorziening Gadgets / Tech | C136: =-SUMIF(Transactions!$A$1:INDIRECT(ADDRESS(MaxTransactions,1,1,,"Transactions")),A136,Transactions!$H$1:INDIRECT(ADDRESS(MaxTransactions,8,1,,"Transactions"))) -> 300 | D136: =Cashflow!Q18 -> 1200 | E136: 193.9726027 | F136: -900 | G136: 106.0273973 | H136: =COUNTIF(Transactions!$A$1:INDIRECT(ADDRESS(MaxTransactions,1,1,,"Transactions")),A136) -> 3 | J136: =MonthlyAverageV2($C$3,$C$4,$A136,TriggerField) -> 200 | K136: 200 | L136: 100 | M136: 0 | N136: 0 | O136: 0 | P136: 0 | Q136: 0 | R136: 0 | S136: 0 | T136: 0 | U136: 0 | V136: 0 | W136: 300 | Y136: 9850 | Z136: Voorziening Gadgets / Tech | AA136: 300 | AB136: 0 | AC136: 0 | AD136: 0
A137: 9860 | B137: Voorziening Onderhoud Huis | C137: =-SUMIF(Transactions!$A$1:INDIRECT(ADDRESS(MaxTransactions,1,1,,"Transactions")),A137,Transactions!$H$1:INDIRECT(ADDRESS(MaxTransactions,8,1,,"Transactions"))) -> 0 | D137: =Cashflow!Q19 -> 1200 | E137: 193.9726027 | F137: -1200 | G137: -193.9726027 | H137: =COUNTIF(Transactions!$A$1:INDIRECT(ADDRESS(MaxTransactions,1,1,,"Transactions")),A137) -> 0 | J137: =MonthlyAverageV2($C$3,$C$4,$A137,TriggerField) -> 0 | K137: 0 | L137: 0 | M137: 0 | N137: 0 | O137: 0 | P137: 0 | Q137: 0 | R137: 0 | S137: 0 | T137: 0 | U137: 0 | V137: 0 | W137: 0 | Y137: 9860 | Z137: Voorziening Onderhoud Huis | AA137: 0 | AB137: 0 | AC137: 0 | AD137: 0
A138: 9870 | B138: Voorziening Bril | C138: =-SUMIF(Transactions!$A$1:INDIRECT(ADDRESS(MaxTransactions,1,1,,"Transactions")),A138,Transactions!$H$1:INDIRECT(ADDRESS(MaxTransactions,8,1,,"Transactions"))) -> 0 | D138: =Cashflow!Q20 -> 600 | E138: 96.98630137 | F138: -600 | G138: -96.98630137 | H138: =COUNTIF(Transactions!$A$1:INDIRECT(ADDRESS(MaxTransactions,1,1,,"Transactions")),A138) -> 0 | J138: =MonthlyAverageV2($C$3,$C$4,$A138,TriggerField) -> 0 | K138: 0 | L138: 0 | M138: 0 | N138: 0 | O138: 0 | P138: 0 | Q138: 0 | R138: 0 | S138: 0 | T138: 0 | U138: 0 | V138: 0 | W138: 0 | Y138: 9870 | Z138: Voorziening Bril | AA138: 0 | AB138: 0 | AC138: 0 | AD138: 0
A139: 9880 | B139: Voorziening Economist abbo | C139: =-SUMIF(Transactions!$A$1:INDIRECT(ADDRESS(MaxTransactions,1,1,,"Transactions")),A139,Transactions!$H$1:INDIRECT(ADDRESS(MaxTransactions,8,1,,"Transactions"))) -> 0 | D139: =Cashflow!Q21 -> 240 | E139: 38.79452055 | F139: -240 | G139: -38.79452055 | H139: =COUNTIF(Transactions!$A$1:INDIRECT(ADDRESS(MaxTransactions,1,1,,"Transactions")),A139) -> 0 | J139: =MonthlyAverageV2($C$3,$C$4,$A139,TriggerField) -> 0 | K139: 0 | L139: 0 | M139: 0 | N139: 0 | O139: 0 | P139: 0 | Q139: 0 | R139: 0 | S139: 0 | T139: 0 | U139: 0 | V139: 0 | W139: 0 | Y139: 9880 | Z139: Voorziening Economist abbo | AA139: 0 | AB139: 0 | AC139: 0 | AD139: 0
A140: 9890 | B140: Voorziening Eigen Risico Zorg | C140: =-SUMIF(Transactions!$A$1:INDIRECT(ADDRESS(MaxTransactions,1,1,,"Transactions")),A140,Transactions!$H$1:INDIRECT(ADDRESS(MaxTransactions,8,1,,"Transactions"))) -> 0 | D140: =Cashflow!Q22 -> 900 | E140: =($C$4/$C$5)*D140 -> 145.4794521 | F140: =-(D140-C140) -> -900 | G140: =-(E140-C140) -> -145.4794521 | H140: =COUNTIF(Transactions!$A$1:INDIRECT(ADDRESS(MaxTransactions,1,1,,"Transactions")),A140) -> 0 | J140: =MonthlyAverageV2($C$3,$C$4,$A140,TriggerField) -> 0 | K140: 0 | L140: 0 | M140: 0 | N140: 0 | O140: 0 | P140: 0 | Q140: 0 | R140: 0 | S140: 0 | T140: 0 | U140: 0 | V140: 0 | W140: =SUM(K140:V140) -> 0 | Y140: =A140 -> 9890 | Z140: =B140 -> Voorziening Eigen Risico Zorg | AA140: =K140+L140+M140 -> 0 | AB140: =N140+O140+P140 -> 0 | AC140: =Q140+R140+S140 -> 0 | AD140: =T140+U140+V140 -> 0
A141: 9900 | B141: Voorziening Overige | C141: =-SUMIF(Transactions!$A$1:INDIRECT(ADDRESS(MaxTransactions,1,1,,"Transactions")),A141,Transactions!$H$1:INDIRECT(ADDRESS(MaxTransactions,8,1,,"Transactions"))) -> 0 | D141: =Cashflow!Q23 -> 0 | E141: =($C$4/$C$5)*D141 -> 0 | F141: =-(D141-C141) -> 0 | G141: =-(E141-C141) -> 0 | H141: =COUNTIF(Transactions!$A$1:INDIRECT(ADDRESS(MaxTransactions,1,1,,"Transactions")),A141) -> 0 | J141: =MonthlyAverageV2($C$3,$C$4,$A141,TriggerField) -> 0 | K141: 0 | L141: 0 | M141: 0 | N141: 0 | O141: 0 | P141: 0 | Q141: 0 | R141: 0 | S141: 0 | T141: 0 | U141: 0 | V141: 0 | W141: =SUM(K141:V141) -> 0 | Y141: =A141 -> 9900 | Z141: =B141 -> Voorziening Overige | AA141: =K141+L141+M141 -> 0 | AB141: =N141+O141+P141 -> 0 | AC141: =Q141+R141+S141 -> 0 | AD141: =T141+U141+V141 -> 0
A142: 9990 | B142: Voorziening Inkomensbuffer | C142: =-SUMIF(Transactions!$A$1:INDIRECT(ADDRESS(MaxTransactions,1,1,,"Transactions")),A142,Transactions!$H$1:INDIRECT(ADDRESS(MaxTransactions,8,1,,"Transactions"))) -> 0 | D142: =Cashflow!Q23 -> 0 | E142: 0 | F142: 0 | G142: 0 | H142: =COUNTIF(Transactions!$A$1:INDIRECT(ADDRESS(MaxTransactions,1,1,,"Transactions")),A142) -> 0 | J142: =MonthlyAverageV2($C$3,$C$4,$A142,TriggerField) -> 0 | K142: 0 | L142: 0 | M142: 0 | N142: 0 | O142: 0 | P142: 0 | Q142: 0 | R142: 0 | S142: 0 | T142: 0 | U142: 0 | V142: 0 | W142: 0 | Y142: 9990 | Z142: Voorziening Inkomensbuffer | AA142: 0 | AB142: 0 | AC142: 0 | AD142: 0
B144: Totaal (ex Kruisrekeningen) | C144: =C13+C23+C34+C45+C53+C65+C72+C83+C96+C102+C110+C116 -> 6846.89 | D144: =D13+D23+D34+D45+D53+D65+D72+D83+D96+D102+D110+D116 -> 31028.65 | E144: =E13+E23+E34+E45+E53+E65+E72+E83+E96+E102+E110+E116 -> 5015.59 | F144: =F13+F23+F34+F45+F53+F65+F72+F83+F96+F102+F110+F116 -> 24181.76 | G144: =G13+G23+G34+G45+G53+G65+G72+G83+G96+G102+G110+G116 -> -1831.3 | H144: =H13+H23+H34+H45+H53+H65+H72+H83+H96+H102+H110+H116+SUM(H121:H129) -> 128 | K144: =K13+K23+K34+K45+K53+K65+K72+K83+K96+K102+K110+K116 -> 2811.9 | L144: 4034.99 | M144: 0 | N144: 0 | O144: 0 | P144: 0 | Q144: 0 | R144: 0 | S144: 0 | T144: 0 | U144: 0 | V144: 0 | W144: =SUM(K144:V144) -> 6846.89 | Z144: =B144 -> Totaal (ex Kruisrekeningen) | AA144: =AA13+AA23+AA34+AA45+AA53+AA65+AA72+AA83+AA96+AA102+AA110+AA116 -> 6846.89 | AB144: =AB13+AB23+AB34+AB45+AB53+AB65+AB72+AB83+AB96+AB102+AB110+AB116 -> 0 | AC144: =AC13+AC23+AC34+AC45+AC53+AC65+AC72+AC83+AC96+AC102+AC110+AC116 -> 0 | AD144: =AD13+AD23+AD34+AD45+AD53+AD65+AD72+AD83+AD96+AD102+AD110+AD116 -> 0
B147: Inkomsten
A149: 100 | B149: Salaris | C149: =SUMIF(Transactions!$A$1:INDIRECT(ADDRESS(MaxTransactions,1,1,,"Transactions")),A149,Transactions!$H$1:INDIRECT(ADDRESS(MaxTransactions,8,1,,"Transactions"))) -> 9798.32 | D149: =Cashflow!Q8 -> 58800 | E149: =($C$4/$C$5)*D149 -> 9504.657534 | F149: =-(D149-C149) -> -49001.68 | G149: =-(E149-C149) -> 293.6624658 | H149: =COUNTIF(Transactions!$A$1:INDIRECT(ADDRESS(MaxTransactions,1,1,,"Transactions")),A149) -> 2 | J149: =MonthlyAverageV2($C$3,$C$4,$A149,TriggerField) -> 4899.16 | K149: =-MonthlyBalance(K$8,$A149,TriggerField) -> 4899.16 | L149: 4899.16 | M149: 0 | N149: 0 | O149: 0 | P149: 0 | Q149: 0 | R149: 0 | S149: 0 | T149: 0 | U149: 0 | V149: 0 | W149: =SUM(K149:V149) -> 9798.32 | Y149: =A149 -> 100 | Z149: Salaris | AA149: =K149+L149+M149 -> 9798.32 | AB149: =N149+O149+P149 -> 0 | AC149: =Q149+R149+S149 -> 0 | AD149: =T149+U149+V149 -> 0
A150: 110 | B150: Belastingdienst | C150: =SUMIF(Transactions!$A$1:INDIRECT(ADDRESS(MaxTransactions,1,1,,"Transactions")),A150,Transactions!$H$1:INDIRECT(ADDRESS(MaxTransactions,8,1,,"Transactions"))) -> 0 | D150: 0 | E150: 0 | F150: 0 | G150: 0 | H150: =COUNTIF(Transactions!$A$1:INDIRECT(ADDRESS(MaxTransactions,1,1,,"Transactions")),A150) -> 0 | J150: =MonthlyAverageV2($C$3,$C$4,$A150,TriggerField) -> 0 | K150: 0 | L150: 0 | M150: 0 | N150: 0 | O150: 0 | P150: 0 | Q150: 0 | R150: 0 | S150: 0 | T150: 0 | U150: 0 | V150: 0 | W150: 0 | Y150: 110 | Z150: Belastingdienst | AA150: 0 | AB150: =N150+O150+P150 -> 0 | AC150: 0 | AD150: 0
A151: 120 | B151: Uitkeringen Verzekering | C151: =SUMIF(Transactions!$A$1:INDIRECT(ADDRESS(MaxTransactions,1,1,,"Transactions")),A151,Transactions!$H$1:INDIRECT(ADDRESS(MaxTransactions,8,1,,"Transactions"))) -> 0 | D151: 0 | E151: 0 | F151: 0 | G151: 0 | H151: =COUNTIF(Transactions!$A$1:INDIRECT(ADDRESS(MaxTransactions,1,1,,"Transactions")),A151) -> 0 | J151: =MonthlyAverageV2($C$3,$C$4,$A151,TriggerField) -> 0 | K151: 0 | L151: 0 | M151: 0 | N151: 0 | O151: 0 | P151: 0 | Q151: 0 | R151: 0 | S151: 0 | T151: 0 | U151: 0 | V151: 0 | W151: 0 | Y151: 120 | Z151: Uitkeringen Verzekering | AA151: 0 | AB151: 0 | AC151: 0 | AD151: 0
A152: 130 | B152: Websites | C152: =SUMIF(Transactions!$A$1:INDIRECT(ADDRESS(MaxTransactions,1,1,,"Transactions")),A152,Transactions!$H$1:INDIRECT(ADDRESS(MaxTransactions,8,1,,"Transactions"))) -> 0 | D152: 200 | E152: 32.32876712 | F152: -200 | G152: -32.32876712 | H152: =COUNTIF(Transactions!$A$1:INDIRECT(ADDRESS(MaxTransactions,1,1,,"Transactions")),A152) -> 0 | J152: =MonthlyAverageV2($C$3,$C$4,$A152,TriggerField) -> 0 | K152: 0 | L152: 0 | M152: 0 | N152: 0 | O152: 0 | P152: 0 | Q152: 0 | R152: 0 | S152: 0 | T152: 0 | U152: 0 | V152: 0 | W152: 0 | Y152: 130 | Z152: Websites | AA152: 0 | AB152: 0 | AC152: 0 | AD152: 0
A153: 140 | B153: Neveninkomsten | C153: =SUMIF(Transactions!$A$1:INDIRECT(ADDRESS(MaxTransactions,1,1,,"Transactions")),A153,Transactions!$H$1:INDIRECT(ADDRESS(MaxTransactions,8,1,,"Transactions"))) -> 0 | D153: 0 | E153: 0 | F153: 0 | G153: 0 | H153: =COUNTIF(Transactions!$A$1:INDIRECT(ADDRESS(MaxTransactions,1,1,,"Transactions")),A153) -> 0 | J153: =MonthlyAverageV2($C$3,$C$4,$A153,TriggerField) -> 0 | K153: 0 | L153: 0 | M153: 0 | N153: 0 | O153: 0 | P153: 0 | Q153: 0 | R153: 0 | S153: 0 | T153: 0 | U153: 0 | V153: 0 | W153: 0 | Y153: 140 | Z153: Neveninkomsten | AA153: 0 | AB153: 0 | AC153: 0 | AD153: 0
A154: 150 | B154: Giften | C154: =SUMIF(Transactions!$A$1:INDIRECT(ADDRESS(MaxTransactions,1,1,,"Transactions")),A154,Transactions!$H$1:INDIRECT(ADDRESS(MaxTransactions,8,1,,"Transactions"))) -> 0 | D154: 0 | E154: 0 | F154: 0 | G154: 0 | H154: =COUNTIF(Transactions!$A$1:INDIRECT(ADDRESS(MaxTransactions,1,1,,"Transactions")),A154) -> 0 | J154: =MonthlyAverageV2($C$3,$C$4,$A154,TriggerField) -> 0 | K154: 0 | L154: 0 | M154: 0 | N154: 0 | O154: 0 | P154: 0 | Q154: 0 | R154: 0 | S154: 0 | T154: 0 | U154: 0 | V154: 0 | W154: 0 | Y154: 150 | Z154: Giften | AA154: 0 | AB154: 0 | AC154: 0 | AD154: 0
A155: 160 | B155: Verrekening Relatie - In - Vriendin | C155: =SUMIF(Transactions!$A$1:INDIRECT(ADDRESS(MaxTransactions,1,1,,"Transactions")),A155,Transactions!$H$1:INDIRECT(ADDRESS(MaxTransactions,8,1,,"Transactions"))) -> 0 | D155: 0 | E155: 0 | F155: 0 | G155: 0 | H155: =COUNTIF(Transactions!$A$1:INDIRECT(ADDRESS(MaxTransactions,1,1,,"Transactions")),A155) -> 0 | J155: =MonthlyAverageV2($C$3,$C$4,$A155,TriggerField) -> 0 | K155: 0 | L155: 0 | M155: 0 | N155: 0 | O155: 0 | P155: 0 | Q155: 0 | R155: 0 | S155: 0 | T155: 0 | U155: 0 | V155: 0 | W155: 0 | Y155: 160 | Z155: Verrekening Relatie - In - Vriendin | AA155: 0 | AB155: 0 | AC155: 0 | AD155: 0
A156: 170 | B156: Verrekening Relatie - In - Geldnerd | C156: =SUMIF(Transactions!$A$1:INDIRECT(ADDRESS(MaxTransactions,1,1,,"Transactions")),A156,Transactions!$H$1:INDIRECT(ADDRESS(MaxTransactions,8,1,,"Transactions"))) -> 0 | D156: 0 | E156: =($C$4/$C$5)*D156 -> 0 | F156: =-(D156-C156) -> 0 | G156: =-(E156-C156) -> 0 | H156: =COUNTIF(Transactions!$A$1:INDIRECT(ADDRESS(MaxTransactions,1,1,,"Transactions")),A156) -> 0 | J156: =MonthlyAverageV2($C$3,$C$4,$A156,TriggerField) -> 0 | K156: 0 | L156: 0 | M156: 0 | N156: 0 | O156: 0 | P156: 0 | Q156: 0 | R156: 0 | S156: 0 | T156: 0 | U156: 0 | V156: 0 | W156: 0 | Y156: =A156 -> 170 | Z156: =B156 -> Verrekening Relatie - In - Geldnerd | AA156: =K156+L156+M156 -> 0 | AB156: =N156+O156+P156 -> 0 | AC156: =Q156+R156+S156 -> 0 | AD156: =T156+U156+V156 -> 0
A157: 190 | B157: Overig | C157: =SUMIF(Transactions!$A$1:INDIRECT(ADDRESS(MaxTransactions,1,1,,"Transactions")),A157,Transactions!$H$1:INDIRECT(ADDRESS(MaxTransactions,8,1,,"Transactions"))) -> 20 | D157: 0 | E157: 0 | F157: 20 | G157: 20 | H157: =COUNTIF(Transactions!$A$1:INDIRECT(ADDRESS(MaxTransactions,1,1,,"Transactions")),A157) -> 2 | J157: =MonthlyAverageV2($C$3,$C$4,$A157,TriggerField) -> 20 | K157: 20 | L157: 0 | M157: 0 | N157: 0 | O157: 0 | P157: 0 | Q157: 0 | R157: 0 | S157: 0 | T157: 0 | U157: 0 | V157: 0 | W157: 20 | Y157: =A157 -> 190 | Z157: =B157 -> Overig | AA157: 20 | AB157: 0 | AC157: 0 | AD157: 0
A159: 900 | B159: Kruisrekeningen | C159: =SUMIF(Transactions!$A$1:INDIRECT(ADDRESS(MaxTransactions,1,1,,"Transactions")),A159,Transactions!$H$1:INDIRECT(ADDRESS(MaxTransactions,8,1,,"Transactions"))) -> 1012.29 | H159: =COUNTIF(Transactions!$A$1:INDIRECT(ADDRESS(MaxTransactions,1,1,,"Transactions")),A159) -> 7 | J159: =MonthlyAverageV2($C$3,$C$4,$A159,TriggerField) -> 612.29 | K159: =-MonthlyBalance(K$8,$A159,TriggerField) -> 612.29 | L159: 400 | M159: 0 | N159: 0 | O159: 0 | P159: 0 | Q159: 0 | R159: 0 | S159: 0 | T159: 0 | U159: 0 | V159: 0 | W159: 1012.29 | Y159: =A159 -> 900 | Z159: =B159 -> Kruisrekeningen | AA159: =K159+L159+M159 -> 1012.29 | AB159: =N159+O159+P159 -> 0 | AC159: =Q159+R159+S159 -> 0 | AD159: =T159+U159+V159 -> 0
A160: 901 | B160: Derdenrekening privé | C160: =SUMIF(Transactions!$A$1:INDIRECT(ADDRESS(MaxTransactions,1,1,,"Transactions")),A160,Transactions!$H$1:INDIRECT(ADDRESS(MaxTransactions,8,1,,"Transactions"))) -> 0 | H160: =COUNTIF(Transactions!$A$1:INDIRECT(ADDRESS(MaxTransactions,1,1,,"Transactions")),A160) -> 0 | J160: =MonthlyAverageV2($C$3,$C$4,$A160,TriggerField) -> 0 | K160: 0 | L160: 0 | M160: 0 | N160: 0 | O160: 0 | P160: 0 | Q160: 0 | R160: 0 | S160: 0 | T160: 0 | U160: 0 | V160: 0 | W160: 0 | Y160: 901 | Z160: Derdenrekening privé | AA160: 0 | AB160: 0 | AC160: 0 | AD160: 0
A161: 902 | B161: Derdenrekening zakelijk (declaraties) | C161: =SUMIF(Transactions!$A$1:INDIRECT(ADDRESS(MaxTransactions,1,1,,"Transactions")),A161,Transactions!$H$1:INDIRECT(ADDRESS(MaxTransactions,8,1,,"Transactions"))) -> 0 | H161: =COUNTIF(Transactions!$A$1:INDIRECT(ADDRESS(MaxTransactions,1,1,,"Transactions")),A161) -> 0 | J161: =MonthlyAverageV2($C$3,$C$4,$A161,TriggerField) -> 0 | K161: 0 | L161: 0 | M161: 0 | N161: 0 | O161: 0 | P161: 0 | Q161: 0 | R161: 0 | S161: 0 | T161: 0 | U161: 0 | V161: 0 | W161: 0 | Y161: 902 | Z161: Derdenrekening zakelijk (declaraties) | AA161: 0 | AB161: 0 | AC161: 0 | AD161: 0
A162: 903 | B162: Effectenrekening | C162: =SUMIF(Transactions!$A$1:INDIRECT(ADDRESS(MaxTransactions,1,1,,"Transactions")),A162,Transactions!$H$1:INDIRECT(ADDRESS(MaxTransactions,8,1,,"Transactions"))) -> 0 | H162: =COUNTIF(Transactions!$A$1:INDIRECT(ADDRESS(MaxTransactions,1,1,,"Transactions")),A162) -> 0 | J162: =MonthlyAverageV2($C$3,$C$4,$A162,TriggerField) -> 0 | K162: 0 | L162: 0 | M162: 0 | N162: 0 | O162: 0 | P162: 0 | Q162: 0 | R162: 0 | S162: 0 | T162: 0 | U162: 0 | V162: 0 | W162: 0 | Y162: 903 | Z162: Effectenrekening | AA162: 0 | AB162: 0 | AC162: 0 | AD162: 0
A163: 904 | B163: Uit Buffer | C163: =SUMIF(Transactions!$A$1:INDIRECT(ADDRESS(MaxTransactions,1,1,,"Transactions")),A163,Transactions!$H$1:INDIRECT(ADDRESS(MaxTransactions,8,1,,"Transactions"))) -> 0 | H163: =COUNTIF(Transactions!$A$1:INDIRECT(ADDRESS(MaxTransactions,1,1,,"Transactions")),A163) -> 0 | J163: =MonthlyAverageV2($C$3,$C$4,$A163,TriggerField) -> 0 | K163: 0 | L163: 0 | M163: 0 | N163: 0 | O163: 0 | P163: 0 | Q163: 0 | R163: 0 | S163: 0 | T163: 0 | U163: 0 | V163: 0 | W163: 0 | Y163: 904 | Z163: Uit Buffer | AA163: 0 | AB163: 0 | AC163: 0 | AD163: 0
A164: 905 | B164: Ontvangen Rente | C164: =SUMIF(Transactions!$A$1:INDIRECT(ADDRESS(MaxTransactions,1,1,,"Transactions")),A164,Transactions!$H$1:INDIRECT(ADDRESS(MaxTransactions,8,1,,"Transactions"))) -> 0.39 | H164: =COUNTIF(Transactions!$A$1:INDIRECT(ADDRESS(MaxTransactions,1,1,,"Transactions")),A164) -> 1 | J164: =MonthlyAverageV2($C$3,$C$4,$A164,TriggerField) -> 0.39 | K164: 0.39 | L164: 0 | M164: 0 | N164: 0 | O164: 0 | P164: 0 | Q164: 0 | R164: 0 | S164: 0 | T164: 0 | U164: 0 | V164: 0 | W164: 0.39 | Y164: 905 | Z164: Ontvangen Rente | AA164: 0.39 | AB164: 0 | AC164: 0 | AD164: 0
A165: 906 | B165: Van Spaarrekening (reserve) | C165: =SUMIF(Transactions!$A$1:INDIRECT(ADDRESS(MaxTransactions,1,1,,"Transactions")),A165,Transactions!$H$1:INDIRECT(ADDRESS(MaxTransactions,8,1,,"Transactions"))) -> 0 | H165: =COUNTIF(Transactions!$A$1:INDIRECT(ADDRESS(MaxTransactions,1,1,,"Transactions")),A165) -> 0 | J165: =MonthlyAverageV2($C$3,$C$4,$A165,TriggerField) -> 0 | K165: 0 | L165: 0 | M165: 0 | N165: 0 | O165: 0 | P165: 0 | Q165: 0 | R165: 0 | S165: 0 | T165: 0 | U165: 0 | V165: 0 | W165: 0 | Y165: 906 | Z165: Van Spaarrekening (reserve) | AA165: 0 | AB165: 0 | AC165: 0 | AD165: 0
A166: 907 | B166: Kas In | C166: =SUMIF(Transactions!$A$1:INDIRECT(ADDRESS(MaxTransactions,1,1,,"Transactions")),A166,Transactions!$H$1:INDIRECT(ADDRESS(MaxTransactions,8,1,,"Transactions"))) -> 0 | H166: =COUNTIF(Transactions!$A$1:INDIRECT(ADDRESS(MaxTransactions,1,1,,"Transactions")),A166) -> 0 | J166: =MonthlyAverageV2($C$3,$C$4,$A166,TriggerField) -> 0 | K166: 0 | L166: 0 | M166: 0 | N166: 0 | O166: 0 | P166: 0 | Q166: 0 | R166: 0 | S166: 0 | T166: 0 | U166: 0 | V166: 0 | W166: 0 | Y166: 907 | Z166: Kas In | AA166: 0 | AB166: 0 | AC166: 0 | AD166: 0
A167: 909 | B167: Overige | C167: =SUMIF(Transactions!$A$1:INDIRECT(ADDRESS(MaxTransactions,1,1,,"Transactions")),A167,Transactions!$H$1:INDIRECT(ADDRESS(MaxTransactions,8,1,,"Transactions"))) -> 0 | H167: =COUNTIF(Transactions!$A$1:INDIRECT(ADDRESS(MaxTransactions,1,1,,"Transactions")),A167) -> 0 | J167: =MonthlyAverageV2($C$3,$C$4,$A167,TriggerField) -> 0 | K167: 0 | L167: 0 | M167: 0 | N167: 0 | O167: 0 | P167: 0 | Q167: 0 | R167: 0 | S167: 0 | T167: 0 | U167: 0 | V167: 0 | W167: 0 | Y167: =A167 -> 909 | Z167: =B167 -> Overige | AA167: =K167+L167+M167 -> 0 | AB167: =N167+O167+P167 -> 0 | AC167: =Q167+R167+S167 -> 0 | AD167: =T167+U167+V167 -> 0
A169: 980 | B169: Totaal Terugboeking uit Voorzieningen | C169: =SUM(C170:C179) -> 2135.44 | H169: =SUM(H170:H179) -> 2 | J169: =MonthlyAverageV2($C$3,$C$4,$A169,TriggerField) -> 0 | K169: =SUM(K170:K179) -> 0 | L169: =SUM(L170:L179) -> 2135.44 | M169: =SUM(M170:M179) -> 0 | N169: =SUM(N170:N179) -> 0 | O169: =SUM(O170:O179) -> 0 | P169: =SUM(P170:P179) -> 0 | Q169: =SUM(Q170:Q179) -> 0 | R169: =SUM(R170:R179) -> 0 | S169: =SUM(S170:S179) -> 0 | T169: =SUM(T170:T179) -> 0 | U169: =SUM(U170:U179) -> 0 | V169: =SUM(V170:V179) -> 0 | W169: 2135.44 | Y169: =A169 -> 980 | Z169: =B169 -> Totaal Terugboeking uit Voorzieningen | AA169: =SUM(AA170:AA179) -> 2135.44 | AB169: =SUM(AB170:AB179) -> 0 | AC169: =SUM(AC170:AC179) -> 0 | AD169: =SUM(AD170:AD179) -> 0
A170: 981 | B170: Terugboeking uit Voorziening Zorgverzekeringen | C170: =SUMIF(Transactions!$A$1:INDIRECT(ADDRESS(MaxTransactions,1,1,,"Transactions")),A170,Transactions!$H$1:INDIRECT(ADDRESS(MaxTransactions,8,1,,"Transactions"))) -> 0 | H170: =COUNTIF(Transactions!$A$1:INDIRECT(ADDRESS(MaxTransactions,1,1,,"Transactions")),A170) -> 0 | J170: =MonthlyAverageV2($C$3,$C$4,$A170,TriggerField) -> 0 | K170: =-MonthlyBalance(K$8,$A170,TriggerField) -> 0 | L170: 0 | M170: 0 | N170: 0 | O170: 0 | P170: 0 | Q170: 0 | R170: 0 | S170: 0 | T170: 0 | U170: 0 | V170: 0 | W170: 0 | Y170: 981 | Z170: Terugboeking uit Voorziening Zorgverzekeringen | AA170: =K170+L170+M170 -> 0 | AB170: =N170+O170+P170 -> 0 | AC170: =Q170+R170+S170 -> 0 | AD170: =T170+U170+V170 -> 0
A171: 982 | B171: Terugboeking uit Voorziening Vakanties | C171: =SUMIF(Transactions!$A$1:INDIRECT(ADDRESS(MaxTransactions,1,1,,"Transactions")),A171,Transactions!$H$1:INDIRECT(ADDRESS(MaxTransactions,8,1,,"Transactions"))) -> 0 | H171: =COUNTIF(Transactions!$A$1:INDIRECT(ADDRESS(MaxTransactions,1,1,,"Transactions")),A171) -> 0 | J171: =MonthlyAverageV2($C$3,$C$4,$A171,TriggerField) -> 0 | K171: 0 | L171: 0 | M171: 0 | N171: 0 | O171: 0 | P171: 0 | Q171: 0 | R171: 0 | S171: 0 | T171: 0 | U171: 0 | V171: 0 | W171: 0 | Y171: 982 | Z171: Terugboeking uit Voorziening Vakanties | AA171: 0 | AB171: 0 | AC171: 0 | AD171: 0
A172: 983 | B172: Terugboeking uit Voorziening Gezond Leven | C172: =SUMIF(Transactions!$A$1:INDIRECT(ADDRESS(MaxTransactions,1,1,,"Transactions")),A172,Transactions!$H$1:INDIRECT(ADDRESS(MaxTransactions,8,1,,"Transactions"))) -> 0 | H172: =COUNTIF(Transactions!$A$1:INDIRECT(ADDRESS(MaxTransactions,1,1,,"Transactions")),A172) -> 0 | J172: =MonthlyAverageV2($C$3,$C$4,$A172,TriggerField) -> 0 | K172: 0 | L172: 0 | M172: 0 | N172: 0 | O172: 0 | P172: 0 | Q172: 0 | R172: 0 | S172: 0 | T172: 0 | U172: 0 | V172: 0 | W172: 0 | Y172: 983 | Z172: Terugboeking uit Voorziening Gezond Leven | AA172: 0 | AB172: 0 | AC172: 0 | AD172: 0
A173: 984 | B173: Terugboeking uit Voorziening Kleding | C173: =SUMIF(Transactions!$A$1:INDIRECT(ADDRESS(MaxTransactions,1,1,,"Transactions")),A173,Transactions!$H$1:INDIRECT(ADDRESS(MaxTransactions,8,1,,"Transactions"))) -> 2135.44 | H173: =COUNTIF(Transactions!$A$1:INDIRECT(ADDRESS(MaxTransactions,1,1,,"Transactions")),A173) -> 2 | J173: =MonthlyAverageV2($C$3,$C$4,$A173,TriggerField) -> 0 | K173: 0 | L173: 2135.44 | M173: 0 | N173: 0 | O173: 0 | P173: 0 | Q173: 0 | R173: 0 | S173: 0 | T173: 0 | U173: 0 | V173: 0 | W173: 2135.44 | Y173: 984 | Z173: Terugboeking uit Voorziening Kleding | AA173: 2135.44 | AB173: 0 | AC173: 0 | AD173: 0
A174: 985 | B174: Terugboeking uit Voorziening Gadgets / Tech | C174: =SUMIF(Transactions!$A$1:INDIRECT(ADDRESS(MaxTransactions,1,1,,"Transactions")),A174,Transactions!$H$1:INDIRECT(ADDRESS(MaxTransactions,8,1,,"Transactions"))) -> 0 | H174: =COUNTIF(Transactions!$A$1:INDIRECT(ADDRESS(MaxTransactions,1,1,,"Transactions")),A174) -> 0 | J174: =MonthlyAverageV2($C$3,$C$4,$A174,TriggerField) -> 0 | K174: 0 | L174: 0 | M174: 0 | N174: 0 | O174: 0 | P174: 0 | Q174: 0 | R174: 0 | S174: 0 | T174: 0 | U174: 0 | V174: 0 | W174: 0 | Y174: 985 | Z174: Terugboeking uit Voorziening Gadgets / Tech | AA174: 0 | AB174: 0 | AC174: 0 | AD174: 0
A175: 986 | B175: Terugboeking uit Voorziening Onderhoud Huis | C175: =SUMIF(Transactions!$A$1:INDIRECT(ADDRESS(MaxTransactions,1,1,,"Transactions")),A175,Transactions!$H$1:INDIRECT(ADDRESS(MaxTransactions,8,1,,"Transactions"))) -> 0 | H175: =COUNTIF(Transactions!$A$1:INDIRECT(ADDRESS(MaxTransactions,1,1,,"Transactions")),A175) -> 0 | J175: =MonthlyAverageV2($C$3,$C$4,$A175,TriggerField) -> 0 | K175: 0 | L175: 0 | M175: 0 | N175: 0 | O175: 0 | P175: 0 | Q175: 0 | R175: 0 | S175: 0 | T175: 0 | U175: 0 | V175: 0 | W175: 0 | Y175: 986 | Z175: Terugboeking uit Voorziening Onderhoud Huis | AA175: 0 | AB175: 0 | AC175: 0 | AD175: 0
A176: 987 | B176: Terugboeking uit Voorziening Bril | C176: =SUMIF(Transactions!$A$1:INDIRECT(ADDRESS(MaxTransactions,1,1,,"Transactions")),A176,Transactions!$H$1:INDIRECT(ADDRESS(MaxTransactions,8,1,,"Transactions"))) -> 0 | H176: =COUNTIF(Transactions!$A$1:INDIRECT(ADDRESS(MaxTransactions,1,1,,"Transactions")),A176) -> 0 | J176: =MonthlyAverageV2($C$3,$C$4,$A176,TriggerField) -> 0 | K176: 0 | L176: 0 | M176: 0 | N176: 0 | O176: 0 | P176: 0 | Q176: 0 | R176: 0 | S176: 0 | T176: 0 | U176: 0 | V176: 0 | W176: 0 | Y176: 987 | Z176: Terugboeking uit Voorziening Bril | AA176: 0 | AB176: 0 | AC176: 0 | AD176: 0
A177: 988 | B177: Terugboeking uit Voorziening Economist | C177: =SUMIF(Transactions!$A$1:INDIRECT(ADDRESS(MaxTransactions,1,1,,"Transactions")),A177,Transactions!$H$1:INDIRECT(ADDRESS(MaxTransactions,8,1,,"Transactions"))) -> 0 | H177: =COUNTIF(Transactions!$A$1:INDIRECT(ADDRESS(MaxTransactions,1,1,,"Transactions")),A177) -> 0 | J177: =MonthlyAverageV2($C$3,$C$4,$A177,TriggerField) -> 0 | K177: 0 | L177: 0 | M177: 0 | N177: 0 | O177: 0 | P177: 0 | Q177: 0 | R177: 0 | S177: 0 | T177: 0 | U177: 0 | V177: 0 | W177: 0 | Y177: 988 | Z177: Terugboeking uit Voorziening Economist | AA177: 0 | AB177: 0 | AC177: 0 | AD177: 0
A178: 989 | B178: Terugboeking uit Voorziening Eigen Risico Zorg | C178: =SUMIF(Transactions!$A$1:INDIRECT(ADDRESS(MaxTransactions,1,1,,"Transactions")),A178,Transactions!$H$1:INDIRECT(ADDRESS(MaxTransactions,8,1,,"Transactions"))) -> 0 | H178: =COUNTIF(Transactions!$A$1:INDIRECT(ADDRESS(MaxTransactions,1,1,,"Transactions")),A178) -> 0 | J178: =MonthlyAverageV2($C$3,$C$4,$A178,TriggerField) -> 0 | K178: 0 | L178: 0 | M178: 0 | N178: 0 | O178: 0 | P178: 0 | Q178: 0 | R178: 0 | S178: 0 | T178: 0 | U178: 0 | V178: 0 | W178: =SUM(K178:V178) -> 0 | Y178: =A178 -> 989 | Z178: =B178 -> Terugboeking uit Voorziening Eigen Risico Zorg | AA178: =K178+L178+M178 -> 0 | AB178: =N178+O178+P178 -> 0 | AC178: =Q178+R178+S178 -> 0 | AD178: =T178+U178+V178 -> 0
A179: 990 | B179: Terugboeking uit Voorziening Overige | C179: =SUMIF(Transactions!$A$1:INDIRECT(ADDRESS(MaxTransactions,1,1,,"Transactions")),A179,Transactions!$H$1:INDIRECT(ADDRESS(MaxTransactions,8,1,,"Transactions"))) -> 0 | H179: =COUNTIF(Transactions!$A$1:INDIRECT(ADDRESS(MaxTransactions,1,1,,"Transactions")),A179) -> 0 | J179: =MonthlyAverageV2($C$3,$C$4,$A179,TriggerField) -> 0 | K179: 0 | L179: 0 | M179: 0 | N179: 0 | O179: 0 | P179: 0 | Q179: 0 | R179: 0 | S179: 0 | T179: 0 | U179: 0 | V179: 0 | W179: 0 | Y179: 990 | Z179: Terugboeking uit Voorziening Overige | AA179: 0 | AB179: 0 | AC179: 0 | AD179: 0
B181: Totaal (ex Kruisrekeningen) | C181: =SUM(C149:C157) -> 9818.32 | D181: =SUM(D149:D157) -> 59000 | E181: =SUM(E149:E157) -> 9536.986301 | F181: =SUM(F149:F157) -> -49181.68 | G181: =SUM(G149:G157) -> 281.3336986 | H181: =SUM(H149:H180) -> 16 | K181: =SUM(K149:K157) -> 4919.16 | L181: 4899.16 | M181: 0 | N181: 0 | O181: 0 | P181: 0 | Q181: 0 | R181: 0 | S181: 0 | T181: 0 | U181: 0 | V181: 0 | W181: 9818.32 | Z181: =B181 -> Totaal (ex Kruisrekeningen) | AA181: =SUM(AA149:AA157) -> 9818.32 | AB181: =SUM(AB149:AB157) -> 0 | AC181: =SUM(AC149:AC157) -> 0 | AD181: =SUM(AD149:AD157) -> 0
A183: id | I183: id - Ideal | J183: =SUM(K183:V183) -> 10 | K183: =PaymentType($A183,K$8,TriggerField) -> 6 | L183: 4 | M183: 0 | N183: 0 | O183: 0 | P183: 0 | Q183: 0 | R183: 0 | S183: 0 | T183: 0 | U183: 0 | V183: 0 | W183: 10 | Z183: =I183 -> id - Ideal | AA183: =K183+L183+M183 -> 10 | AB183: =N183+O183+P183 -> 0 | AC183: =Q183+R183+S183 -> 0 | AD183: =T183+U183+V183 -> 0
A184: kas | I184: kas - Contant Geld | J184: 1 | K184: =PaymentType($A184,K$8,TriggerField) -> 1 | L184: 0 | M184: 0 | N184: 0 | O184: 0 | P184: 0 | Q184: 0 | R184: 0 | S184: 0 | T184: 0 | U184: 0 | V184: 0 | W184: 1 | Z184: =I184 -> kas - Contant Geld | AA184: =K184+L184+M184 -> 1 | AB184: =N184+O184+P184 -> 0 | AC184: =Q184+R184+S184 -> 0 | AD184: =T184+U184+V184 -> 0
A185: ba | I185: ba - Betaalautomaat met pin | J185: 0 | K185: 0 | L185: 0 | M185: 0 | N185: 0 | O185: 0 | P185: 0 | Q185: 0 | R185: 0 | S185: 0 | T185: 0 | U185: 0 | V185: 0 | W185: 0 | Z185: ba - Betaalautomaat met pin | AA185: 0 | AB185: 0 | AC185: 0 | AD185: 0
A186: bc | I186: bc - Contactloos betalen | J186: 6 | K186: =PaymentType($A186,K$8,TriggerField) -> 4 | L186: =PaymentType($A186,L$8,TriggerField) -> 2 | M186: =PaymentType($A186,M$8,TriggerField) -> 0 | N186: =PaymentType($A186,N$8,TriggerField) -> 0 | O186: 0 | P186: 0 | Q186: 0 | R186: 0 | S186: 0 | T186: 0 | U186: 0 | V186: 0 | W186: 6 | Z186: bc - Contactloos betalen | AA186: 6 | AB186: 0 | AC186: 0 | AD186: 0
A187: ap | I187: ap - Apple Pay | J187: 73 | K187: 41 | L187: 32 | M187: 0 | N187: 0 | O187: 0 | P187: 0 | Q187: 0 | R187: 0 | S187: 0 | T187: 0 | U187: 0 | V187: 0 | W187: 73 | Z187: ap - Apple Pay | AA187: 73 | AB187: 0 | AC187: 0 | AD187: 0
A188: cc | I188: cc - Creditcard transactie | J188: 10 | K188: 5 | L188: 5 | M188: 0 | N188: 0 | O188: 0 | P188: =PaymentType($A188,P$8,TriggerField) -> 0 | Q188: 0 | R188: 0 | S188: 0 | T188: 0 | U188: 0 | V188: 0 | W188: 10 | Z188: cc - Creditcard transactie | AA188: 10 | AB188: 0 | AC188: 0 | AD188: 0
I189: Total | J189: =SUM(J182:J188) -> 100 | K189: =SUM(K182:K188) -> 57 | L189: =SUM(L182:L188) -> 43 | M189: =SUM(M182:M188) -> 0 | N189: =SUM(N182:N188) -> 0 | O189: =SUM(O182:O188) -> 0 | P189: 0 | Q189: 0 | R189: 0 | S189: 0 | T189: 0 | U189: 0 | V189: 0 | W189: 100 | AA189: =K189+L189+M189 -> 100 | AB189: 0 | AC189: 0 | AD189: 0
B191: Spending -/- Income | C191: =C181-C144 -> 2971.43 | D191: =D181-D144 -> 27971.35 | E191: =E181-E144 -> 4521.396301 | I191: Saving Rate | J191: =IFERROR(((W181-W144)/W181), 0) -> 0.3026413888 | K191: =IFERROR(((K181-K144)/K181), 0) -> 0.4283780158 | L191: 0.176391463 | M191: 0 | N191: 0 | O191: 0 | P191: 0 | Q191: 0 | R191: 0 | S191: 0 | T191: 0 | U191: 0 | V191: 0 | Z191: =I191 -> Saving Rate | AA191: =IFERROR(((AA181-AA144)/AA181), 0) -> 0.3026413888 | AB191: =IFERROR(((AB181-AB144)/AB181), 0) -> 0 | AC191: =IFERROR(((AC181-AC144)/AC181), 0) -> 0 | AD191: =IFERROR(((AD181-AD144)/AD181), 0) -> 0
B192: Savings Rate | D192: =D191/D181 -> 0.474090678 | I192: Saving Rate ex. Aflossing | J192: =IFERROR(((W181-(W144+W126))/W181), 0) -> 0.1131996105 | K192: =IFERROR(((K181-(K144+K126))/K181), 0) -> 0.2393213475 | L192: -0.01343699736 | M192: 0 | N192: 0 | O192: 0 | P192: 0 | Q192: 0 | R192: 0 | S192: 0 | T192: 0 | U192: 0 | V192: 0 | Z192: =I192 -> Saving Rate ex. Aflossing | AA192: =IFERROR(((AA181-(AA144+AA126))/AA181), 0) -> 0.1131996105 | AB192: =IFERROR(((AB181-(AB144+AB126))/AB181), 0) -> 0 | AC192: =IFERROR(((AC181-(AC144+AC126))/AC181), 0) -> 0 | AD192: =IFERROR(((AD181-(AD144+AD126))/AD181), 0) -> 0
I193: No Spend Days | K193: =NoSpendDays(K8,TriggerField) -> 9 | L193: =NoSpendDays(L8,TriggerField) -> 8 | M193: 0 | N193: 0 | O193: 0 | P193: 0 | Q193: 0 | R193: 0 | S193: 0 | T193: =NoSpendDays(T8,TriggerField) -> 0 | U193: 0 | V193: 0 | W193: =SUM(K193:V193) -> 17 | Z193: =I193 -> No Spend Days | AA193: =K193+L193+M193 -> 17 | AB193: =N193+O193+P193 -> 0 | AC193: =Q193+R193+S193 -> 0 | AD193: =T193+U193+V193 -> 0
I194: Average Monthly Balance | K194: =AvgMonthBalance(K8,TriggerField) -> 611.3218672 | L194: 725.7356775 | M194: 0 | N194: 0 | O194: 0 | P194: 0 | Q194: 0 | R194: 0 | S194: 0 | T194: 0 | U194: 0 | V194: 0 | Z194: Average Monthly Balance
I195: Minimum Monthly Balance | K195: =MinMonthBalance(K8,TriggerField) -> 70.55 | L195: 21.41 | M195: 0 | N195: 0 | O195: 0 | P195: 0 | Q195: 0 | R195: 0 | S195: 0 | T195: 0 | U195: 0 | V195: 0 | Z195: Minimum Monthly Balance
I196: No Expense Days | K196: =NoExpenseDays(K8,TriggerField) -> 6 | L196: =NoExpenseDays(L8,TriggerField) -> 6 | M196: =NoExpenseDays(M8,TriggerField) -> 0 | N196: =NoExpenseDays(N8,TriggerField) -> 0 | O196: =NoExpenseDays(O8,TriggerField) -> 0 | P196: =NoExpenseDays(P8,TriggerField) -> 0 | Q196: =NoExpenseDays(Q8,TriggerField) -> 0 | R196: =NoExpenseDays(R8,TriggerField) -> 0 | S196: =NoExpenseDays(S8,TriggerField) -> 0 | T196: =NoExpenseDays(T8,TriggerField) -> 0 | U196: =NoExpenseDays(U8,TriggerField) -> 0 | V196: =NoExpenseDays(V8,TriggerField) -> 0 | W196: =SUM(K196:V196) -> 12 | Z196: =I196 -> No Expense Days | AA196: =K196+L196+M196 -> 12 | AB196: =N196+O196+P196 -> 0 | AC196: =Q196+R196+S196 -> 0 | AD196: =T196+U196+V196 -> 0
A199: Used for Charts - Spending
B201: =B13 -> Huisvesting | C201: 0 | D201: 0 | E201: 0 | F201: 0 | G201: 0 | H201: 0 | J201: =J13 -> 0 | K201: 0 | L201: 0 | M201: 0 | N201: 0 | O201: 0 | P201: 0 | Q201: 0 | R201: 0 | S201: 0 | T201: 0 | U201: 0 | V201: 0 | W201: 0 | Y201: =Y13 -> 1000 | Z201: Huisvesting | AA201: 0 | AB201: 0 | AC201: 0 | AD201: 0
B202: =B23 -> Financiën en Zorg | C202: 212.61 | D202: 2450.45 | E202: 396.100137 | F202: 2237.84 | G202: 183.490137 | H202: 6 | J202: =J23 -> 181.04 | K202: 181.04 | L202: 31.57 | M202: 0 | N202: 0 | O202: 0 | P202: 0 | Q202: 0 | R202: 0 | S202: 0 | T202: 0 | U202: 0 | V202: 0 | W202: 212.61 | Y202: =Y23 -> 1200 | Z202: Financiën en Zorg | AA202: 212.61 | AB202: 0 | AC202: 0 | AD202: 0
B203: =B34 -> Auto / Mobiliteit | C203: 100 | D203: 750 | E203: 121.2328767 | F203: 650 | G203: 21.23287671 | H203: 2 | J203: =J34 -> 50 | K203: 50 | L203: 50 | M203: 0 | N203: 0 | O203: 0 | P203: 0 | Q203: 0 | R203: 0 | S203: 0 | T203: 0 | U203: 0 | V203: 0 | W203: 100 | Y203: =Y34 -> 1400 | Z203: Auto / Mobiliteit | AA203: 100 | AB203: 0 | AC203: 0 | AD203: 0
B204: =B45 -> Telecom en Internet | C204: 40.6 | D204: 163.2 | E204: 26.38027397 | F204: 122.6 | G204: -14.21972603 | H204: 2 | J204: =J45 -> 20.3 | K204: 20.3 | L204: 20.3 | M204: 0 | N204: 0 | O204: 0 | P204: 0 | Q204: 0 | R204: 0 | S204: 0 | T204: 0 | U204: 0 | V204: 0 | W204: 40.6 | Y204: =Y45 -> 1600 | Z204: Telecom en Internet | AA204: 40.6 | AB204: 0 | AC204: 0 | AD204: 0
B205: =B53 -> Huishoudelijk en Voeding | C205: 227.75 | D205: 1950 | E205: 315.2054795 | F205: 1722.25 | G205: 87.45547945 | H205: 55 | J205: =J53 -> 114.22 | K205: 114.22 | L205: 113.53 | M205: 0 | N205: 0 | O205: 0 | P205: 0 | Q205: 0 | R205: 0 | S205: 0 | T205: 0 | U205: 0 | V205: 0 | W205: 227.75 | Y205: =Y53 -> 1800 | Z205: Huishoudelijk en Voeding | AA205: 227.75 | AB205: 0 | AC205: 0 | AD205: 0
B206: =B65 -> Abonnementen & Lidmaatschappen | C206: 54.97 | D206: 190 | E206: 30.71232877 | F206: 135.03 | G206: -24.25767123 | H206: 4 | J206: =J65 -> 29.98 | K206: 29.98 | L206: 24.99 | M206: 0 | N206: 0 | O206: 0 | P206: 0 | Q206: 0 | R206: 0 | S206: 0 | T206: 0 | U206: 0 | V206: 0 | W206: 54.97 | Y206: =Y65 -> 2000 | Z206: Abonnementen & Lidmaatschappen | AA206: 54.97 | AB206: 0 | AC206: 0 | AD206: 0
B207: =B72 -> Inrichting en Elektronica | C207: 0 | D207: 400 | E207: 64.65753425 | F207: 400 | G207: 64.65753425 | H207: 0 | J207: =J72 -> 0 | K207: 0 | L207: 0 | M207: 0 | N207: 0 | O207: 0 | P207: 0 | Q207: 0 | R207: 0 | S207: 0 | T207: 0 | U207: 0 | V207: 0 | W207: 0 | Y207: =Y72 -> 2200 | Z207: Inrichting en Elektronica | AA207: 0 | AB207: 0 | AC207: 0 | AD207: 0
B208: =B83 -> Luxegoederen en diensten | C208: 3435.01 | D208: 6975 | E208: 1127.465753 | F208: 3539.99 | G208: -2307.544247 | H208: 41 | J208: =J83 -> 1058.36 | K208: 1058.36 | L208: 2376.65 | M208: 0 | N208: 0 | O208: 0 | P208: 0 | Q208: 0 | R208: 0 | S208: 0 | T208: 0 | U208: 0 | V208: 0 | W208: 3435.01 | Y208: =Y83 -> 5000 | Z208: Luxegoederen en diensten | AA208: 3435.01 | AB208: 0 | AC208: 0 | AD208: 0
B209: =B96 -> Hobby's | C209: 0 | D209: 500 | E209: 80.82191781 | F209: 500 | G209: 80.82191781 | H209: 0 | J209: =J96 -> 0 | K209: 0 | L209: 0 | M209: 0 | N209: 0 | O209: 0 | P209: 0 | Q209: 0 | R209: 0 | S209: 0 | T209: 0 | U209: 0 | V209: 0 | W209: 0 | Y209: =Y96 -> 5500 | Z209: Hobby's | AA209: 0 | AB209: 0 | AC209: 0 | AD209: 0
B210: =B102 -> Reizen, vakanties en recreatie | C210: 59.95 | D210: 2050 | E210: 331.369863 | F210: 1990.05 | G210: 271.419863 | H210: 1 | J210: =J102 -> 0 | K210: 0 | L210: 59.95 | M210: 0 | N210: 0 | O210: 0 | P210: 0 | Q210: 0 | R210: 0 | S210: 0 | T210: 0 | U210: 0 | V210: 0 | W210: 59.95 | Y210: =Y102 -> 6000 | Z210: Reizen, vakanties en recreatie | AA210: 59.95 | AB210: 0 | AC210: 0 | AD210: 0
B211: =B110 -> Kasgeld en Overige | C211: 2716 | D211: 15600 | E211: 2521.643836 | F211: 12884 | G211: -194.3561644 | H211: 2 | J211: =J110 -> 1358 | K211: 1358 | L211: 1358 | M211: 0 | N211: 0 | O211: 0 | P211: 0 | Q211: 0 | R211: 0 | S211: 0 | T211: 0 | U211: 0 | V211: 0 | W211: 2716 | Y211: =Y110 -> 8000 | Z211: Kasgeld en Overige | AA211: 2716 | AB211: 0 | AC211: 0 | AD211: 0
B212: Totaal | C212: =SUM(C201:C211) -> 6846.89 | D212: 31028.65 | E212: 5015.59 | F212: 24181.76 | G212: -1831.3 | H212: 113 | J212: =SUM(J201:J211) -> 2811.9 | K212: =SUM(K201:K211) -> 2811.9 | L212: 4034.99 | M212: 0 | N212: 0 | O212: 0 | P212: 0 | Q212: 0 | R212: 0 | S212: 0 | T212: 0 | U212: 0 | V212: 0 | W212: =SUM(W201:W211) -> 6846.89 | AA212: =SUM(AA201:AA211) -> 6846.89 | AB212: =SUM(AB201:AB211) -> 0 | AC212: =SUM(AC201:AC211) -> 0 | AD212: =SUM(AD201:AD211) -> 0
B214: X-As Saving Rate | J214: Totaal | K214: Januari | L214: Februari | M214: Maart | N214: April | O214: Mei | P214: Juni | Q214: Juli | R214: Augustus | S214: September | T214: Oktober | U214: November | V214: December | W214: Total

Sheet Account
A1: =FinYear -> 2023 | B1: Account Details | F1: Actual vs | G1: Actual vs
C2: Actual | D2: Budget | E2: Budget | F2: Budget | G2: Budget
A3: # | B3: Ledger Account | C3: YTD | D3: Year | E3: YTD | F3: Year | G3: YTD | H3: Number
A4: 1810 | B4: Supermarkt | C4: 12.38 | D4: 200 | E4: 32.32876712 | F4: 187.62 | G4: 19.94876712 | H4: 4
A7: Date | B7: Description | C7: Name | D7: D/C | E7: Type | F7: Amount
A9: 2023-01-19 | B9: Betaalautomaat 13:36 pasnr. 1313 Apple Pay | C9: Supermarkt AlBo | D9: D | E9: ap | F9: -1.99
A10: 2023-01-20 | B10: Betaalautomaat 17:15 pasnr. 1313 | C10: Supermarkt JumBert | D10: D | E10: bc | F10: -6.15
A11: 2023-01-22 | B11: Betaalautomaat 16:03 pasnr. 1313 Apple Pay | C11: Supermarkt JumBert To Go | D11: D | E11: ap | F11: -1.69
A12: 2023-02-28 | B12: Betaalautomaat 12:21 pasnr. 1313 Apple Pay | C12: Supermarkt Jumbert Amsterdam | D12: D | E12: ap | F12: -2.55

Sheet Transactions
A1: 5020 | B1: Kas | C1: EUR | E1: 2023-01-30 | F1: 2023-01-30 | G1: D | H1: -10 | K1: Horeca | L1: kas | M1: Kas / Outcome / 2023-01-30 21:47:04 +0000 / Borrel met Vuurvriendjes
A2: 905 | B2: NL99RABO0987654321 | C2: EUR | D2: 287 | E2: 2023-01-01 | F2: 2023-01-01 | G2: C | H2: 0.39 | I2: 1475.39 | J2: 0 | L2: db | M2: Rente over periode 01-01-2023 t/m 31-12-2023
A3: 9000 | B3: NL99RABO0987654321 | C3: EUR | D3: 288 | E3: 2023-01-05 | F3: 2023-01-05 | G3: D | H3: -225.39 | I3: 1250 | J3: NL99RABO0123456789 | K3: G.E.L.D. Nerd | L3: db | M3: Afschrijving
A4: 9000 | B4: NL99RABO0987654321 | C4: EUR | D4: 289 | E4: 2023-01-18 | F4: 2023-01-18 | G4: D | H4: -250 | I4: 1000 | J4: NL99RABO0123456789 | K4: G.E.L.D. Nerd | L4: db | M4: Afschrijving
A5: 9000 | B5: NL99RABO0987654321 | C5: EUR | D5: 290 | E5: 2023-01-31 | F5: 2023-01-31 | G5: D | H5: -100 | I5: 900 | J5: NL99RABO0123456789 | K5: G.E.L.D. Nerd | L5: db | M5: Afschrijving
A6: 9000 | B6: NL99RABO0987654321 | C6: EUR | D6: 291 | E6: 2023-02-08 | F6: 2023-02-08 | G6: D | H6: -100 | I6: 800 | J6: NL99RABO0123456789 | K6: G.E.L.D. Nerd | L6: db | M6: Afschrijving
A7: 9000 | B7: NL99RABO0987654321 | C7: EUR | D7: 292 | E7: 2023-02-14 | F7: 2023-02-14 | G7: D | H7: -100 | I7: 700 | J7: NL99RABO0123456789 | K7: G.E.L.D. Nerd | L7: db | M7: Afschrijving
A8: 9000 | B8: NL99RABO0987654321 | C8: EUR | D8: 293 | E8: 2023-02-16 | F8: 2023-02-16 | G8: D | H8: -200 | I8: 500 | J8: NL99RABO0123456789 | K8: G.E.L.D. Nerd | L8: db | M8: Afschrijving
A9: 0 | B9: NL99RABO0123456789 | C9: EUR | D9: 5025 | E9: 2023-01-01 | F9: 2023-01-01 | G9: D | H9: -14.99 | I9: 663.6 | J9: NL71RABO0350808880 | K9: Grijpgraag Bankiers NV | L9: cc | M9: Kaartnummer: 9999.8888.7777.6666 Zie rekeningoverzicht 24-12-2023
A10: 2020 | B10: NL99RABO0123456789 | C10: EUR | D10: 5025 | E10: 2023-01-01 | F10: 2023-01-01 | G10: D | H10: -14.99 | I10: 663.6 | J10: NL71RABO0350808880 | K10: Grijpgraag Bankiers NV | L10: cc | M10: 15-12-2023 / Spotify Premium Family
A11: 1220 | B11: NL99RABO0123456789 | C11: EUR | D11: 5026 | E11: 2023-01-02 | F11: 2023-01-02 | G11: D | H11: -26.77 | I11: 636.83 | J11: NL75RABO0101000731 | K11: KansOpClaim Verzekeringen NV | L11: ei | M11: PakketPolis 00013131313 PERIODE 01.01.2023 - 01.02.2023
A12: 1870 | B12: NL99RABO0123456789 | C12: EUR | D12: 5027 | E12: 2023-01-02 | F12: 2023-01-02 | G12: D | H12: -4.39 | I12: 632.44 | K12: HoogVanDeTorenBlazen Kantoorcatering | L12: ap | M12: Betaalautomaat 13:05 pasnr. 1313 Apple Pay
A13: 5020 | B13: NL99RABO0123456789 | C13: EUR | D13: 5028 | E13: 2023-01-02 | F13: 2023-01-02 | G13: D | H13: -1.9 | I13: 630.54 | K13: Snackbar De Gelukkige Frikandel | L13: bc | M13: Betaalautomaat 15:22 pasnr. 1313
A14: 1210 | B14: NL99RABO0123456789 | C14: EUR | D14: 5029 | E14: 2023-01-03 | F14: 2023-01-01 | G14: D | H14: -4.8 | I14: 625.74 | K14: Kosten | L14: db | M14: Gijpgraag Bank Pakketje Periode 01-01-2023 t/m 31-01-2023
A15: 190 | B15: NL99RABO0123456789 | C15: EUR | D15: 5030 | E15: 2023-01-03 | F15: 2023-01-03 | G15: C | H15: 10 | I15: 635.74 | J15: NL62INGB0663707048 | K15: Loterij Kansloos NV | L15: cb | M15: Gefeliciteerd, Gewonnen met Oudejaarstrekking, Trekking 31-12-2023, 60134258.29762
A16: 5010 | B16: NL99RABO0123456789 | C16: EUR | D16: 5031 | E16: 2023-01-05 | F16: 2023-01-05 | G16: D | H16: -69.97 | I16: 565.77 | K16: SpijkerbroekenShop Nederland Geldnerd City | L16: ap | M16: Betaalautomaat 13:39 pasnr. 1313 Apple Pay
A17: 5010 | B17: NL99RABO0123456789 | C17: EUR | D17: 5032 | E17: 2023-01-05 | F17: 2023-01-06 | G17: D | H17: -64.97 | I17: 500.8 | J17: NL20DEUT0509367593 | K17: FijneTruien BV | L17: id | M17: 1421890430 1150001178045204 2x artikel(en) uit de FijneTruien BV e-s - x0000 pasnr. 1313
A18: 5010 | B18: NL99RABO0123456789 | C18: EUR | D18: 5033 | E18: 2023-01-05 | F18: 2023-01-06 | G18: D | H18: -393.3 | I18: 107.5 | J18: NL56DEUT0265186420 | K18: KledingOnline by Buckaroo | L18: id | M18: 400086718 1030000143573170 KledingOnline Buckaroo x2537 pasnr. 1313
A19: 900 | B19: NL99RABO0123456789 | C19: EUR | D19: 5034 | E19: 2023-01-05 | F19: 2023-01-05 | G19: C | H19: 225.39 | I19: 332.89 | J19: NL99RABO0987654321 | K19: G.E.L.D. Nerd | L19: tb
A20: 1450 | B20: NL99RABO0123456789 | C20: EUR | D20: 5035 | E20: 2023-01-06 | F20: 2023-01-06 | G20: D | H20: -50 | I20: 282.89 | J20: NL12RABO0306498111 | K20: TLS BV inz. OV-Chipkaart | L20: ei | M20: Automatisch opladen OV-chipkaart Kaartnummer:9876987698769876 Oplaaddatum/tijd:01-01-20 16:51
A21: 1870 | B21: NL99RABO0123456789 | C21: EUR | D21: 5036 | E21: 2023-01-06 | F21: 2023-01-06 | G21: D | H21: -1.4 | I21: 281.49 | K21: Vetbak Kantoorcatering | L21: ap | M21: Betaalautomaat 11:29 pasnr. 1313 Apple Pay
A22: 5080 | B22: NL99RABO0123456789 | C22: EUR | D22: 5037 | E22: 2023-01-06 | F22: 2023-01-06 | G22: D | H22: -15 | I22: 266.49 | K22: Boekhandel De Gebonden papiertjes | L22: ap | M22: Betaalautomaat 12:40 pasnr. 1313 Apple Pay
A23: 5080 | B23: NL99RABO0123456789 | C23: EUR | D23: 5038 | E23: 2023-01-06 | F23: 2023-01-06 | G23: D | H23: -7.5 | I23: 258.99 | J23: NL10INGB0005300114 | K23: ING Bank NV Betaalverzoek | L23: id | M23: CWAkolloNL24INGB0002240967 0050004297940649 Bijdrage Cadeau ING Betaalverzoek x2537 pasnr. 1313
A24: 1840 | B24: NL99RABO0123456789 | C24: EUR | D24: 5039 | E24: 2023-01-06 | F24: 2023-01-06 | G24: D | H24: -7.4 | I24: 251.59 | K24: Bakkerij Het Verbrande Broodje | L24: ap | M24: Betaalautomaat 16:55 pasnr. 1313 Apple Pay
A25: 1870 | B25: NL99RABO0123456789 | C25: EUR | D25: 5040 | E25: 2023-01-09 | F25: 2023-01-09 | G25: D | H25: -3.6 | I25: 247.99 | K25: Vetbak Kantoorcatering | L25: ap | M25: Betaalautomaat 09:30 pasnr. 1313 Apple Pay
A26: 1870 | B26: NL99RABO0123456789 | C26: EUR | D26: 5041 | E26: 2023-01-09 | F26: 2023-01-09 | G26: D | H26: -1.4 | I26: 246.59 | K26: Vetbak Kantoorcatering | L26: ap | M26: Betaalautomaat 11:56 pasnr. 1313 Apple Pay
A27: 5020 | B27: NL99RABO0123456789 | C27: EUR | D27: 5042 | E27: 2023-01-09 | F27: 2023-01-09 | G27: D | H27: -6.4 | I27: 240.19 | K27: HipsterKoffie Geldnerd City | L27: ap | M27: Betaalautomaat 13:10 pasnr. 1313 Apple Pay
A28: 1870 | B28: NL99RABO0123456789 | C28: EUR | D28: 5043 | E28: 2023-01-09 | F28: 2023-01-09 | G28: D | H28: -3.05 | I28: 237.14 | K28: Vetbak Kantoorcatering | L28: ap | M28: Betaalautomaat 15:11 pasnr. 1313 Apple Pay
A29: 1850 | B29: NL99RABO0123456789 | C29: EUR | D29: 5044 | E29: 2023-01-11 | F29: 2023-01-11 | G29: D | H29: -9 | I29: 228.14 | J29: NL53BANK0998822443 | K29: V. Vriendin | L29: bg
A30: 1870 | B30: NL99RABO0123456789 | C30: EUR | D30: 5045 | E30: 2023-01-13 | F30: 2023-01-13 | G30: D | H30: -1.4 | I30: 226.74 | K30: Vetbak Kantoorcatering | L30: ap | M30: Betaalautomaat 11:20 pasnr. 1313 Apple Pay
A31: 1840 | B31: NL99RABO0123456789 | C31: EUR | D31: 5046 | E31: 2023-01-13 | F31: 2023-01-13 | G31: D | H31: -9.15 | I31: 217.59 | K31: Bakkerij Het Verbrande Broodje | L31: ap | M31: Betaalautomaat 15:14 pasnr. 1313 Apple Pay
A32: 190 | B32: NL99RABO0123456789 | C32: EUR | D32: 5047 | E32: 2023-01-14 | F32: 2023-01-14 | G32: C | H32: 10 | I32: 227.59 | J32: NL62INGB0663707048 | K32: Loterij Kansloos NV | L32: cb | M32: Gefeliciteerd, Gewonnen met Loterij Kansloos, Trekking 10-01-2023, 61478001.71329
A33: 1870 | B33: NL99RABO0123456789 | C33: EUR | D33: 5048 | E33: 2023-01-14 | F33: 2023-01-14 | G33: D | H33: -1.4 | I33: 226.19 | K33: Vetbak Kantoorcatering | L33: ap | M33: Betaalautomaat 10:46 pasnr. 1313 Apple Pay
A34: 5020 | B34: NL99RABO0123456789 | C34: EUR | D34: 5049 | E34: 2023-01-14 | F34: 2023-01-14 | G34: D | H34: -10.35 | I34: 215.84 | L34: ap | M34: Betaalautomaat 12:51 pasnr. 1313 Apple Pay
A35: 5020 | B35: NL99RABO0123456789 | C35: EUR | D35: 5050 | E35: 2023-01-15 | F35: 2023-01-15 | G35: D | H35: -7.35 | I35: 208.49 | L35: ap | M35: Betaalautomaat 15:32 pasnr. 1313 Apple Pay
A36: 1870 | B36: NL99RABO0123456789 | C36: EUR | D36: 5051 | E36: 2023-01-16 | F36: 2023-01-16 | G36: D | H36: -1.53 | I36: 206.96 | K36: HoogVanDeTorenBlazen Kantoorcatering | L36: ap | M36: Betaalautomaat 08:41 pasnr. 1313 Apple Pay
A37: 1870 | B37: NL99RABO0123456789 | C37: EUR | D37: 5052 | E37: 2023-01-16 | F37: 2023-01-16 | G37: D | H37: -6.4 | I37: 200.56 | K37: Vetbak Kantoorcatering | L37: ap | M37: Betaalautomaat 12:37 pasnr. 1313 Apple Pay
A38: 5020 | B38: NL99RABO0123456789 | C38: EUR | D38: 5053 | E38: 2023-01-16 | F38: 2023-01-16 | G38: D | H38: -2 | I38: 198.56 | K38: Snackbar De Gelukkige Frikandel | L38: ap | M38: Betaalautomaat 19:13 pasnr. 1313 Apple Pay
A39: 5020 | B39: NL99RABO0123456789 | C39: EUR | D39: 5054 | E39: 2023-01-17 | F39: 2023-01-17 | G39: D | H39: -3.68 | I39: 194.88 | K39: Kiosk ASDZ 2614 AMSTERDAM | L39: ap | M39: Betaalautomaat 10:38 pasnr. 1313 Apple Pay
A40: 900 | B40: NL99RABO0123456789 | C40: EUR | D40: 5055 | E40: 2023-01-18 | F40: 2023-01-18 | G40: C | H40: 250 | I40: 444.88 | J40: NL99RABO0987654321 | K40: G.E.L.D. Nerd | L40: tb
A41: 1250 | B41: NL99RABO0123456789 | C41: EUR | D41: 5056 | E41: 2023-01-18 | F41: 2023-01-18 | G41: D | H41: -71.05 | I41: 373.83 | J41: NL72INGB0005562838 | K41: Tandartspraktijk Pijniger | L41: bg | M41: Declaratie 142485/11467
A42: 5070 | B42: NL99RABO0123456789 | C42: EUR | D42: 5057 | E42: 2023-01-18 | F42: 2023-01-18 | G42: D | H42: -102 | I42: 271.83 | J42: NL35INGB0003497889 | K42: Prof. Sickbock Coaching | L42: bg | M42: Ref. nummer 200126 d.d. 17-01-2023
A43: 1810 | B43: NL99RABO0123456789 | C43: EUR | D43: 5058 | E43: 2023-01-19 | F43: 2023-01-19 | G43: D | H43: -1.99 | I43: 269.84 | K43: Supermarkt AlBo | L43: ap | M43: Betaalautomaat 13:36 pasnr. 1313 Apple Pay
A44: 1870 | B44: NL99RABO0123456789 | C44: EUR | D44: 5059 | E44: 2023-01-20 | F44: 2023-01-20 | G44: D | H44: -1.4 | I44: 268.44 | K44: Vetbak Kantoorcatering | L44: ap | M44: Betaalautomaat 11:11 pasnr. 1313 Apple Pay
A45: 1810 | B45: NL99RABO0123456789 | C45: EUR | D45: 5060 | E45: 2023-01-20 | F45: 2023-01-20 | G45: D | H45: -6.15 | I45: 262.29 | K45: Supermarkt JumBert | L45: bc | M45: Betaalautomaat 17:15 pasnr. 1313
A46: 1840 | B46: NL99RABO0123456789 | C46: EUR | D46: 5061 | E46: 2023-01-20 | F46: 2023-01-20 | G46: D | H46: -6.68 | I46: 255.61 | K46: Slagerij De Drie Biggetjes | L46: bc | M46: Betaalautomaat 17:18 pasnr. 1313
A47: 5010 | B47: NL99RABO0123456789 | C47: EUR | D47: 5062 | E47: 2023-01-20 | F47: 2023-01-21 | G47: D | H47: -111 | I47: 144.61 | J47: NL51BANK0565668625 | K47: TeDureOverhemden.COM | L47: id | M47: 4715795442683797 0030004799457255 32325 x0000 pasnr. 1313
A48: 1630 | B48: NL99RABO0123456789 | C48: EUR | D48: 5063 | E48: 2023-01-21 | F48: 2023-01-21 | G48: D | H48: -20.3 | I48: 124.31 | J48: NL93INGB0007939833 | K48: GeenVerbinding Telecom | L48: ei | M48: Klant Nr XXXXXX333/XXXXXX888 Januari Factuur Nr 315086770274
A49: 1870 | B49: NL99RABO0123456789 | C49: EUR | D49: 5064 | E49: 2023-01-21 | F49: 2023-01-21 | G49: D | H49: -1.53 | I49: 122.78 | K49: HoogVanDeTorenBlazen Kantoorcatering | L49: ap | M49: Betaalautomaat 08:14 pasnr. 1313 Apple Pay
A50: 1870 | B50: NL99RABO0123456789 | C50: EUR | D50: 5065 | E50: 2023-01-21 | F50: 2023-01-21 | G50: D | H50: -2.81 | I50: 119.97 | K50: HoogVanDeTorenBlazen Kantoorcatering | L50: ap | M50: Betaalautomaat 08:34 pasnr. 1313 Apple Pay
A51: 1870 | B51: NL99RABO0123456789 | C51: EUR | D51: 5066 | E51: 2023-01-21 | F51: 2023-01-21 | G51: D | H51: -1.4 | I51: 118.57 | K51: Vetbak Kantoorcatering | L51: ap | M51: Betaalautomaat 12:03 pasnr. 1313 Apple Pay
A52: 1870 | B52: NL99RABO0123456789 | C52: EUR | D52: 5067 | E52: 2023-01-22 | F52: 2023-01-22 | G52: D | H52: -6.65 | I52: 111.92 | K52: Vetbak Kantoorcatering | L52: ap | M52: Betaalautomaat 11:46 pasnr. 1313 Apple Pay
A53: 5020 | B53: NL99RABO0123456789 | C53: EUR | D53: 5068 | E53: 2023-01-22 | F53: 2023-01-22 | G53: D | H53: -0.7 | I53: 111.22 | K53: Utrecht+1 4208-24102 Utrecht | L53: ap | M53: Betaalautomaat 14:35 pasnr. 1313 Apple Pay
A54: 5020 | B54: NL99RABO0123456789 | C54: EUR | D54: 5069 | E54: 2023-01-22 | F54: 2023-01-22 | G54: D | H54: -11.45 | I54: 99.77 | K54: HMSHost Utrecht Centra Utrecht | L54: ap | M54: Betaalautomaat 15:55 pasnr. 1313 Apple Pay
A55: 1810 | B55: NL99RABO0123456789 | C55: EUR | D55: 5070 | E55: 2023-01-22 | F55: 2023-01-22 | G55: D | H55: -1.69 | I55: 98.08 | K55: Supermarkt JumBert To Go | L55: ap | M55: Betaalautomaat 16:03 pasnr. 1313 Apple Pay
A56: 5080 | B56: NL99RABO0123456789 | C56: EUR | D56: 5071 | E56: 2023-01-22 | F56: 2023-01-23 | G56: D | H56: -21.98 | I56: 76.1 | J56: NL27INGB0000026500 | K56: bol.com b.v. | L56: id | M56: 2837852950 0050004327295570 bol.com bestelling 2837852
A57: 1870 | B57: NL99RABO0123456789 | C57: EUR | D57: 5072 | E57: 2023-01-23 | F57: 2023-01-23 | G57: D | H57: -5.55 | I57: 70.55 | K57: HoogVanDeTorenBlazen Kantoorcatering | L57: ap | M57: Betaalautomaat 12:14 pasnr. 1313 Apple Pay
A58: 100 | B58: NL99RABO0123456789 | C58: EUR | D58: 5073 | E58: 2023-01-24 | F58: 2023-01-24 | G58: C | H58: 4899.16 | I58: 4969.71 | J58: NL09INGB0705005461 | K58: LoonSlaaf Inc. | L58: cb | M58: LOON/SALARIS00000000/202301
A59: 1250 | B59: NL99RABO0123456789 | C59: EUR | D59: 5074 | E59: 2023-01-24 | F59: 2023-01-24 | G59: D | H59: -78.42 | I59: 4891.29 | K59: Tandartspraktijk Pijniger | L59: ap | M59: Betaalautomaat 12:40 pasnr. 1313 Apple Pay
A60: 9050 | B60: NL99RABO0123456789 | C60: EUR | D60: 5075 | E60: 2023-01-25 | F60: 2023-01-27 | G60: D | H60: -430 | I60: 4461.29 | J60: NL31BANK0567123112 | K60: V. Vriendin e/o G.E.L.D. Nerd | L60: bg | M60: Reguliere Aflossing Geldnerd HQ 2023
A61: 9050 | B61: NL99RABO0123456789 | C61: EUR | D61: 5076 | E61: 2023-01-25 | F61: 2023-01-27 | G61: D | H61: -500 | I61: 3961.29 | J61: NL31BANK0567123112 | K61: V. Vriendin e/o G.E.L.D. Nerd | L61: bg | M61: Extra Aflossing Geldnerd HQ 2023
A62: 9830 | B62: NL99RABO0123456789 | C62: EUR | D62: 5077 | E62: 2023-01-25 | F62: 2023-01-27 | G62: D | H62: -300 | I62: 3661.29 | J62: NL20BBBB9898989898 | K62: G.E.L.D. Nerd NN | L62: bg | M62: Reservering Gezond Leven 2023
A63: 9810 | B63: NL99RABO0123456789 | C63: EUR | D63: 5078 | E63: 2023-01-25 | F63: 2023-01-27 | G63: D | H63: -100 | I63: 3561.29 | J63: NL20BBBB9898989898 | K63: G.E.L.D. Nerd NN | L63: bg | M63: Reservering Zorgverzekering 2023
A64: 9820 | B64: NL99RABO0123456789 | C64: EUR | D64: 5079 | E64: 2023-01-25 | F64: 2023-01-27 | G64: D | H64: -200 | I64: 3361.29 | J64: NL20BBBB9898989898 | K64: G.E.L.D. Nerd NN | L64: bg | M64: Reservering Vakanties 2023
A65: 9840 | B65: NL99RABO0123456789 | C65: EUR | D65: 5080 | E65: 2023-01-25 | F65: 2023-01-27 | G65: D | H65: -300 | I65: 3061.29 | J65: NL20BBBB9898989898 | K65: G.E.L.D. Nerd NN | L65: bg | M65: Reservering Kleding 2023
A66: 8090 | B66: NL99RABO0123456789 | C66: EUR | D66: 5081 | E66: 2023-01-25 | F66: 2023-01-27 | G66: D | H66: -1358 | I66: 1703.29 | J66: NL31BANK0567123112 | K66: V. Vriendin e/o G.E.L.D. Nerd | L66: bg | M66: Maandelijkse bijdrage gezamenlijke huishouding 2023
A67: 9850 | B67: NL99RABO0123456789 | C67: EUR | D67: 5082 | E67: 2023-01-25 | F67: 2023-01-27 | G67: D | H67: -100 | I67: 1603.29 | J67: NL20BBBB9898989898 | K67: G.E.L.D. Nerd | L67: bg | M67: Voorzieningenfonds
A68: 9030 | B68: NL99RABO0123456789 | C68: EUR | D68: 5083 | E68: 2023-01-25 | F68: 2023-01-27 | G68: D | H68: -1000 | I68: 603.29 | J68: NL00BRKR010203045 | K68: G.E.L.D. Nerd Binck Green | L68: bg | M68: Maandelijkse overboeking beleggingen 2023
A69: 9850 | B69: NL99RABO0123456789 | C69: EUR | D69: 5084 | E69: 2023-01-25 | F69: 2023-01-27 | G69: D | H69: -100 | I69: 503.29 | J69: NL20BBBB9898989898 | K69: G.E.L.D. Nerd NN | L69: bg | M69: Reservering Gadgets / Tech 2023
A70: 5020 | B70: NL99RABO0123456789 | C70: EUR | D70: 5085 | E70: 2023-01-25 | F70: 2023-01-25 | G70: D | H70: -53.3 | I70: 449.99 | K70: Cafe De Gelukkige Ambtenaar | L70: bc | M70: Betaalautomaat 19:24 pasnr. 1313
A71: 1870 | B71: NL99RABO0123456789 | C71: EUR | D71: 5086 | E71: 2023-01-27 | F71: 2023-01-27 | G71: D | H71: -3.05 | I71: 446.94 | K71: Vetbak Kantoorcatering | L71: ap | M71: Betaalautomaat 09:04 pasnr. 1313 Apple Pay
A72: 1870 | B72: NL99RABO0123456789 | C72: EUR | D72: 5087 | E72: 2023-01-27 | F72: 2023-01-27 | G72: D | H72: -3.3 | I72: 443.64 | K72: Vetbak Kantoorcatering | L72: ap | M72: Betaalautomaat 10:29 pasnr. 1313 Apple Pay
A73: 1870 | B73: NL99RABO0123456789 | C73: EUR | D73: 5088 | E73: 2023-01-27 | F73: 2023-01-27 | G73: D | H73: -1.4 | I73: 442.24 | K73: Vetbak Kantoorcatering | L73: ap | M73: Betaalautomaat 11:47 pasnr. 1313 Apple Pay
A74: 1870 | B74: NL99RABO0123456789 | C74: EUR | D74: 5089 | E74: 2023-01-27 | F74: 2023-01-27 | G74: D | H74: -1.95 | I74: 440.29 | K74: Vetbak Kantoorcatering | L74: ap | M74: Betaalautomaat 14:09 pasnr. 1313 Apple Pay
A75: 1870 | B75: NL99RABO0123456789 | C75: EUR | D75: 5090 | E75: 2023-01-28 | F75: 2023-01-28 | G75: D | H75: -3.3 | I75: 436.99 | K75: Vetbak Kantoorcatering | L75: ap | M75: Betaalautomaat 09:41 pasnr. 1313 Apple Pay
A76: 1870 | B76: NL99RABO0123456789 | C76: EUR | D76: 5091 | E76: 2023-01-28 | F76: 2023-01-28 | G76: D | H76: -7.4 | I76: 429.59 | K76: Vetbak Kantoorcatering | L76: ap | M76: Betaalautomaat 11:39 pasnr. 1313 Apple Pay
A77: 5080 | B77: NL99RABO0123456789 | C77: EUR | D77: 5092 | E77: 2023-01-28 | F77: 2023-01-29 | G77: D | H77: -4.58 | I77: 425.01 | J77: NL13BANK0506417344 | K77: ABN AMRO Bank NV | L77: id | M77: 000167630036 0030004826523967 xxxx NL78BANK09999999 x0000 pasnr. 1313
A78: 0 | B78: NL99RABO0123456789 | C78: EUR | D78: 5093 | E78: 2023-01-29 | F78: 2023-01-29 | G78: D | H78: -59.82 | I78: 365.19 | J78: NL71RABO0350808880 | K78: Grijpgraag Bankiers NV | L78: cc | M78: Kaartnummer: 9999.8888.7777.6666 Zie rekeningoverzicht 23-01-2023
A79: 9000 | B79: NL99RABO0123456789 | C79: EUR | D79: 5093 | E79: 2023-01-29 | F79: 2023-01-29 | G79: D | H79: -44.83 | I79: 365.19 | J79: NL71RABO0350808880 | K79: Grijpgraag Bankiers NV | L79: cc | M79: 27-12-2023 / HuurAuto BV - Extra kilometers Kerstmis 2023
A80: 2020 | B80: NL99RABO0123456789 | C80: EUR | D80: 5093 | E80: 2023-01-29 | F80: 2023-01-29 | G80: D | H80: -14.99 | I80: 365.19 | J80: NL71RABO0350808880 | K80: Grijpgraag Bankiers NV | L80: cc | M80: 15-1-2023 / Spotify Premium Family
A81: 1870 | B81: NL99RABO0123456789 | C81: EUR | D81: 5094 | E81: 2023-01-29 | F81: 2023-01-29 | G81: D | H81: -4.25 | I81: 360.94 | K81: Vetbak Kantoorcatering | L81: ap | M81: Betaalautomaat 11:53 pasnr. 1313 Apple Pay
A82: 5020 | B82: NL99RABO0123456789 | C82: EUR | D82: 5095 | E82: 2023-01-29 | F82: 2023-01-29 | G82: D | H82: -27.85 | I82: 333.09 | K82: Cafe De Gelukkige Ambtenaar | L82: ap | M82: Betaalautomaat 17:42 pasnr. 1313 Apple Pay
A83: 9000 | B83: NL99RABO0123456789 | C83: EUR | D83: 5096 | E83: 2023-01-29 | F83: 2023-01-29 | G83: D | H83: -36.9 | I83: 296.19 | K83: Burrata Turfmarkt BV Geldnerd City | L83: ap | M83: Betaalautomaat 19:19 pasnr. 1313 Apple Pay
A84: 900 | B84: NL99RABO0123456789 | C84: EUR | D84: 5097 | E84: 2023-01-29 | F84: 2023-01-29 | G84: C | H84: 36.9 | I84: 333.09 | J84: NL31BANK0567123112 | K84: V. Vriendin e/o G.E.L.D. Nerd | L84: cb | M84: Pizzeria KartonBodem
A85: 1870 | B85: NL99RABO0123456789 | C85: EUR | D85: 5098 | E85: 2023-01-30 | F85: 2023-01-30 | G85: D | H85: -3.6 | I85: 329.49 | K85: Vetbak Kantoorcatering | L85: ap | M85: Betaalautomaat 08:56 pasnr. 1313 Apple Pay
A86: 5020 | B86: NL99RABO0123456789 | C86: EUR | D86: 5099 | E86: 2023-01-30 | F86: 2023-01-30 | G86: D | H86: -8.4 | I86: 321.09 | K86: SnelleBurger Fastfood | L86: ap | M86: Betaalautomaat 15:42 pasnr. 1313 Apple Pay
A87: 5020 | B87: NL99RABO0123456789 | C87: EUR | D87: 5100 | E87: 2023-01-31 | F87: 2023-01-31 | G87: D | H87: -4.68 | I87: 316.41 | K87: Kiosk AMSTERDAM | L87: ap | M87: Betaalautomaat 10:34 pasnr. 1313 Apple Pay
A88: 5020 | B88: NL99RABO0123456789 | C88: EUR | D88: 5101 | E88: 2023-01-31 | F88: 2023-02-03 | G88: D | H88: -18 | I88: 298.41 | J88: NL78BUNQ2291284258 | K88: Bunq B.V. | L88: id | M88: b4rfcpfq 0140000258393807 NL52BANK2055599911 xxxxxx x0000 pasnr. 1313
A89: 5070 | B89: NL99RABO0123456789 | C89: EUR | D89: 5102 | E89: 2023-01-31 | F89: 2023-01-31 | G89: D | H89: -102 | I89: 196.41 | J89: NL35INGB0003497889 | K89: Prof. Sickbock Coaching | L89: bg | M89: Ref. nummer 200152
A90: 900 | B90: NL99RABO0123456789 | C90: EUR | D90: 5103 | E90: 2023-01-31 | F90: 2023-01-31 | G90: C | H90: 100 | I90: 296.41 | J90: NL99RABO0987654321 | K90: G.E.L.D. Nerd | L90: tb
A91: 2040 | B91: NL99RABO0123456789 | C91: EUR | D91: 5104 | E91: 2023-02-01 | F91: 2023-02-01 | G91: D | H91: -10 | I91: 286.41 | K91: Tijdschriften En Meuk BV | L91: bc | M91: Betaalautomaat 15:39 pasnr. 1313
A92: 1840 | B92: NL99RABO0123456789 | C92: EUR | D92: 5105 | E92: 2023-02-01 | F92: 2023-02-01 | G92: D | H92: -3.9 | I92: 282.51 | K92: Bakkerij Het Verbrande Broodje | L92: ap | M92: Betaalautomaat 15:41 pasnr. 1313 Apple Pay
A93: 1220 | B93: NL99RABO0123456789 | C93: EUR | D93: 5106 | E93: 2023-02-03 | F93: 2023-02-03 | G93: D | H93: -26.77 | I93: 255.74 | J93: NL75RABO0101000731 | K93: KansOpClaim Verzekeringen NV | L93: ei | M93: PakketPolis 00013131313 PERIODE 01.02.2023 - 01.03.2023
A94: 1870 | B94: NL99RABO0123456789 | C94: EUR | D94: 5107 | E94: 2023-02-03 | F94: 2023-02-03 | G94: D | H94: -1.4 | I94: 254.34 | K94: Vetbak Kantoorcatering | L94: ap | M94: Betaalautomaat 11:00 pasnr. 1313 Apple Pay
A95: 1870 | B95: NL99RABO0123456789 | C95: EUR | D95: 5108 | E95: 2023-02-03 | F95: 2023-02-03 | G95: D | H95: -1.95 | I95: 252.39 | K95: Vetbak Kantoorcatering | L95: ap | M95: Betaalautomaat 14:43 pasnr. 1313 Apple Pay
A96: 1450 | B96: NL99RABO0123456789 | C96: EUR | D96: 5109 | E96: 2023-02-04 | F96: 2023-02-04 | G96: D | H96: -50 | I96: 202.39 | J96: NL12RABO0306498111 | K96: TLS BV inz. OV-Chipkaart | L96: ei | M96: Automatisch opladen OV-chipkaart Kaartnummer:00001111222233334444 Oplaaddatum/tijd:30-01-20 22:26
A97: 1210 | B97: NL99RABO0123456789 | C97: EUR | D97: 5110 | E97: 2023-02-04 | F97: 2023-02-01 | G97: D | H97: -4.8 | I97: 197.59 | K97: Kosten | L97: db | M97: Gijpgraag Bank Pakketje Periode 01-02-2023 t/m 29-02-2023
A98: 1870 | B98: NL99RABO0123456789 | C98: EUR | D98: 5111 | E98: 2023-02-04 | F98: 2023-02-04 | G98: D | H98: -3.6 | I98: 193.99 | K98: Vetbak Kantoorcatering | L98: ap | M98: Betaalautomaat 10:14 pasnr. 1313 Apple Pay
A99: 1870 | B99: NL99RABO0123456789 | C99: EUR | D99: 5112 | E99: 2023-02-04 | F99: 2023-02-04 | G99: D | H99: -3.35 | I99: 190.64 | K99: Vetbak Kantoorcatering | L99: ap | M99: Betaalautomaat 11:46 pasnr. 1313 Apple Pay
A100: 5020 | B100: NL99RABO0123456789 | C100: EUR | D100: 5113 | E100: 2023-02-05 | F100: 2023-02-05 | G100: D | H100: -15.5 | I100: 175.14 | K100: Taphuys Utrecht UTRECHT | L100: ap | M100: Betaalautomaat 12:43 pasnr. 1313 Apple Pay
A101: 5020 | B101: NL99RABO0123456789 | C101: EUR | D101: 5114 | E101: 2023-02-06 | F101: 2023-02-06 | G101: D | H101: -1.85 | I101: 173.29 | K101: IDB-De Resident Geldnerd City | L101: ap | M101: Betaalautomaat 07:57 pasnr. 1313 Apple Pay
A102: 5080 | B102: NL99RABO0123456789 | C102: EUR | D102: 5115 | E102: 2023-02-06 | F102: 2023-02-07 | G102: D | H102: -2.68 | I102: 170.61 | J102: NL13BANK0506417344 | K102: ABN AMRO Bank NV | L102: id | M102: 000171656746 0030004855691309 xxxxxxxxxxxxxxxxxxxxxx x0000 pasnr. 1313
A103: 1870 | B103: NL99RABO0123456789 | C103: EUR | D103: 5116 | E103: 2023-02-07 | F103: 2023-02-07 | G103: D | H103: -7.4 | I103: 163.21 | K103: Vetbak Kantoorcatering | L103: ap | M103: Betaalautomaat 11:48 pasnr. 1313 Apple Pay
A104: 5020 | B104: NL99RABO0123456789 | C104: EUR | D104: 5117 | E104: 2023-02-07 | F104: 2023-02-10 | G104: D | H104: -11 | I104: 152.21 | J104: NL13BANK0506417344 | K104: ABN AMRO Bank NV | L104: id | M104: 000171656746 0030004855691309 xxxxxxxxxxxxxxxxxxxxxx x0000 pasnr. 1313
A105: 900 | B105: NL99RABO0123456789 | C105: EUR | D105: 5118 | E105: 2023-02-08 | F105: 2023-02-08 | G105: C | H105: 100 | I105: 252.21 | J105: NL99RABO0987654321 | K105: G.E.L.D. Nerd | L105: tb
A106: 6050 | B106: NL99RABO0123456789 | C106: EUR | D106: 5119 | E106: 2023-02-08 | F106: 2023-02-08 | G106: D | H106: -59.95 | I106: 192.26 | J106: NL41BANK0455133425 | K106: Stichting Museumkaart | L106: bg
A107: 1870 | B107: NL99RABO0123456789 | C107: EUR | D107: 5120 | E107: 2023-02-10 | F107: 2023-02-10 | G107: D | H107: -8.95 | I107: 183.31 | K107: Vetbak Kantoorcatering | L107: ap | M107: Betaalautomaat 11:59 pasnr. 1313 Apple Pay
A108: 5020 | B108: NL99RABO0123456789 | C108: EUR | D108: 5121 | E108: 2023-02-10 | F108: 2023-02-10 | G108: D | H108: -2 | I108: 181.31 | K108: Snackbar De Gelukkige Frikandel | L108: ap | M108: Betaalautomaat 18:53 pasnr. 1313 Apple Pay
A109: 5020 | B109: NL99RABO0123456789 | C109: EUR | D109: 5122 | E109: 2023-02-11 | F109: 2023-02-11 | G109: D | H109: -2.9 | I109: 178.41 | K109: Cafe De Gelukkige Ambtenaar | L109: ap | M109: Betaalautomaat 10:12 pasnr. 1313 Apple Pay
A110: 5020 | B110: NL99RABO0123456789 | C110: EUR | D110: 5123 | E110: 2023-02-11 | F110: 2023-02-11 | G110: D | H110: -12.8 | I110: 165.61 | K110: HipsterFood Lunchroom | L110: ap | M110: Betaalautomaat 14:14 pasnr. 1313 Apple Pay
A111: 1870 | B111: NL99RABO0123456789 | C111: EUR | D111: 5124 | E111: 2023-02-12 | F111: 2023-02-12 | G111: D | H111: -7.4 | I111: 158.21 | K111: Vetbak Kantoorcatering | L111: ap | M111: Betaalautomaat 11:42 pasnr. 1313 Apple Pay
A112: 1870 | B112: NL99RABO0123456789 | C112: EUR | D112: 5125 | E112: 2023-02-12 | F112: 2023-02-12 | G112: D | H112: -1.95 | I112: 156.26 | K112: Vetbak Kantoorcatering | L112: ap | M112: Betaalautomaat 11:51 pasnr. 1313 Apple Pay
A113: 1870 | B113: NL99RABO0123456789 | C113: EUR | D113: 5126 | E113: 2023-02-13 | F113: 2023-02-13 | G113: D | H113: -3.75 | I113: 152.51 | K113: Vetbak Kantoorcatering | L113: ap | M113: Betaalautomaat 10:33 pasnr. 1313 Apple Pay
A114: 1870 | B114: NL99RABO0123456789 | C114: EUR | D114: 5127 | E114: 2023-02-13 | F114: 2023-02-13 | G114: D | H114: -12.35 | I114: 140.16 | K114: Vetbak Kantoorcatering | L114: ap | M114: Betaalautomaat 11:33 pasnr. 1313 Apple Pay
A115: 1840 | B115: NL99RABO0123456789 | C115: EUR | D115: 5128 | E115: 2023-02-13 | F115: 2023-02-13 | G115: D | H115: -6.98 | I115: 133.18 | K115: Slagerij De Drie Biggetjes | L115: ap | M115: Betaalautomaat 16:43 pasnr. 1313 Apple Pay
A116: 5020 | B116: NL99RABO0123456789 | C116: EUR | D116: 5129 | E116: 2023-02-14 | F116: 2023-02-14 | G116: D | H116: -3.9 | I116: 129.28 | K116: DureHipsterKoffie BV | L116: ap | M116: Betaalautomaat 10:15 pasnr. 1313 Apple Pay
A117: 5080 | B117: NL99RABO0123456789 | C117: EUR | D117: 5130 | E117: 2023-02-14 | F117: 2023-02-14 | G117: D | H117: -4 | I117: 125.28 | K117: Bloemisterij Brandnetel | L117: ap | M117: Betaalautomaat 13:10 pasnr. 1313 Apple Pay
A118: 900 | B118: NL99RABO0123456789 | C118: EUR | D118: 5131 | E118: 2023-02-14 | F118: 2023-02-14 | G118: C | H118: 100 | I118: 225.28 | J118: NL99RABO0987654321 | K118: G.E.L.D. Nerd | L118: tb
A119: 5070 | B119: NL99RABO0123456789 | C119: EUR | D119: 5132 | E119: 2023-02-14 | F119: 2023-02-14 | G119: D | H119: -102 | I119: 123.28 | J119: NL35INGB0003497889 | K119: Prof. Sickbock Coaching | L119: bg | M119: Ref. nummer 200280
A120: 5030 | B120: NL99RABO0123456789 | C120: EUR | D120: 5133 | E120: 2023-02-14 | F120: 2023-02-14 | G120: D | H120: -40.97 | I120: 82.31 | J120: NL31BANK0567123112 | K120: V. Vriendin e/o G.E.L.D. Nerd | L120: bg | M120: Verrekening supermarkt
A121: 5010 | B121: NL99RABO0123456789 | C121: EUR | D121: 5134 | E121: 2023-02-16 | F121: 2023-02-17 | G121: D | H121: -60.9 | I121: 21.41 | J121: NL27INGB0000026500 | K121: bol.com b.v. | L121: id | M121: 888877740 0000004123459861 bol.com ref 888877740 bol.com x2537 pasnr. 1313
A122: 900 | B122: NL99RABO0123456789 | C122: EUR | D122: 5135 | E122: 2023-02-16 | F122: 2023-02-16 | G122: C | H122: 200 | I122: 221.41 | J122: NL99RABO0987654321 | K122: G.E.L.D. Nerd | L122: tb
A123: 1870 | B123: NL99RABO0123456789 | C123: EUR | D123: 5136 | E123: 2023-02-17 | F123: 2023-02-17 | G123: D | H123: -3.35 | I123: 218.06 | K123: Vetbak Kantoorcatering | L123: ap | M123: Betaalautomaat 11:33 pasnr. 1313 Apple Pay
A124: 1870 | B124: NL99RABO0123456789 | C124: EUR | D124: 5137 | E124: 2023-02-17 | F124: 2023-02-17 | G124: D | H124: -3.75 | I124: 214.31 | K124: Vetbak Kantoorcatering | L124: ap | M124: Betaalautomaat 14:34 pasnr. 1313 Apple Pay
A125: 5020 | B125: NL99RABO0123456789 | C125: EUR | D125: 5138 | E125: 2023-02-17 | F125: 2023-02-17 | G125: D | H125: -3.75 | I125: 210.56 | K125: VeelSchulden Warenhuis | L125: ap | M125: Betaalautomaat 20:06 pasnr. 1313 Apple Pay
A126: 1840 | B126: NL99RABO0123456789 | C126: EUR | D126: 5139 | E126: 2023-02-18 | F126: 2023-02-18 | G126: D | H126: -6.89 | I126: 203.67 | K126: Slagerij De Drie Biggetjes | L126: bc | M126: Betaalautomaat 11:23 pasnr. 1313
A127: 1630 | B127: NL99RABO0123456789 | C127: EUR | D127: 5140 | E127: 2023-02-19 | F127: 2023-02-19 | G127: D | H127: -20.3 | I127: 183.37 | J127: NL93INGB0007939833 | K127: GeenVerbinding Telecom | L127: ei | M127: Klant Nr XXXXXX999/XXXXXX888 Februari Factuur Nr 315090082856
A128: 1870 | B128: NL99RABO0123456789 | C128: EUR | D128: 5141 | E128: 2023-02-19 | F128: 2023-02-19 | G128: D | H128: -1.4 | I128: 181.97 | K128: Vetbak Kantoorcatering | L128: ap | M128: Betaalautomaat 12:34 pasnr. 1313 Apple Pay
A129: 1870 | B129: NL99RABO0123456789 | C129: EUR | D129: 5142 | E129: 2023-02-19 | F129: 2023-02-19 | G129: D | H129: -5.4 | I129: 176.57 | K129: Vetbak Kantoorcatering | L129: ap | M129: Betaalautomaat 14:02 pasnr. 1313 Apple Pay
A130: 1870 | B130: NL99RABO0123456789 | C130: EUR | D130: 5143 | E130: 2023-02-20 | F130: 2023-02-20 | G130: D | H130: -1.4 | I130: 175.17 | K130: Vetbak Kantoorcatering | L130: ap | M130: Betaalautomaat 11:18 pasnr. 1313 Apple Pay
A131: 1870 | B131: NL99RABO0123456789 | C131: EUR | D131: 5144 | E131: 2023-02-20 | F131: 2023-02-20 | G131: D | H131: -3.6 | I131: 171.57 | K131: Vetbak Kantoorcatering | L131: ap | M131: Betaalautomaat 14:16 pasnr. 1313 Apple Pay
A132: 100 | B132: NL99RABO0123456789 | C132: EUR | D132: 5145 | E132: 2023-02-24 | F132: 2023-02-24 | G132: C | H132: 4899.16 | I132: 5070.73 | J132: NL09INGB0705005461 | K132: LoonSlaaf Inc. | L132: cb | M132: LOON/SALARIS30009304/202302
A133: 1870 | B133: NL99RABO0123456789 | C133: EUR | D133: 5146 | E133: 2023-02-24 | F133: 2023-02-24 | G133: D | H133: -1.4 | I133: 5069.33 | K133: Vetbak Kantoorcatering | L133: ap | M133: Betaalautomaat 09:37 pasnr. 1313 Apple Pay
A134: 984 | B134: NL99RABO0123456789 | C134: EUR | D134: 5147 | E134: 2023-02-24 | F134: 2023-02-24 | G134: C | H134: 135.44 | I134: 5204.77 | J134: NL20BBBB9898989898 | K134: G.E.L.D. Nerd | L134: cb | M134: Overboeking
A135: 9030 | B135: NL99RABO0123456789 | C135: EUR | D135: 5148 | E135: 2023-02-25 | F135: 2023-02-25 | G135: D | H135: -200 | I135: 5004.77 | J135: NL00BRKR010203045 | K135: G.E.L.D. Nerd Binck Green | L135: bg | M135: Spaarbank Rente en voorzieningen 2023
A136: 9050 | B136: NL99RABO0123456789 | C136: EUR | D136: 5149 | E136: 2023-02-25 | F136: 2023-02-25 | G136: D | H136: -430 | I136: 4574.77 | J136: NL31BANK0567123112 | K136: V. Vriendin e/o G.E.L.D. Nerd | L136: bg | M136: Reguliere Aflossing Geldnerd HQ 2023
A137: 9030 | B137: NL99RABO0123456789 | C137: EUR | D137: 5150 | E137: 2023-02-25 | F137: 2023-02-25 | G137: D | H137: -1000 | I137: 3574.77 | J137: NL00BRKR010203045 | K137: G.E.L.D. Nerd Binck Green | L137: bg | M137: Maandelijkse overboeking beleggingen 2023
A138: 9050 | B138: NL99RABO0123456789 | C138: EUR | D138: 5151 | E138: 2023-02-25 | F138: 2023-02-25 | G138: D | H138: -500 | I138: 3074.77 | J138: NL31BANK0567123112 | K138: V. Vriendin e/o G.E.L.D. Nerd | L138: bg | M138: Extra Aflossing Geldnerd HQ 2023
A139: 9850 | B139: NL99RABO0123456789 | C139: EUR | D139: 5152 | E139: 2023-02-25 | F139: 2023-02-25 | G139: D | H139: -100 | I139: 2974.77 | J139: NL20BBBB9898989898 | K139: G.E.L.D. Nerd NN | L139: bg | M139: Reservering Gadgets / Tech 2023
A140: 8090 | B140: NL99RABO0123456789 | C140: EUR | D140: 5153 | E140: 2023-02-25 | F140: 2023-02-25 | G140: D | H140: -1358 | I140: 1616.77 | J140: NL31BANK0567123112 | K140: V. Vriendin e/o G.E.L.D. Nerd | L140: bg | M140: Maandelijkse bijdrage gezamenlijke huishouding 2023
A141: 9830 | B141: NL99RABO0123456789 | C141: EUR | D141: 5154 | E141: 2023-02-25 | F141: 2023-02-25 | G141: D | H141: -300 | I141: 1316.77 | J141: NL20BBBB9898989898 | K141: G.E.L.D. Nerd NN | L141: bg | M141: Reservering Gezond Leven 2023
A142: 9840 | B142: NL99RABO0123456789 | C142: EUR | D142: 5155 | E142: 2023-02-25 | F142: 2023-02-25 | G142: D | H142: -300 | I142: 1016.77 | J142: NL20BBBB9898989898 | K142: G.E.L.D. Nerd NN | L142: bg | M142: Reservering Kleding 2023
A143: 9810 | B143: NL99RABO0123456789 | C143: EUR | D143: 5156 | E143: 2023-02-25 | F143: 2023-02-25 | G143: D | H143: -100 | I143: 916.77 | J143: NL20BBBB9898989898 | K143: G.E.L.D. Nerd NN | L143: bg | M143: Reservering Zorgverzekering 2023
A144: 9820 | B144: NL99RABO0123456789 | C144: EUR | D144: 5157 | E144: 2023-02-25 | F144: 2023-02-25 | G144: D | H144: -200 | I144: 716.77 | J144: NL20BBBB9898989898 | K144: G.E.L.D. Nerd NN | L144: bg | M144: Reservering Vakanties 2023
A145: 1870 | B145: NL99RABO0123456789 | C145: EUR | D145: 5158 | E145: 2023-02-25 | F145: 2023-02-25 | G145: D | H145: -3.35 | I145: 713.42 | K145: Vetbak Kantoorcatering | L145: ap | M145: Betaalautomaat 11:34 pasnr. 1313 Apple Pay
A146: 984 | B146: NL99RABO0123456789 | C146: EUR | D146: 5159 | E146: 2023-02-25 | F146: 2023-02-25 | G146: C | H146: 2000 | I146: 2713.42 | J146: NL20BBBB9898989898 | K146: G.E.L.D. Nerd | L146: cb | M146: Overboeking kledingbuffer
A147: 1870 | B147: NL99RABO0123456789 | C147: EUR | D147: 5160 | E147: 2023-02-26 | F147: 2023-02-26 | G147: D | H147: -3.35 | I147: 2710.07 | K147: Vetbak Kantoorcatering | L147: ap | M147: Betaalautomaat 11:56 pasnr. 1313 Apple Pay
A148: 1870 | B148: NL99RABO0123456789 | C148: EUR | D148: 5161 | E148: 2023-02-27 | F148: 2023-02-27 | G148: D | H148: -4.35 | I148: 2705.72 | K148: Vetbak Kantoorcatering | L148: ap | M148: Betaalautomaat 11:47 pasnr. 1313 Apple Pay
A149: 0 | B149: NL99RABO0123456789 | C149: EUR | D149: 5162 | E149: 2023-02-28 | F149: 2023-02-28 | G149: D | H149: -2025.39 | I149: 680.33 | J149: NL71RABO0350808880 | K149: Grijpgraag Bankiers NV | L149: cc | M149: Kaartnummer: 9999.8888.7777.6666 Zie rekeningoverzicht 24-02-2023
A150: 5010 | B150: NL99RABO0123456789 | C150: EUR | D150: 5162 | E150: 2023-02-28 | F150: 2023-02-28 | G150: D | H150: -465 | I150: 680.33 | J150: NL71RABO0350808880 | K150: Grijpgraag Bankiers NV | L150: cc | M150: 25-1-2023 / TeDureHemden.COM
A151: 5010 | B151: NL99RABO0123456789 | C151: EUR | D151: 5162 | E151: 2023-02-28 | F151: 2023-02-28 | G151: D | H151: -1445.5 | I151: 680.33 | J151: NL71RABO0350808880 | K151: Grijpgraag Bankiers NV | L151: cc | M151: 8-2-2023 / BlauwePakkenBrigade
A152: 5010 | B152: NL99RABO0123456789 | C152: EUR | D152: 5162 | E152: 2023-02-28 | F152: 2023-02-28 | G152: D | H152: -99.9 | I152: 680.33 | J152: NL71RABO0350808880 | K152: Grijpgraag Bankiers NV | L152: cc | M152: 15-2-2023 / NetteSchoenenClub
A153: 2020 | B153: NL99RABO0123456789 | C153: EUR | D153: 5162 | E153: 2023-02-28 | F153: 2023-02-28 | G153: D | H153: -14.99 | I153: 680.33 | J153: NL71RABO0350808880 | K153: Grijpgraag Bankiers NV | L153: cc | M153: 15-2-2023 / Spotify Premium Family
A154: 1810 | B154: NL99RABO0123456789 | C154: EUR | D154: 5163 | E154: 2023-02-28 | F154: 2023-02-28 | G154: D | H154: -2.55 | I154: 677.78 | K154: Supermarkt Jumbert Amsterdam | L154: ap | M154: Betaalautomaat 12:21 pasnr. 1313 Apple Pay
A155: 1840 | B155: NL99RABO0123456789 | C155: EUR | D155: 5164 | E155: 2023-02-28 | F155: 2023-02-28 | G155: D | H155: -9.76 | I155: 668.02 | K155: Slagerij De Drie Biggetjes | L155: ap | M155: Betaalautomaat 13:40 pasnr. 1313 Apple Pay
A156: 5070 | B156: NL99RABO0123456789 | C156: EUR | D156: 5165 | E156: 2023-02-28 | F156: 2023-02-28 | G156: D | H156: -102 | I156: 566.02 | J156: NL35INGB0003497889 | K156: Prof. Sickbock Coaching | L156: bg | M156: Ref. nummer 2002107

Sheet Cashflow
A1: Cashflow
C3: Freq | D3: Date | E3: Jan | F3: Feb | G3: Maa | H3: Apr | I3: Mei | J3: Jun | K3: Jul | L3: Aug | M3: Sep | N3: Okt | O3: Nov | P3: Dec | Q3: Total | R3: Remarks
B5: Salaris | D5: 24 | E5: 4900 | F5: =E5 -> 4900 | G5: 4900 | H5: 4900 | I5: 4900 | J5: 4900 | K5: 4900 | L5: 4900 | M5: 4900 | N5: 4900 | O5: 4900 | P5: 4900 | Q5: =SUM(E5:P5) -> 58800
B6: Vakantiegeld / 13e maand / Bonus - oude stelsel | Q6: =SUM(E6:P6) -> 0
B8: Besteedbaar Inkomen | E8: =SUM(E5:E7) -> 4900 | F8: 4900 | G8: 4900 | H8: 4900 | I8: 4900 | J8: 4900 | K8: 4900 | L8: 4900 | M8: 4900 | N8: 4900 | O8: 4900 | P8: 4900 | Q8: =SUM(E8:P8) -> 58800
B10: Beleggen | E10: 1000 | F10: =E10 -> 1000 | G10: 1000 | H10: 1000 | I10: 1000 | J10: 1000 | K10: 1000 | L10: 1000 | M10: 1000 | N10: 1000 | O10: 1000 | P10: 1000 | Q10: =SUM(E10:P10) -> 12000
B11: Sparen / Extra Aflossen | E11: 500 | F11: 500 | G11: 500 | H11: 500 | I11: 500 | J11: 500 | K11: 500 | L11: 500 | M11: 500 | N11: 500 | O11: 500 | P11: 500 | Q11: 6000
B12: Reguliere Aflossing | E12: 400 | F12: 400 | G12: 400 | H12: 400 | I12: 400 | J12: 400 | K12: 400 | L12: 400 | M12: 400 | N12: 400 | O12: 400 | P12: 400 | Q12: 4800
B13: Gezamenlijk Huishouden (incl. hypotheekrente) | E13: 1300 | F13: 1300 | G13: 1300 | H13: 1300 | I13: 1300 | J13: 1300 | K13: 1300 | L13: 1300 | M13: 1300 | N13: 1300 | O13: 1300 | P13: 1300 | Q13: 15600
B14: =Ledger!B132 -> Voorziening Zorgverzekering | E14: 100 | F14: 100 | G14: 100 | H14: 100 | I14: 100 | J14: 100 | K14: 100 | L14: 100 | M14: 100 | N14: 100 | O14: 100 | P14: 100 | Q14: 1200
B15: =Ledger!B133 -> Voorziening Vakanties | E15: 200 | F15: 200 | G15: 200 | H15: 200 | I15: 200 | J15: 200 | K15: 200 | L15: 200 | M15: 200 | N15: 200 | O15: 200 | P15: 200 | Q15: 2400
B16: =Ledger!B134 -> Voorziening Gezond Leven | E16: 100 | F16: 100 | G16: 100 | H16: 100 | I16: 100 | J16: 100 | K16: 100 | L16: 100 | M16: 100 | N16: 100 | O16: 100 | P16: 100 | Q16: 1200
B17: =Ledger!B135 -> Voorziening Kleding | E17: 200 | F17: 200 | G17: 200 | H17: 200 | I17: 200 | J17: 200 | K17: 200 | L17: 200 | M17: 200 | N17: 200 | O17: 200 | P17: 200 | Q17: 2400
B18: =Ledger!B136 -> Voorziening Gadgets / Tech | E18: 100 | F18: =E18 -> 100 | G18: 100 | H18: 100 | I18: 100 | J18: 100 | K18: 100 | L18: 100 | M18: 100 | N18: 100 | O18: 100 | P18: 100 | Q18: =SUM(E18:P18) -> 1200
B19: =Ledger!B137 -> Voorziening Onderhoud Huis | E19: 100 | F19: 100 | G19: 100 | H19: 100 | I19: 100 | J19: 100 | K19: 100 | L19: 100 | M19: 100 | N19: 100 | O19: 100 | P19: 100 | Q19: 1200
B20: =Ledger!B138 -> Voorziening Bril | E20: 50 | F20: =E20 -> 50 | G20: =F20 -> 50 | H20: =G20 -> 50 | I20: =H20 -> 50 | J20: =I20 -> 50 | K20: =J20 -> 50 | L20: =K20 -> 50 | M20: =L20 -> 50 | N20: =M20 -> 50 | O20: =N20 -> 50 | P20: =O20 -> 50 | Q20: 600 | R20: 2015 - 2018 - 2021
B21: =Ledger!B139 -> Voorziening Economist abbo | E21: 20 | F21: 20 | G21: 20 | H21: 20 | I21: 20 | J21: 20 | K21: 20 | L21: 20 | M21: 20 | N21: 20 | O21: 20 | P21: 20 | Q21: 240 | R21: 2023 sep
B22: Voorziening Eigen Risico Zorg | E22: 75 | F22: 75 | G22: 75 | H22: 75 | I22: 75 | J22: 75 | K22: 75 | L22: 75 | M22: 75 | N22: 75 | O22: 75 | P22: 75 | Q22: 900
B23: =Ledger!B142 -> Voorziening Inkomensbuffer | E23: 0 | F23: =E23 -> 0 | G23: =F23 -> 0 | H23: =G23 -> 0 | I23: =H23 -> 0 | J23: =I23 -> 0 | K23: =J23 -> 0 | L23: =K23 -> 0 | M23: =L23 -> 0 | N23: =M23 -> 0 | O23: =N23 -> 0 | P23: =O23 -> 0 | Q23: 0
B25: Netto besteedbaar inkomen | E25: =E8-SUM(E10:E23) -> 755 | F25: 755 | G25: 755 | H25: 755 | I25: 755 | J25: 755 | K25: 755 | L25: 755 | M25: 755 | N25: 755 | O25: 755 | P25: 755 | Q25: 9060
B27: Pakketkosten Bank | C27: 4 | D27: 1 | E27: 5.65 | F27: =E27 -> 5.65 | G27: =F27 -> 5.65 | H27: 6.5 | I27: =H27 -> 6.5 | J27: =I27 -> 6.5 | K27: =J27 -> 6.5 | L27: =K27 -> 6.5 | M27: =L27 -> 6.5 | N27: =M27 -> 6.5 | O27: =N27 -> 6.5 | P27: =O27 -> 6.5 | Q27: =SUM(E27:P27) -> 75.45
B28: NS Voordeeluren | C28: 1 | D28: 15 | E28: 6 | F28: =E28 -> 6 | G28: =F28 -> 6 | H28: =G28 -> 6 | I28: =H28 -> 6 | J28: =I28 -> 6 | K28: =J28 -> 6 | L28: =K28 -> 6 | M28: =L28 -> 6 | N28: =M28 -> 6 | O28: =N28 -> 6 | P28: =O28 -> 6 | Q28: 72
B29: Mobiele telefoon | C29: 12 | D29: 24 | E29: 13.6 | F29: =E29 -> 13.6 | G29: 13.6 | H29: 13.6 | I29: 13.6 | J29: 13.6 | K29: 13.6 | L29: 13.6 | M29: 13.6 | N29: 13.6 | O29: 13.6 | P29: 13.6 | Q29: =SUM(E29:P29) -> 163.2 | R29: Vodafone tot 5 juni 2023
B31: Totaal Eigen Uitgaven | E31: =SUM(E27:E30) -> 25.25 | F31: 25.25 | G31: 25.25 | H31: 26.1 | I31: 26.1 | J31: 26.1 | K31: 26.1 | L31: 26.1 | M31: 26.1 | N31: 26.1 | O31: 26.1 | P31: 26.1 | Q31: 310.65
B33: Vrij besteedbaar inkomen | E33: =E25-E31 -> 729.75 | F33: 729.75 | G33: 729.75 | H33: 728.9 | I33: 728.9 | J33: 728.9 | K33: 728.9 | L33: 728.9 | M33: 728.9 | N33: 728.9 | O33: 728.9 | P33: 728.9 | Q33: 8749.35
Q35: =SUM(E35:P35) -> 0
Q36: =SUM(P36:P36) -> 0
Q37: =SUM(P37:P37) -> 0
Q38: =SUM(E38:P38) -> 0
Q39: =SUM(E39:P39) -> 0
B41: Totaal Bijzondere Uitgaven | E41: =SUM(E34:E40) -> 0 | F41: =SUM(F34:F40) -> 0 | G41: =SUM(G34:G40) -> 0 | H41: 0 | I41: 0 | J41: 0 | K41: 0 | L41: 0 | M41: 0 | N41: =SUM(N34:N40) -> 0 | O41: =SUM(O34:O40) -> 0 | P41: =SUM(P34:P40) -> 0 | Q41: 0
B43: Saldo na bijzondere uitgaven | E43: =E33-E41 -> 729.75 | F43: 729.75 | G43: 729.75 | H43: 728.9 | I43: 728.9 | J43: 728.9 | K43: 728.9 | L43: 728.9 | M43: 728.9 | N43: 728.9 | O43: 728.9 | P43: 728.9 | Q43: 0
B45: Cumulatief saldo | E45: =D45+E43 -> 729.75 | F45: =E45+F43 -> 1459.5 | G45: 2189.25 | H45: 2918.15 | I45: 3647.05 | J45: 4375.95 | K45: 5104.85 | L45: 5833.75 | M45: 6562.65 | N45: 7291.55 | O45: 8020.45 | P45: 8749.35

Sheet Creditcard
A1: Account | B1: Card | C1: Date | D1: EUR | E1: Description
A2: 5010 | B2: VISA | C2: 2022-12-22 | D2: -149 | E2: 14000000001 / TeDureOverhemden.COM NLD
A3: 5010 | B3: VISA | C3: 2022-12-22 | D3: -97.8 | E3: 14000000002 / NogMeerKleding.NL NLD

Sheet Precoding
A1: 0 | B1: NL99RABO0123456789 | C1: EUR | G1: D | J1: NL71RABO0350808880 | K1: Grijpgraag Bankiers NV | L1: cc | M1: Kaartnummer: 9999.8888.7777.6666 Zie rekeningoverzicht
A2: 100 | B2: NL99RABO0123456789 | C2: EUR | G2: C | J2: NL09INGB0705005461 | K2: LoonSlaaf Inc. | L2: cb | M2: LOON/SALARIS00000000/
A3: 190 | B3: NL99RABO0123456789 | C3: EUR | G3: C | J3: NL62INGB0663707048 | K3: Loterij Kansloos NV | L3: cb | M3: Gefeliciteerd, Gewonnen met Loterij Kansloos, Trekking
A4: 1210 | B4: NL99RABO0123456789 | C4: EUR | G4: D | K4: Kosten | L4: db | M4: Gijpgraag Bank Pakketje
A5: 1220 | B5: NL99RABO0123456789 | C5: EUR | G5: D | J5: NL75RABO0101000731 | K5: KansOpClaim Verzekeringen NV | L5: ei | M5: PakketPolis 00013131313 PERIODE
A6: 1250 | B6: NL99RABO0123456789 | C6: EUR | G6: D | K6: Tandartspraktijk Pijniger | L6: ap | M6: Betaalautomaat
A7: 1450 | B7: NL99RABO0123456789 | C7: EUR | G7: D | H7: -50 | J7: NL12RABO0306498111 | K7: TLS BV inz. OV-Chipkaart | L7: ei | M7: Automatisch opladen OV-chipkaart Kaartnummer:00001111222233334444 Oplaaddatum/tijd:
A8: 1630 | B8: NL99RABO0123456789 | C8: EUR | G8: D | H8: -16 | J8: NL93INGB0007939833 | K8: GeenVerbinding Telecom | L8: ei | M8: Klant Nr XXXXXX333/XXXXXX888
A9: 1810 | B9: NL99RABO0123456789 | C9: EUR | G9: D | K9: Supermarkt AlBo | L9: ap | M9: Betaalautomaat
A10: 1810 | B10: NL99RABO0123456789 | C10: EUR | G10: D | K10: Supermarkt JumBert | L10: bc | M10: Betaalautomaat
A11: 1810 | B11: NL99RABO0123456789 | C11: EUR | G11: D | K11: Supermarkt JumBert To Go | L11: ap | M11: Betaalautomaat
A12: 1810 | B12: NL99RABO0123456789 | C12: EUR | G12: D | K12: Supermarkt Jumbert Amsterdam | L12: ap | M12: Betaalautomaat
A13: 1840 | B13: NL99RABO0123456789 | C13: EUR | G13: D | K13: Bakkerij Het Verbrande Broodje | L13: ap | M13: Betaalautomaat
A14: 1840 | B14: NL99RABO0123456789 | C14: EUR | G14: D | K14: Slagerij De Drie Biggetjes | L14: ap | M14: Betaalautomaat
A15: 1870 | B15: NL99RABO0123456789 | C15: EUR | G15: D | K15: HoogVanDeTorenBlazen Kantoorcatering | L15: ap | M15: Betaalautomaat
A16: 1870 | B16: NL99RABO0123456789 | C16: EUR | G16: D | K16: Vetbak Kantoorcatering | L16: ap | M16: Betaalautomaat
A17: 2020 | B17: NL99RABO0123456789 | C17: EUR | G17: D | H17: -14.99 | J17: NL71RABO0350808880 | K17: Grijpgraag Bankiers NV | L17: cc | M17: Spotify Premium Family
A18: 5020 | B18: NL99RABO0123456789 | C18: EUR | G18: D | K18: HipsterKoffie Geldnerd City | L18: ap | M18: Betaalautomaat
A19: 5020 | B19: NL99RABO0123456789 | C19: EUR | G19: D | K19: Snackbar De Gelukkige Frikandel | L19: ap | M19: Betaalautomaat
A20: 5020 | B20: NL99RABO0123456789 | C20: EUR | G20: D | K20: Kiosk ASDZ 2614 AMSTERDAM | L20: ap | M20: Betaalautomaat
A21: 5020 | B21: NL99RABO0123456789 | C21: EUR | G21: D | K21: Utrecht+1 4208-24102 Utrecht | L21: ap | M21: Betaalautomaat
A22: 5020 | B22: NL99RABO0123456789 | C22: EUR | G22: D | K22: HMSHost Utrecht Centra Utrecht | L22: ap | M22: Betaalautomaat
A23: 5020 | B23: NL99RABO0123456789 | C23: EUR | G23: D | K23: Cafe De Gelukkige Ambtenaar | L23: bc | M23: Betaalautomaat
A24: 5020 | B24: NL99RABO0123456789 | C24: EUR | G24: D | K24: SnelleBurger Fastfood | L24: ap | M24: Betaalautomaat
A25: 5020 | B25: NL99RABO0123456789 | C25: EUR | G25: D | K25: Kiosk AMSTERDAM | L25: ap | M25: Betaalautomaat
A26: 8090 | B26: NL99RABO0123456789 | C26: EUR | G26: D | J26: NL31BANK0567123112 | K26: V. Vriendin e/o G.E.L.D. Nerd | L26: bg | M26: Maandelijkse bijdrage gezamenlijke huishouding 2020
A27: 9000 | B27: NL99RABO0987654321 | C27: EUR | G27: D | J27: NL99RABO0123456789 | K27: G.E.L.D. Nerd | L27: db | M27: Afschrijving
A28: 9030 | B28: NL99RABO0123456789 | C28: EUR | G28: D | H28: -1000 | J28: NL00BRKR010203045 | K28: G.E.L.D. Nerd Binck Green | L28: bg | M28: Maandelijkse overboeking beleggingen 2020
A29: 9050 | B29: NL99RABO0123456789 | C29: EUR | G29: D | H29: -430 | J29: NL31BANK0567123112 | K29: V. Vriendin e/o G.E.L.D. Nerd | L29: bg | M29: Reguliere Aflossing Geldnerd HQ 2020
A30: 9050 | B30: NL99RABO0123456789 | C30: EUR | G30: D | H30: -500 | J30: NL31BANK0567123112 | K30: V. Vriendin e/o G.E.L.D. Nerd | L30: bg | M30: Extra Aflossing Geldnerd HQ 2020
A31: 9810 | B31: NL99RABO0123456789 | C31: EUR | G31: D | H31: -100 | J31: NL20BBBB9898989898 | K31: G.E.L.D. Nerd LB | L31: bg | M31: Reservering Zorgverzekering 2020
A32: 9820 | B32: NL99RABO0123456789 | C32: EUR | G32: D | H32: -200 | J32: NL20BBBB9898989898 | K32: G.E.L.D. Nerd LB | L32: bg | M32: Reservering Vakanties 2020
A33: 9830 | B33: NL99RABO0123456789 | C33: EUR | G33: D | H33: -300 | J33: NL20BBBB9898989898 | K33: G.E.L.D. Nerd LB | L33: bg | M33: Reservering Gezond Leven 2020
A34: 9840 | B34: NL99RABO0123456789 | C34: EUR | G34: D | H34: -300 | J34: NL20BBBB9898989898 | K34: G.E.L.D. Nerd LB | L34: bg | M34: Reservering Kleding 2020
A35: 9850 | B35: NL99RABO0123456789 | C35: EUR | G35: D | H35: -100 | J35: NL20BBBB9898989898 | K35: G.E.L.D. Nerd LB | L35: bg | M35: Reservering Gadgets / Tech 2020

Sheet Settings
A1: Settings | K1: Fixed Settings - Do not edit!
B3: Default Bank | C3: Rabobank | E3: Saving Rate Target (year) | F3: 0.45 | K3: Banks | L3: ABN AMRO
B4: Default Creditcard | C4: Rabobank | L4: ING
L5: KNAB
B6: Financial Year | C6: 2023 | E6: Balance Check On | L6: Rabobank
L7: SNS
B8: Maximum number of transactions | C8: 1999
K9: Cards | L9: ABN AMRO
B10: Download directory | C10: C:\Users\Geldnerd\Downloads\ | L10: Rabobank
B11: Archive Directory Rabobank | C11: C:\Users\Geldnerd\OneDrive\Documenten\Financials\Downloads Rabobank\2023\
B12: Archive Directory KNAB | C12: C:\Users\Geldnerd\OneDrive\Documenten\Financials\Downloads KNAB\
B13: Archive Directory ING | C13: C:\Users\Geldnerd\OneDrive\Documenten\Financials\Downloads ING\ | K13: SaldoCheck | L13: TRUE
B14: Archive Directory ABN AMRO | C14: C:\Users\Geldnerd\OneDrive\Documenten\Financials\Downloads ABN AMRO\2023\
B15: Archive Directory SNS | C15: C:\Users\Geldnerd\OneDrive\Documenten\Financials\Downloads SNS\
B16: Archive Directory Lloyds | C16: C:\Users\Geldnerd\OneDrive\Documenten\Financials\Downloads Lloyds\2023\ | K16: Charts | L16: Account per Month
B17: Archive Directory Creditcards | C17: C:\Users\Geldnerd\OneDrive\Documenten\Financials\Downloads Creditcards\ | L17: Current Account Balance
B18: Filename | C18: C:\Users\Geldnerd\OneDrive\Documenten\Financials\Financiele Administratie 2023.xlsm | L18: In/Out & Saving Rate
L19: Lowest / Average Balance
L20: Lowest Balance
L21: No-Spend Days
A22: Accounts | L22: No-Expense Days
L23: No-Expense vs No-Spend
B24: Description | C24: Account Number | D24: Start Balance | E24: Remarks | L24: Payment Types
L25: Saving Rate
B26: Lopende rekening Graai Bankiers | C26: NL99RABO0123456789 | D26: 1023 | L26: Spending Bar
B27: Contant geld | D27: 10 | L27: Spending Line
B28: Spaarrekening Graai Bankiers | C28: NL99RABO0987654321 | D28: 750 | L28: Spending vs Budget
B29: Spaarrekening BufferBank | C29: NL20BBBB9898989898 | D29: 10000 | E29: Let op! Saldo 1 januari inclusief rente.
A32: Creditcards
B34: Description | C34: Card | D34: Column | E34: Value | F34: Column | G34: Value
B36: GraaiBankiers Visa Card | C36: VISA | D36: 11 | E36: NL99XYZB0123456789 | F36: 13 | G36: Kaartnummer: 9999.8888.7777.6666
A39: Unwanted String
B41: MijnNaam
